Local authority department which incurred the expenditure,Service Division,Cost Centre,Summary of the Purpose of Expenditure,Expense Type,Expense Code,Detailed Expense Type,Date of Transaction,Transaction Number,Beneficiary,Merchant Category Number,Merchant Category,Gross Amount,VAT,Net Amount
Neighbourhood Services,Culture & Sport,011219,Office Services,Third Party Payments,430100,Rendered by Private Contractors,01-Jul-2016,5039585041,CAMPAIGNMONITOR,7399,Payments to sub-contractors,10.19,0.00,10.19
Children and Adult Services,Education,071801,Selby Cottage Childcare Centre,Supplies and Services,324117,Provisions,01-Jul-2016,5044359851,ASDA HOME SHOPPING,5411,Catering costs - provisions,97.54,0.00,97.54
Children and Adult Services,Education,071801,Selby Cottage Childcare Centre,Supplies and Services,328041,Clothing Uniforms and Laundry,01-Jul-2016,5044359853,POUNDLAND LTD 1330,5310,Clothing uniforms and laundry,14.10,2.35,11.75
Children and Adult Services,Childrens Services,071380,Bishop Auckland and Barnard Castle Locality,Supplies and Services,328041,Clothing Uniforms and Laundry,01-Jul-2016,5044359859,ARGOS RETAIL GROUP,5310,Clothing uniforms and laundry,74.84,0.00,74.84
Children and Adult Services,Childrens Services,071380,Bishop Auckland and Barnard Castle Locality,Supplies and Services,328041,Clothing Uniforms and Laundry,01-Jul-2016,5044359861,ARGOS RETAIL GROUP,5310,Clothing uniforms and laundry,286.91,0.00,286.91
Regeneration & Economic Development,Economic Development and Housing,030674,Business Services General,Supplies and Services,348037,Subsistence,01-Jul-2016,5044359887,FINBARRS RESTAURAN,5812,Subsistence,59.13,0.00,59.13
Neighbourhood Services,Direct Services,021242,Catering - County Hall,Supplies and Services,324117,Provisions,01-Jul-2016,5044359927,JR HOLLAND FOODSERVICE,5422,Catering costs - provisions,64.63,0.00,64.63
Neighbourhood Services,Direct Services,021242,Catering - County Hall,Supplies and Services,324117,Provisions,01-Jul-2016,5044359929,JR HOLLAND FOODSERVICE,5422,Catering costs - provisions,26.05,0.00,26.05
Neighbourhood Services,Direct Services,021242,Catering - County Hall,Supplies and Services,324117,Provisions,01-Jul-2016,5044359931,JR HOLLAND FOODSERVICE,5422,Catering costs - provisions,13.16,0.00,13.16
Children and Adult Services,Education,070169,Durham SSP,Supplies and Services,384199,Miscellaneous Expenses,01-Jul-2016,5044359933,Amazon UK Marketplace,5942,Other hired and contracted services,40.12,0.00,40.12
Children and Adult Services,Childrens Services,085958,Support Services,Supplies and Services,384999,Miscellaneous Expenses,01-Jul-2016,5044360029,WWW.THETORTOISESHOP.CO,5995,Other expenses,145.00,0.00,145.00
Children and Adult Services,Childrens Services,085958,Support Services,Supplies and Services,324117,Provisions,01-Jul-2016,5044360031,TESCO STORES 6329,5411,Catering costs - provisions,115.30,0.00,115.30
Children and Adult Services,Childrens Services,085958,Support Services,Supplies and Services,304403,Equipment and Materials,01-Jul-2016,5044360033,Amazon UK Marketplace,5999,Other consumables,-11.99,0.00,-11.99
Neighbourhood Services,Culture & Sport,011060,Hardwick Park Catering,Supplies and Services,324117,Provisions,01-Jul-2016,5044360037,BRAKE BROS LTD,5811,Catering costs - provisions,192.84,32.14,160.70
Neighbourhood Services,Culture & Sport,011060,Hardwick Park Catering,Supplies and Services,324117,Provisions,01-Jul-2016,5044360037 - 1,BRAKE BROS LTD,5811,Catering costs - provisions,182.56,,182.56
Neighbourhood Services,Culture & Sport,011060,Hardwick Park Catering,Supplies and Services,324117,Provisions,01-Jul-2016,5044360039,BRAKE BROS LTD,5811,Catering costs - provisions,245.52,40.92,204.60
Neighbourhood Services,Culture & Sport,011060,Hardwick Park Catering,Supplies and Services,324117,Provisions,01-Jul-2016,5044360039 - 1,BRAKE BROS LTD,5811,Catering costs - provisions,103.93,,103.93
Regeneration & Economic Development,Spatial Policy Planning Assets & Environment,031200,North Pennines Core,Supplies and Services,348037,Subsistence,01-Jul-2016,5044360041,IZ The Golden Lion Ho,5812,Subsistence,60.42,10.07,50.35
Regeneration & Economic Development,Spatial Policy Planning Assets & Environment,031200,North Pennines Core,Supplies and Services,348037,Subsistence,01-Jul-2016,5044360041 - 1,IZ The Golden Lion Ho,5812,Subsistence,0.48,,0.48
Neighbourhood Services,Culture & Sport,054815,Gala Theatre Stage School,Supplies and Services,304259,Equipment and Materials,01-Jul-2016,5044360047,KARAOKE RECISIO,5733,Equipment-purchase and rental,4.50,0.00,4.50
Neighbourhood Services,Culture & Sport,054815,Gala Theatre Stage School,Supplies and Services,328041,Clothing Uniforms and Laundry,01-Jul-2016,5044360049,TOP SHOP,5691,Clothing uniforms and laundry,33.08,0.00,33.08
Neighbourhood Services,Culture & Sport,054815,Gala Theatre Stage School,Supplies and Services,304259,Equipment and Materials,01-Jul-2016,5044360051,LONDON ARRANGEMENTS LT,5733,Equipment-purchase and rental,10.00,0.00,10.00
Neighbourhood Services,Culture & Sport,054815,Gala Theatre Stage School,Supplies and Services,304403,Equipment and Materials,01-Jul-2016,5044360055,PAYPAL AUBURNJAM,5999,Other consumables,6.00,0.00,6.00
Neighbourhood Services,Direct Services,021234,Catering - Locomotion,Supplies and Services,324117,Provisions,01-Jul-2016,5044360061,BRAKE BROS LTD,5811,Catering costs - provisions,78.72,13.12,65.60
Neighbourhood Services,Direct Services,021234,Catering - Locomotion,Supplies and Services,324117,Provisions,01-Jul-2016,5044360061 - 1,BRAKE BROS LTD,5811,Catering costs - provisions,240.68,,240.68
Neighbourhood Services,Direct Services,021234,Catering - Locomotion,Supplies and Services,324117,Provisions,01-Jul-2016,5044360063,BRAKE BROS LTD,5811,Catering costs - provisions,220.80,36.80,184.00
Neighbourhood Services,Direct Services,021234,Catering - Locomotion,Supplies and Services,324117,Provisions,01-Jul-2016,5044360063 - 1,BRAKE BROS LTD,5811,Catering costs - provisions,49.71,,49.71
Neighbourhood Services,Direct Services,010525,Catering - Green Lane,Supplies and Services,324117,Provisions,01-Jul-2016,5044360067,JR HOLLAND FOODSERVICE,5422,Catering costs - provisions,25.44,0.00,25.44
Children and Adult Services,Childrens Services,085957,Secure Management,Premises,115125,Repairs to Grounds,01-Jul-2016,5044360069,JAMES ARMSTRONG & CO L,7216,General maintenance,237.60,39.60,198.00
Resources,I.C.T. Services,069010,Administration,Supplies and Services,304259,Equipment and Materials,01-Jul-2016,5044360089,SUNDERLAND CC,9399,Equipment-purchase and rental,20.00,0.00,20.00
Resources,I.C.T. Services,069010,Administration,Supplies and Services,304259,Equipment and Materials,01-Jul-2016,5044360091,PAYPAL CPS LTD,5732,Equipment-purchase and rental,14.44,0.00,14.44
Neighbourhood Services,Culture & Sport,054399,Local Delivery-Libraries,Supplies and Services,312011,Newspapers Books and Periodicals,01-Jul-2016,5044360109,Amazon EU,5969,Books-school library,22.11,0.00,22.11
Neighbourhood Services,Direct Services,010301,C&G - North Grounds Maintenance,Supplies and Services,324117,Provisions,01-Jul-2016,5044360119,J VAN VLIET GATESHEAD,5399,Catering costs - provisions,194.40,0.00,194.40
Neighbourhood Services,Direct Services,010301,C&G - North Grounds Maintenance,Supplies and Services,304259,Equipment and Materials,01-Jul-2016,5044360121,HARELAW SAWMILL,5211,Equipment-purchase and rental,19.51,3.25,16.26
Neighbourhood Services,Culture & Sport,011206,Sports,Employees,040149,Recruitment Instruction and Training,01-Jul-2016,5044360145,WWW.ULEARNATHLETICS.CO,5941,Training-all costs,160.00,0.00,160.00
Neighbourhood Services,Culture & Sport,011206,Sports,Employees,040149,Recruitment Instruction and Training,01-Jul-2016,5044360147,WWW.ULEARNATHLETICS.CO,5941,Training-all costs,160.00,0.00,160.00
Neighbourhood Services,Direct Services,021324,Catering - Meadowfield,Supplies and Services,324117,Provisions,01-Jul-2016,5044360149,JR HOLLAND FOODSERVICE,5422,Catering costs - provisions,24.69,0.00,24.69
Neighbourhood Services,Direct Services,021324,Catering - Meadowfield,Supplies and Services,324117,Provisions,01-Jul-2016,5044360151,JR HOLLAND FOODSERVICE,5422,Catering costs - provisions,9.87,0.00,9.87
Neighbourhood Services,Culture & Sport,011086,Positive Futures,Supplies and Services,324117,Provisions,01-Jul-2016,5044360171,W M MORRISON PLC,5411,Catering costs - provisions,8.29,0.00,8.29
Children and Adult Services,Childrens Services,088083,Ferryhill 0 - 5,Supplies and Services,324117,Provisions,01-Jul-2016,5044360173,ASDA SUPERSTORE 4987,5411,Catering costs - provisions,8.00,0.00,8.00
Neighbourhood Services,Culture & Sport,010605,Woodhouse Close Leisure Complex,Supplies and Services,324117,Provisions,01-Jul-2016,5044360227,BRAKE BROS LTD,5811,Catering costs - provisions,103.76,0.00,103.76
Regeneration & Economic Development,Economic Development and Housing,030699,Business Growth and Innovation General,Supplies and Services,304403,Equipment and Materials,02-Jul-2016,5044359875,ADOBE CREATIVE CLOUD,5734,Other consumables,45.73,7.62,38.11
Regeneration & Economic Development,Economic Development and Housing,030699,Business Growth and Innovation General,Supplies and Services,312011,Newspapers Books and Periodicals,02-Jul-2016,5044359877,FASTHOSTS INTERNET,4816,Books-school library,59.99,10.00,49.99
Neighbourhood Services,Culture & Sport,054815,Gala Theatre Stage School,Supplies and Services,304259,Equipment and Materials,02-Jul-2016,5044360053,LONDON ARRANGEMENTS LT,5733,Equipment-purchase and rental,10.00,0.00,10.00
Resources,I.C.T. Services,069010,Administration,Supplies and Services,312011,Newspapers Books and Periodicals,02-Jul-2016,5044360093,Amazon UK Marketplace,5942,Books-school library,23.97,0.00,23.97
Resources,I.C.T. Services,069010,Administration,Supplies and Services,312011,Newspapers Books and Periodicals,02-Jul-2016,5044360095,Amazon UK Marketplace,5942,Books-school library,77.63,0.00,77.63
Resources,I.C.T. Services,069010,Administration,Supplies and Services,312011,Newspapers Books and Periodicals,02-Jul-2016,5044360097,Amazon EU,5969,Books-school library,137.58,0.00,137.58
Neighbourhood Services,Direct Services,021235,Catering - Wharton Park,Supplies and Services,324117,Provisions,02-Jul-2016,5044360217,BRAKE BROS LTD,5811,Catering costs - provisions,192.42,32.07,160.35
Neighbourhood Services,Direct Services,021235,Catering - Wharton Park,Supplies and Services,324117,Provisions,02-Jul-2016,5044360217 - 1,BRAKE BROS LTD,5811,Catering costs - provisions,25.45,,25.45
Neighbourhood Services,Direct Services,021235,Catering - Wharton Park,Supplies and Services,324117,Provisions,02-Jul-2016,5044360219,BRAKE BROS LTD,5811,Catering costs - provisions,68.64,11.44,57.20
Neighbourhood Services,Direct Services,021235,Catering - Wharton Park,Supplies and Services,324117,Provisions,02-Jul-2016,5044360219 - 1,BRAKE BROS LTD,5811,Catering costs - provisions,58.61,,58.61
Children and Adult Services,Childrens Services,085380,Operations Manager Adoption & Fostering,Supplies and Services,312011,Newspapers Books and Periodicals,02-Jul-2016,5044360221,Amazon EU,5969,Books-school library,29.11,0.00,29.11
Regeneration & Economic Development,Economic Development and Housing,030554,International Relations,Supplies and Services,304999,Equipment and Materials,02-Jul-2016,5044360257,PHANTASIALAND,5968,Misc equipment tools and materials,"1,694.55",0.00,1694.55
Children and Adult Services,Education,078146,CPD Conferences,Supplies and Services,324117,Provisions,03-Jul-2016,5044360065,SAINSBURYS SACAT 0776,5411,Catering costs - provisions,9.87,1.65,8.22
Children and Adult Services,Childrens Services,088083,Ferryhill 0 - 5,Supplies and Services,328041,Clothing Uniforms and Laundry,03-Jul-2016,5044360175,THE RANGE,5311,Clothing uniforms and laundry,9.99,0.00,9.99
Regeneration & Economic Development,Economic Development and Housing,030554,International Relations,Supplies and Services,304999,Equipment and Materials,04-Jul-2016,5044360259a,PHANTASIALAND,5968,Misc equipment tools and materials,46.60,0.00,46.60
Children and Adult Services,Education,071801,Selby Cottage Childcare Centre,Supplies and Services,304259,Equipment and Materials,04-Jul-2016,5049578533,WILKO RETAIL LIMIT,5722,Equipment-purchase and rental,36.65,0.00,36.65
Children and Adult Services,Education,071801,Selby Cottage Childcare Centre,Supplies and Services,324117,Provisions,04-Jul-2016,5049578537,TESCO STORES 2278,5411,Catering costs - provisions,15.49,0.00,15.49
Neighbourhood Services,EnvironmentHealth & Consumer Protection,010934,Works in Default Holding Code,Income,720130,Fees and Charges,04-Jul-2016,5049578541,WWW.MONEYCLAIM.GOV,9399,Fees-legal,60.00,0.00,60.00
Children and Adult Services,Childrens Services,071380,Bishop Auckland and Barnard Castle Locality,Supplies and Services,324117,Provisions,04-Jul-2016,5049578543,MARKS&SPENCER PLC SF,5411,Catering costs - provisions,15.00,0.00,15.00
Children and Adult Services,Childrens Services,071380,Bishop Auckland and Barnard Castle Locality,Supplies and Services,324117,Provisions,04-Jul-2016,5049578547,TESCO STORES 6329,5411,Catering costs - provisions,31.65,0.00,31.65
Neighbourhood Services,Direct Services,021242,Catering - County Hall,Supplies and Services,324117,Provisions,04-Jul-2016,5049578625,BRAMBLES FOODS LTD,5499,Catering costs - provisions,797.72,0.00,797.72
Neighbourhood Services,Direct Services,021242,Catering - County Hall,Supplies and Services,324117,Provisions,04-Jul-2016,5049578629,JR HOLLAND FOODSERVICE,5422,Catering costs - provisions,65.63,0.00,65.63
Neighbourhood Services,Direct Services,021242,Catering - County Hall,Supplies and Services,324117,Provisions,04-Jul-2016,5049578631,JR HOLLAND FOODSERVICE,5422,Catering costs - provisions,13.52,0.00,13.52
Neighbourhood Services,Direct Services,021242,Catering - County Hall,Supplies and Services,324117,Provisions,04-Jul-2016,5049578633,BRAKE BROS LTD,5811,Catering costs - provisions,331.02,55.17,275.85
Neighbourhood Services,Direct Services,021242,Catering - County Hall,Supplies and Services,324117,Provisions,04-Jul-2016,5049578633 - 1,BRAKE BROS LTD,5811,Catering costs - provisions,180.61,,180.61
Neighbourhood Services,Direct Services,021242,Catering - County Hall,Supplies and Services,324117,Provisions,04-Jul-2016,5049578639,BRAKE BROS LTD,5811,Catering costs - provisions,188.43,0.00,188.43
Children and Adult Services,Childrens Services,088063,Bishop Auckland 0 - 5,Supplies and Services,324117,Provisions,04-Jul-2016,5049578697,SAINSBURYS 2199,5411,Catering costs - provisions,15.92,0.00,15.92
Children and Adult Services,Education,071732,Dean Bank Childcare,Supplies and Services,324117,Provisions,04-Jul-2016,5049578699,ASDA HOME SHOPPING,5411,Catering costs - provisions,66.30,0.00,66.30
Children and Adult Services,Education,071732,Dean Bank Childcare,Supplies and Services,324117,Provisions,04-Jul-2016,5049578701,ASDA HOME SHOPPING,5411,Catering costs - provisions,-3.00,0.00,-3.00
Resources,Legal & Democratic Services,069540,Charter Trust,Supplies and Services,324117,Provisions,04-Jul-2016,5049578705,SAINSBURYS 2199,5411,Catering costs - provisions,4.30,0.00,4.30
Children and Adult Services,Childrens Services,085958,Support Services,Supplies and Services,324117,Provisions,04-Jul-2016,5049578717,TESCO STORES 6329,5411,Catering costs - provisions,48.09,0.00,48.09
Neighbourhood Services,Direct Services,010301,C&G - North Grounds Maintenance,Supplies and Services,304403,Equipment and Materials,04-Jul-2016,5049578725,BESCOL,5231,Other consumables,14.58,2.43,12.15
Neighbourhood Services,Direct Services,010301,C&G - North Grounds Maintenance,Supplies and Services,304259,Equipment and Materials,04-Jul-2016,5049578727,HARELAW SAWMILL,5211,Equipment-purchase and rental,99.32,16.55,82.77
Neighbourhood Services,Culture & Sport,011060,Hardwick Park Catering,Supplies and Services,324117,Provisions,04-Jul-2016,5049578729,JR HOLLAND FOODSERVICE,5422,Catering costs - provisions,32.14,0.00,32.14
Neighbourhood Services,Direct Services,010525,Catering - Green Lane,Supplies and Services,324117,Provisions,04-Jul-2016,5049578759,BRAMBLES FOODS LTD,5499,Catering costs - provisions,88.09,0.00,88.09
Children and Adult Services,Childrens Services,085352,Tow Law CU,Supplies and Services,324117,Provisions,04-Jul-2016,5049578773,TESCO STORES 2371,5411,Catering costs - provisions,179.01,0.00,179.01
Children and Adult Services,Education,070155,Inspection-HQ,Supplies and Services,352001,Conference Expenses,04-Jul-2016,5049578779,THE ABBEY HOTEL,7011,Conferencesseminars fees etc,79.00,13.17,65.83
Neighbourhood Services,Direct Services,010367,C&G - South Grounds Maintenance,Supplies and Services,304259,Equipment and Materials,04-Jul-2016,5049578783,SCREWFIX,5211,Equipment-purchase and rental,17.90,0.00,17.90
Neighbourhood Services,Direct Services,010367,C&G - South Grounds Maintenance,Supplies and Services,304259,Equipment and Materials,04-Jul-2016,5049578787,SCREWFIX,5211,Equipment-purchase and rental,10.59,0.00,10.59
Regeneration & Economic Development,Economic Development and Housing,030737,Durham Works Flexible Fund,Supplies and Services,384700,Miscellaneous Expenses,04-Jul-2016,5049578793,ICELAND,5411,Miscellaneous grants,46.61,0.00,46.61
Resources,I.C.T. Services,069010,Administration,Supplies and Services,312011,Newspapers Books and Periodicals,04-Jul-2016,5049578803,Amazon UK Marketplace,5942,Books-school library,23.97,0.00,23.97
Resources,I.C.T. Services,069010,Administration,Supplies and Services,312011,Newspapers Books and Periodicals,04-Jul-2016,5049578805,Amazon UK Marketplace,5942,Books-school library,13.98,0.00,13.98
Resources,I.C.T. Services,069010,Administration,Transport,235057,Public Transport,04-Jul-2016,5049578809,OYSTER RENEW WEB,4112,Staff travelling,50.00,0.00,50.00
Neighbourhood Services,Culture & Sport,011204,Events,Supplies and Services,324117,Provisions,04-Jul-2016,5049578813,TESCO STORES 6029,5411,Catering costs - provisions,26.43,0.00,26.43
Neighbourhood Services,Culture & Sport,054399,Local Delivery-Libraries,Supplies and Services,312011,Newspapers Books and Periodicals,04-Jul-2016,5049578815,Amazon EU,5969,Books-school library,38.94,0.00,38.94
Neighbourhood Services,Direct Services,010301,C&G - North Grounds Maintenance,Supplies and Services,312011,Newspapers Books and Periodicals,04-Jul-2016,5049578835,GRALANDS WOODWORK SUPP,5251,Books-school library,85.19,0.00,85.19
Neighbourhood Services,Direct Services,010301,C&G - North Grounds Maintenance,Supplies and Services,304999,Equipment and Materials,04-Jul-2016,5049578839,NEW ROW FARM NURSERIES,5193,Misc equipment tools and materials,392.23,65.37,326.86
Resources,Financial Services,052865,SF-Financial Services Team,Supplies and Services,338048,Services,04-Jul-2016,5049578843,HMCOURTS-SERVICE.G,9222,Court Costs,"6,684.00",0.00,6684.00
Neighbourhood Services,Culture & Sport,054235,Bp Auckland Town Hall Cafe,Supplies and Services,324117,Provisions,04-Jul-2016,5049578861,JR HOLLAND FOODSERVICE,5422,Catering costs - provisions,2.33,0.00,2.33
Neighbourhood Services,Direct Services,021324,Catering - Meadowfield,Supplies and Services,324117,Provisions,04-Jul-2016,5049578865,BRAMBLES FOODS LTD,5499,Catering costs - provisions,75.78,0.00,75.78
Neighbourhood Services,Direct Services,021324,Catering - Meadowfield,Supplies and Services,324117,Provisions,04-Jul-2016,5049578867,JR HOLLAND FOODSERVICE,5422,Catering costs - provisions,-9.87,0.00,-9.87
Children and Adult Services,Childrens Services,088083,Ferryhill 0 - 5,Supplies and Services,324117,Provisions,04-Jul-2016,5049578907,ASDA HOME SHOPPING,5411,Catering costs - provisions,38.64,0.00,38.64
Neighbourhood Services,Direct Services,021235,Catering - Wharton Park,Supplies and Services,324117,Provisions,04-Jul-2016,5049578931,BRAKE BROS LTD,5811,Catering costs - provisions,120.00,20.00,100.00
Neighbourhood Services,Direct Services,021235,Catering - Wharton Park,Supplies and Services,324117,Provisions,04-Jul-2016,5049578931 - 1,BRAKE BROS LTD,5811,Catering costs - provisions,16.30,,16.30
Neighbourhood Services,Culture & Sport,010605,Woodhouse Close Leisure Complex,Supplies and Services,324117,Provisions,04-Jul-2016,5049578939,JR HOLLAND FOODSERVICE,5422,Catering costs - provisions,35.45,0.00,35.45
Neighbourhood Services,Culture & Sport,011204,Events,Supplies and Services,384999,Miscellaneous Expenses,04-Jul-2016,5049578943,AJ PRINT AND PROMOTION,2741,Other expenses,378.00,63.00,315.00
Regeneration & Economic Development,Economic Development and Housing,030689,Inward Investment and Aftercare,Supplies and Services,338064,Services,04-Jul-2016,5049578947,DISCLOSURE SCOT,9399,Disclosure & Barring (DBS) Fees,25.00,0.00,25.00
Children and Adult Services,Childrens Services,085516,First Contact Team,Supplies and Services,338064,Services,04-Jul-2016,5049578949,DISCLOSURE SCOT,9399,Disclosure & Barring (DBS) Fees,25.00,0.00,25.00
Assistant Chief Executive,Partnerships & Community Engagement Div.,060472,Syrian Vulnerable Persons Scheme,Supplies and Services,304259,Equipment and Materials,04-Jul-2016,5049578961,ARGOS LTD,5310,Equipment-purchase and rental,227.94,0.00,227.94
Regeneration & Economic Development,Economic Development and Housing,030699,Business Growth and Innovation General,Supplies and Services,342033,Computers and Communications,04-Jul-2016,5051754871,MEETEDGAR.COM STARTER,7372,Computer hardware,36.74,0.00,36.74
Neighbourhood Services,Culture & Sport,011219,Office Services,Supplies and Services,336005,Advertising,04-Jul-2016,5051754961,FACEBOOK 8CT4W9W8Y2,7311,Advertising other than for staff,360.82,0.00,360.82
Children and Adult Services,AWH Redundant Cost Centres,052974,Stanley Education Centre,Supplies and Services,340001,Postages,04-Jul-2016,5051755313,WWW.ROYALMAIL.COM,9402,Postages,110.00,0.00,110.00
Neighbourhood Services,Direct Services,010341,Nei.Prot - N. Wardens,Supplies and Services,340001,Postages,04-Jul-2016,5051755317,WWW.ROYALMAIL.COM,9402,Postages,64.00,0.00,64.00
Regeneration & Economic Development,Spatial Policy Planning Assets & Environment,031221,North Pennines - Bowlees,Supplies and Services,384999,Miscellaneous Expenses,04-Jul-2016,5057493033,Something Different,5999,Other expenses,40.94,6.82,34.12
Children and Adult Services,Education,071801,Selby Cottage Childcare Centre,Supplies and Services,324117,Provisions,05-Jul-2016,5051754831,ASDA STORES LTD 4313,5411,Catering costs - provisions,28.05,0.00,28.05
Neighbourhood Services,EnvironmentHealth & Consumer Protection,010934,Works in Default Holding Code,Income,720130,Fees and Charges,05-Jul-2016,5051754833,WWW.MONEYCLAIM.GOV,9399,Fees-legal,35.00,0.00,35.00
Children and Adult Services,Childrens Services,071380,Bishop Auckland and Barnard Castle Locality,Supplies and Services,324117,Provisions,05-Jul-2016,5051754837,TESCO STORES 6329,5411,Catering costs - provisions,3.00,0.00,3.00
Neighbourhood Services,Direct Services,010383,C&G - South Street Cleansing,Supplies and Services,328041,Clothing Uniforms and Laundry,05-Jul-2016,5051754855,THOMAS OWEN & SONS /N/,5611,Clothing uniforms and laundry,23.58,3.93,19.65
Neighbourhood Services,Direct Services,021242,Catering - County Hall,Supplies and Services,324117,Provisions,05-Jul-2016,5051754901,FREEMAN CATERING BUTCH,5422,Catering costs - provisions,72.49,0.00,72.49
Neighbourhood Services,Direct Services,021242,Catering - County Hall,Supplies and Services,324117,Provisions,05-Jul-2016,5051754905,JR HOLLAND FOODSERVICE,5422,Catering costs - provisions,41.44,0.00,41.44
Neighbourhood Services,Direct Services,021242,Catering - County Hall,Supplies and Services,324117,Provisions,05-Jul-2016,5051754907,JR HOLLAND FOODSERVICE,5422,Catering costs - provisions,16.36,0.00,16.36
Neighbourhood Services,Direct Services,021242,Catering - County Hall,Supplies and Services,324117,Provisions,05-Jul-2016,5051754909,JR HOLLAND FOODSERVICE,5422,Catering costs - provisions,6.58,0.00,6.58
Resources,I.C.T. Services,065464,Domains,Supplies and Services,372009,Subscriptions,05-Jul-2016,5051754917,WEB NETWORKSOLUTIONS,5968,Subscriptions,1.81,0.00,1.81
Neighbourhood Services,Direct Services,010367,C&G - South Grounds Maintenance,Supplies and Services,304259,Equipment and Materials,05-Jul-2016,5051754923,B & Q 1120,5211,Equipment-purchase and rental,43.00,7.17,35.83
Neighbourhood Services,Culture & Sport,054812,Gala Theatre - Catering etc,Supplies and Services,324117,Provisions,05-Jul-2016,5051754929,JR HOLLAND FOODSERVICE,5422,Catering costs - provisions,27.25,0.00,27.25
Neighbourhood Services,Culture & Sport,054812,Gala Theatre - Catering etc,Supplies and Services,324117,Provisions,05-Jul-2016,5051754933,BRAKE BROS LTD,5811,Catering costs - provisions,100.74,16.79,83.95
Neighbourhood Services,Culture & Sport,054812,Gala Theatre - Catering etc,Supplies and Services,324117,Provisions,05-Jul-2016,5051754933 - 1,BRAKE BROS LTD,5811,Catering costs - provisions,86.99,,86.99
Neighbourhood Services,Culture & Sport,054812,Gala Theatre - Catering etc,Supplies and Services,324117,Provisions,05-Jul-2016,5051754935,BRAKE BROS LTD,5811,Catering costs - provisions,40.03,0.00,40.03
Children and Adult Services,Childrens Services,085351,Framwellgate Moor CU,Supplies and Services,324117,Provisions,05-Jul-2016,5051754951,ASDA HOME SHOPPING,5411,Catering costs - provisions,164.42,0.00,164.42
Children and Adult Services,Childrens Services,085351,Framwellgate Moor CU,Supplies and Services,324117,Provisions,05-Jul-2016,5051754953,ASDA HOME SHOPPING,5411,Catering costs - provisions,-0.36,0.00,-0.36
Children and Adult Services,Childrens Services,088066,Bishop Auckland Teenage Parent Programme,Supplies and Services,338099,Services,05-Jul-2016,5051754979,FLAMINGOLAND LTD,7033,Other services,120.90,0.00,120.90
Children and Adult Services,Childrens Services,088066,Bishop Auckland Teenage Parent Programme,Supplies and Services,384999,Miscellaneous Expenses,05-Jul-2016,5051754983,BURGER BARS,7922,Other expenses,74.00,0.00,74.00
Children and Adult Services,Head of Adults,056601,Substance Misuse,Supplies and Services,304403,Equipment and Materials,05-Jul-2016,5051754989,ARRIVA PASSENGER S,7538,Other consumables,92.00,0.00,92.00
Children and Adult Services,Childrens Services,085958,Support Services,Supplies and Services,312011,Newspapers Books and Periodicals,05-Jul-2016,5051755009,"Amazon Svcs Europe,SAR",5942,Books-school library,89.99,0.00,89.99
Children and Adult Services,Childrens Services,085958,Support Services,Supplies and Services,312011,Newspapers Books and Periodicals,05-Jul-2016,5051755013,Amazon EU,5969,Books-school library,7.89,0.00,7.89
Children and Adult Services,Childrens Services,085958,Support Services,Supplies and Services,304259,Equipment and Materials,05-Jul-2016,5051755015,WWW.FOOTASYLUM.COM,5941,Equipment-purchase and rental,353.95,0.00,353.95
Children and Adult Services,Childrens Services,085958,Support Services,Supplies and Services,304403,Equipment and Materials,05-Jul-2016,5051755017,TESCO DIRECT,5999,Other consumables,39.60,0.00,39.60
Neighbourhood Services,Direct Services,010301,C&G - North Grounds Maintenance,Supplies and Services,304259,Equipment and Materials,05-Jul-2016,5051755021,B & Q 1203,5211,Equipment-purchase and rental,18.00,0.00,18.00
Neighbourhood Services,Culture & Sport,011060,Hardwick Park Catering,Supplies and Services,324117,Provisions,05-Jul-2016,5051755025,FREEMAN CATERING BUTCH,5422,Catering costs - provisions,33.92,0.00,33.92
Neighbourhood Services,Culture & Sport,011060,Hardwick Park Catering,Supplies and Services,324117,Provisions,05-Jul-2016,5051755029,FREEMAN CATERING BUTCH,5422,Catering costs - provisions,32.57,0.00,32.57
Neighbourhood Services,Culture & Sport,011060,Hardwick Park Catering,Supplies and Services,324117,Provisions,05-Jul-2016,5051755033,JR HOLLAND FOODSERVICE,5422,Catering costs - provisions,108.27,0.00,108.27
Neighbourhood Services,Culture & Sport,011060,Hardwick Park Catering,Supplies and Services,324117,Provisions,05-Jul-2016,5051755035,JR HOLLAND FOODSERVICE,5422,Catering costs - provisions,12.94,0.00,12.94
Resources,I.C.T. Services,065335,Operations - System & Repairs Trading,Supplies and Services,342033,Computers and Communications,05-Jul-2016,5051755043,WWW.CHSINTERACTIVE.CO.,5065,Computer hardware,120.60,20.10,100.50
Resources,I.C.T. Services,065335,Operations - System & Repairs Trading,Supplies and Services,342033,Computers and Communications,05-Jul-2016,5051755045,THE REPLACE BASE LTD,5999,Computer hardware,75.42,0.00,75.42
Neighbourhood Services,Culture & Sport,054815,Gala Theatre Stage School,Supplies and Services,328041,Clothing Uniforms and Laundry,05-Jul-2016,5051755049,MUNCO INTERNATIONAL LI,5691,Clothing uniforms and laundry,86.40,0.00,86.40
Regeneration & Economic Development,Economic Development and Housing,030762,Organisational Training & Development,Employees,040149,Recruitment Instruction and Training,05-Jul-2016,5051755053,CITB,8220,Training-all costs,30.00,5.00,25.00
Regeneration & Economic Development,Economic Development and Housing,030762,Organisational Training & Development,Employees,040149,Recruitment Instruction and Training,05-Jul-2016,5051755057,CITB,8220,Training-all costs,30.00,5.00,25.00
Neighbourhood Services,Direct Services,010525,Catering - Green Lane,Supplies and Services,324117,Provisions,05-Jul-2016,5051755083,FREEMAN CATERING BUTCH,5422,Catering costs - provisions,76.54,0.00,76.54
Neighbourhood Services,Direct Services,010525,Catering - Green Lane,Supplies and Services,324117,Provisions,05-Jul-2016,5051755085,BRAKE BROS LTD,5811,Catering costs - provisions,30.00,5.00,25.00
Neighbourhood Services,Direct Services,010525,Catering - Green Lane,Supplies and Services,324117,Provisions,05-Jul-2016,5051755085 - 1,BRAKE BROS LTD,5811,Catering costs - provisions,96.63,,96.63
Children and Adult Services,Education,071903,EYDCP-Sustainability EDS,Supplies and Services,304403,Equipment and Materials,05-Jul-2016,5051755091,Amazon EU,5969,Other consumables,6.41,0.00,6.41
Neighbourhood Services,Direct Services,010367,C&G - South Grounds Maintenance,Supplies and Services,304259,Equipment and Materials,05-Jul-2016,5051755123,SCREWFIX,5211,Equipment-purchase and rental,57.96,0.00,57.96
Neighbourhood Services,Direct Services,010367,C&G - South Grounds Maintenance,Supplies and Services,304221,Equipment and Materials,05-Jul-2016,5051755127,R DEFTY,5200,Direct materials,15.00,0.00,15.00
Regeneration & Economic Development,Economic Development and Housing,030749,Employability - Youth Contract,Supplies and Services,384700,Miscellaneous Expenses,05-Jul-2016,5051755135,WM MORRISONS,5411,Miscellaneous grants,99.67,0.00,99.67
Neighbourhood Services,Culture & Sport,011191,Wellbeing4Life,Supplies and Services,324117,Provisions,05-Jul-2016,5051755145,ASDA SUPERSTORE 4987,5411,Catering costs - provisions,26.43,0.00,26.43
Regeneration & Economic Development,Spatial Policy Planning Assets & Environment,031202,North Pennines - Peatscapes,Supplies and Services,340001,Postages,05-Jul-2016,5051755149,THE POST OFFICE,9402,Postages,36.85,0.00,36.85
Resources,I.C.T. Services,069010,Administration,Supplies and Services,312011,Newspapers Books and Periodicals,05-Jul-2016,5051755155,Amazon UK Marketplace,5942,Books-school library,6.87,0.00,6.87
Resources,I.C.T. Services,069010,Administration,Supplies and Services,312011,Newspapers Books and Periodicals,05-Jul-2016,5051755159,Amazon UK Marketplace,5942,Books-school library,11.94,0.00,11.94
Resources,I.C.T. Services,069010,Administration,Supplies and Services,312011,Newspapers Books and Periodicals,05-Jul-2016,5051755161,Amazon UK Marketplace,5942,Books-school library,47.94,0.00,47.94
Resources,I.C.T. Services,069010,Administration,Supplies and Services,312011,Newspapers Books and Periodicals,05-Jul-2016,5051755165,Amazon UK Marketplace,5942,Books-school library,7.99,0.00,7.99
Resources,Financial Services,065180,Collections,Supplies and Services,338048,Services,05-Jul-2016,5051755173,HMCOURTS-SERVICE.G,9222,Court Costs,695.00,0.00,695.00
Children and Adult Services,Childrens Services,071370,Peterlee and Seaham Locality,Supplies and Services,304403,Equipment and Materials,05-Jul-2016,5051755203,TESCO - Hughes,5999,Other consumables,109.98,0.00,109.98
Children and Adult Services,Childrens Services,071370,Peterlee and Seaham Locality,Supplies and Services,304403,Equipment and Materials,05-Jul-2016,5051755205,TESCO - Tescopay,5999,Other consumables,30.00,0.00,30.00
Children and Adult Services,Childrens Services,085801,CDYOS - Support,Supplies and Services,304259,Equipment and Materials,05-Jul-2016,5051755207,B&Q DIRECT,5211,Equipment-purchase and rental,52.00,0.00,52.00
Neighbourhood Services,Culture & Sport,054235,Bp Auckland Town Hall Cafe,Supplies and Services,324117,Provisions,05-Jul-2016,5051755211,JR HOLLAND FOODSERVICE,5422,Catering costs - provisions,19.22,0.00,19.22
Neighbourhood Services,Direct Services,021324,Catering - Meadowfield,Supplies and Services,324117,Provisions,05-Jul-2016,5051755215,FREEMAN CATERING BUTCH,5422,Catering costs - provisions,56.73,0.00,56.73
Neighbourhood Services,Direct Services,021324,Catering - Meadowfield,Supplies and Services,324117,Provisions,05-Jul-2016,5051755217,FREEMAN CATERING BUTCH,5422,Catering costs - provisions,41.36,0.00,41.36
Neighbourhood Services,Direct Services,021324,Catering - Meadowfield,Supplies and Services,324117,Provisions,05-Jul-2016,5051755219,BRAKE BROS LTD,5811,Catering costs - provisions,56.52,0.00,56.52
Neighbourhood Services,Culture & Sport,011086,Positive Futures,Supplies and Services,324117,Provisions,05-Jul-2016,5051755237,ASDA STORES LTD,5411,Catering costs - provisions,29.89,0.00,29.89
Children and Adult Services,Childrens Services,088083,Ferryhill 0 - 5,Supplies and Services,324117,Provisions,05-Jul-2016,5051755241,ASDA SUPERSTORE 4987,5411,Catering costs - provisions,5.28,0.00,5.28
Neighbourhood Services,Direct Services,021235,Catering - Wharton Park,Supplies and Services,324117,Provisions,05-Jul-2016,5051755263,JR HOLLAND FOODSERVICE,5422,Catering costs - provisions,13.48,0.00,13.48
Neighbourhood Services,Direct Services,021235,Catering - Wharton Park,Supplies and Services,324117,Provisions,05-Jul-2016,5051755267,BRAKE BROS LTD,5811,Catering costs - provisions,237.84,39.64,198.20
Neighbourhood Services,Direct Services,021235,Catering - Wharton Park,Supplies and Services,324117,Provisions,05-Jul-2016,5051755267 - 1,BRAKE BROS LTD,5811,Catering costs - provisions,4.08,,4.08
Neighbourhood Services,Direct Services,021235,Catering - Wharton Park,Supplies and Services,324117,Provisions,05-Jul-2016,5051755271,BRAKE BROS LTD,5811,Catering costs - provisions,-2.05,0.00,-2.05
Neighbourhood Services,Culture & Sport,010605,Woodhouse Close Leisure Complex,Supplies and Services,324117,Provisions,05-Jul-2016,5051755273,FREEMAN CATERING BUTCH,5422,Catering costs - provisions,43.80,0.00,43.80
Regeneration & Economic Development,Economic Development and Housing,030708,VCD - Marketing & Information,Supplies and Services,336005,Advertising,05-Jul-2016,5051755277,GOOGLE ADWS9716261465,5968,Advertising other than for staff,"1,500.00",0.00,1500.00
Children and Adult Services,Childrens Services,074000,TTF-Attachment and Results,Supplies and Services,304403,Equipment and Materials,05-Jul-2016,5051755329,TESCO - Seller_IST_1_2,5999,Other consumables,206.99,0.00,206.99
Children and Adult Services,Childrens Services,074000,TTF-Attachment and Results,Supplies and Services,304403,Equipment and Materials,05-Jul-2016,5051755333,TESCO DIRECT,5999,Other consumables,146.95,0.00,146.95
Children and Adult Services,Childrens Services,085958,Support Services,Supplies and Services,328041,Clothing Uniforms and Laundry,05-Jul-2016,5057493153,gethelabel.com,5651,Clothing uniforms and laundry,125.88,0.00,125.88
Children and Adult Services,Childrens Services,085958,Support Services,Supplies and Services,328041,Clothing Uniforms and Laundry,05-Jul-2016,5148607001,FLANNELSFASHION.,5691,Clothing uniforms and laundry,44.99,7.50,37.49
Children and Adult Services,Childrens Services,085958,Support Services,Supplies and Services,304259,Equipment and Materials,05-Jul-2016,5148607003,SPORTSDIRECT.COM,5941,Equipment-purchase and rental,14.74,2.46,12.28
Children and Adult Services,Childrens Services,085958,Support Services,Supplies and Services,328041,Clothing Uniforms and Laundry,05-Jul-2016,5148607005,NEW LOOK INTERNET,5621,Clothing uniforms and laundry,26.98,0.00,26.98
Children and Adult Services,Childrens Services,085958,Support Services,Supplies and Services,328041,Clothing Uniforms and Laundry,05-Jul-2016,5148607011,WWW.TOPSHOP.COM,5691,Clothing uniforms and laundry,20.00,0.00,20.00
Neighbourhood Services,Culture & Sport,010593,Shildon Leisure Centre - General,Supplies and Services,384999,Miscellaneous Expenses,06-Jul-2016,5051754853,Amazon UK Marketplace,5942,Other expenses,65.85,0.00,65.85
Regeneration & Economic Development,Economic Development and Housing,030699,Business Growth and Innovation General,Supplies and Services,342033,Computers and Communications,06-Jul-2016,5051754875a,MEETEDGAR.COM STARTER,7372,Computer hardware,1.01,0.00,1.01
Resources,I.C.T. Services,065464,Domains,Supplies and Services,372009,Subscriptions,06-Jul-2016,5051754921,WEB NETWORKSOLUTIONS,5968,Subscriptions,0.05,0.00,0.05
Children and Adult Services,Childrens Services,085380,Operations Manager Adoption & Fostering,Employees,040149,Recruitment Instruction and Training,06-Jul-2016,5057493281,WWW.CORAM.ORG.UK,8398,Training-all costs,11.95,1.99,9.96
Children and Adult Services,Education,071733,Shildon Childcare,Supplies and Services,324117,Provisions,06-Jul-2016,5148606893,TESCO STORES 2916,5411,Catering costs - provisions,19.36,0.00,19.36
Resources,Financial Services,065180,Collections,Income,720130,Fees and Charges,06-Jul-2016,5148606909,WWW.GOV.UK,8999,Fees-legal,10.00,0.00,10.00
Children and Adult Services,Childrens Services,085342,9 Cedar Drive Aycliffe,Employees,040149,Recruitment Instruction and Training,06-Jul-2016,5148606911,PARENTPAY.COM,8220,Training-all costs,25.00,0.00,25.00
Children and Adult Services,Childrens Services,085342,9 Cedar Drive Aycliffe,Supplies and Services,304403,Equipment and Materials,06-Jul-2016,5148606913,PAYPAL MAIL2RSL,5999,Other consumables,7.59,0.00,7.59
Neighbourhood Services,Direct Services,010367,C&G - South Grounds Maintenance,Supplies and Services,304259,Equipment and Materials,06-Jul-2016,5148606923,J T DOVE LTD,5211,Equipment-purchase and rental,70.31,11.72,58.59
Neighbourhood Services,Direct Services,011068,Nei.Prot - Civic Pride,Supplies and Services,384999,Miscellaneous Expenses,06-Jul-2016,5148606935,LOVE2SHOP.CO.UK,8641,Other expenses,50.00,0.00,50.00
Children and Adult Services,Head of Adults,055301,Stanley Pathways,Supplies and Services,384999,Miscellaneous Expenses,06-Jul-2016,5148606937,ASDA 4387,5411,Other expenses,34.50,5.75,28.75
Neighbourhood Services,Direct Services,021242,Catering - County Hall,Supplies and Services,324117,Provisions,06-Jul-2016,5148606939,JR HOLLAND FOODSERVICE,5422,Catering costs - provisions,153.95,0.00,153.95
Neighbourhood Services,Direct Services,021242,Catering - County Hall,Supplies and Services,324117,Provisions,06-Jul-2016,5148606941,JR HOLLAND FOODSERVICE,5422,Catering costs - provisions,37.09,0.00,37.09
Neighbourhood Services,Direct Services,021242,Catering - County Hall,Supplies and Services,324117,Provisions,06-Jul-2016,5148606943,JR HOLLAND FOODSERVICE,5422,Catering costs - provisions,31.35,0.00,31.35
Neighbourhood Services,Culture & Sport,011219,Office Services,Supplies and Services,304999,Equipment and Materials,06-Jul-2016,5148606959,GOOGLE ADWS2420292471,5968,Misc equipment tools and materials,17.30,0.00,17.30
Regeneration & Economic Development,Economic Development and Housing,030553,Europe Direct Scheme,Supplies and Services,312011,Newspapers Books and Periodicals,06-Jul-2016,5148606981,Amazon EU,5969,Books-school library,10.00,0.00,10.00
Children and Adult Services,Childrens Services,085958,Support Services,Supplies and Services,312011,Newspapers Books and Periodicals,06-Jul-2016,5148606997,Amazon UK Marketplace,5942,Books-school library,29.49,0.00,29.49
Children and Adult Services,Childrens Services,085958,Support Services,Supplies and Services,312011,Newspapers Books and Periodicals,06-Jul-2016,5148606999,Amazon EU,5969,Books-school library,303.00,0.00,303.00
Children and Adult Services,Childrens Services,085958,Support Services,Supplies and Services,324117,Provisions,06-Jul-2016,5148607007,ASDA HOME SHOPPING,5411,Catering costs - provisions,145.00,0.00,145.00
Children and Adult Services,Childrens Services,085958,Support Services,Supplies and Services,324117,Provisions,06-Jul-2016,5148607009,TESCO STORES 6329,5411,Catering costs - provisions,70.60,0.00,70.60
Children and Adult Services,Childrens Services,085958,Support Services,Supplies and Services,324117,Provisions,06-Jul-2016,5148607013,ASDA HOME SHOPPING,5411,Catering costs - provisions,-14.00,0.00,-14.00
Neighbourhood Services,Direct Services,010301,C&G - North Grounds Maintenance,Supplies and Services,304403,Equipment and Materials,06-Jul-2016,5148607019,BESCOL,5231,Other consumables,35.38,5.90,29.48
Neighbourhood Services,Direct Services,010301,C&G - North Grounds Maintenance,Supplies and Services,328041,Clothing Uniforms and Laundry,06-Jul-2016,5148607021,THOMAS OWEN & SONS /N/,5611,Clothing uniforms and laundry,240.56,0.00,240.56
Neighbourhood Services,Culture & Sport,011060,Hardwick Park Catering,Supplies and Services,324117,Provisions,06-Jul-2016,5148607023,JR HOLLAND FOODSERVICE,5422,Catering costs - provisions,41.66,0.00,41.66
Neighbourhood Services,Culture & Sport,011060,Hardwick Park Catering,Supplies and Services,324117,Provisions,06-Jul-2016,5148607025,BRAKE BROS LTD,5811,Catering costs - provisions,338.16,56.36,281.80
Neighbourhood Services,Culture & Sport,011060,Hardwick Park Catering,Supplies and Services,324117,Provisions,06-Jul-2016,5148607025 - 1,BRAKE BROS LTD,5811,Catering costs - provisions,82.24,,82.24
Neighbourhood Services,Culture & Sport,011060,Hardwick Park Catering,Supplies and Services,324117,Provisions,06-Jul-2016,5148607027,BRAKE BROS LTD,5811,Catering costs - provisions,163.68,27.28,136.40
Neighbourhood Services,Culture & Sport,011060,Hardwick Park Catering,Supplies and Services,324117,Provisions,06-Jul-2016,5148607027 - 1,BRAKE BROS LTD,5811,Catering costs - provisions,247.26,,247.26
Neighbourhood Services,Culture & Sport,054815,Gala Theatre Stage School,Supplies and Services,328041,Clothing Uniforms and Laundry,06-Jul-2016,5148607031,BANBURY POSTICHE LTD,5698,Clothing uniforms and laundry,51.42,0.00,51.42
Neighbourhood Services,Culture & Sport,054815,Gala Theatre Stage School,Supplies and Services,304221,Equipment and Materials,06-Jul-2016,5148607033,FILM MEDICAL SERVICES,7394,Direct materials,120.00,0.00,120.00
Neighbourhood Services,Culture & Sport,054815,Gala Theatre Stage School,Supplies and Services,328041,Clothing Uniforms and Laundry,06-Jul-2016,5148607035,PAYPAL MISS SHOES,5661,Clothing uniforms and laundry,31.66,0.00,31.66
Neighbourhood Services,Culture & Sport,054815,Gala Theatre Stage School,Supplies and Services,304999,Equipment and Materials,06-Jul-2016,5148607037,SUPERDRUG STORES PLC,5912,Misc equipment tools and materials,40.78,0.00,40.78
Regeneration & Economic Development,Economic Development and Housing,030762,Organisational Training & Development,Employees,040149,Recruitment Instruction and Training,06-Jul-2016,5148607039,CITB,8220,Training-all costs,30.00,5.00,25.00
Regeneration & Economic Development,Economic Development and Housing,030762,Organisational Training & Development,Employees,040149,Recruitment Instruction and Training,06-Jul-2016,5148607041,CITB,8220,Training-all costs,30.00,5.00,25.00
Neighbourhood Services,Direct Services,010525,Catering - Green Lane,Supplies and Services,324117,Provisions,06-Jul-2016,5148607051,JR HOLLAND FOODSERVICE,5422,Catering costs - provisions,32.85,0.00,32.85
Neighbourhood Services,Direct Services,010525,Catering - Green Lane,Supplies and Services,324117,Provisions,06-Jul-2016,5148607053,BRAKE BROS LTD,5811,Catering costs - provisions,69.33,0.00,69.33
Children and Adult Services,Education,071903,EYDCP-Sustainability EDS,Supplies and Services,304403,Equipment and Materials,06-Jul-2016,5148607055,Amazon UK Marketplace,5942,Other consumables,20.30,0.00,20.30
Children and Adult Services,Childrens Services,088063,Bishop Auckland 0 - 5,Supplies and Services,324117,Provisions,06-Jul-2016,5148607065,SAINSBURYS SACAT 2199,5411,Catering costs - provisions,3.25,0.00,3.25
Children and Adult Services,Childrens Services,088063,Bishop Auckland 0 - 5,Supplies and Services,304403,Equipment and Materials,06-Jul-2016,5148607067,WILKO RETAIL LIMIT,5722,Other consumables,3.95,0.00,3.95
Resources,I.C.T. Services,069010,Administration,Supplies and Services,312011,Newspapers Books and Periodicals,06-Jul-2016,5148607083,Amazon UK Marketplace,5942,Books-school library,58.20,0.00,58.20
Resources,I.C.T. Services,069010,Administration,Supplies and Services,312011,Newspapers Books and Periodicals,06-Jul-2016,5148607085,Amazon UK Marketplace,5942,Books-school library,9.97,0.00,9.97
Resources,I.C.T. Services,069010,Administration,Supplies and Services,312011,Newspapers Books and Periodicals,06-Jul-2016,5148607087,Amazon UK Marketplace,5942,Books-school library,12.98,0.00,12.98
Neighbourhood Services,Culture & Sport,011206,Sports,Employees,040149,Recruitment Instruction and Training,06-Jul-2016,5148607109,TYNE AND WEAR SPORT,8299,Training-all costs,250.00,0.00,250.00
Neighbourhood Services,Culture & Sport,054235,Bp Auckland Town Hall Cafe,Supplies and Services,324117,Provisions,06-Jul-2016,5148607111,JR HOLLAND FOODSERVICE,5422,Catering costs - provisions,13.29,0.00,13.29
Regeneration & Economic Development,Transport and Contracted Services,031701,Care Connect All Localities,Supplies and Services,344033,Telephones,06-Jul-2016,5148607113,BT BILL PAYMENT 2,4812,Telephones general-all costs,79.08,13.18,65.90
Regeneration & Economic Development,Transport and Contracted Services,031701,Care Connect All Localities,Supplies and Services,344033,Telephones,06-Jul-2016,5148607115,BT BILL PAYMENT 2,4812,Telephones general-all costs,59.97,10.00,49.97
Regeneration & Economic Development,Transport and Contracted Services,031701,Care Connect All Localities,Supplies and Services,344033,Telephones,06-Jul-2016,5148607117,BT BILL PAYMENT 2,4812,Telephones general-all costs,88.82,14.80,74.02
Regeneration & Economic Development,Transport and Contracted Services,031701,Care Connect All Localities,Supplies and Services,344033,Telephones,06-Jul-2016,5148607119,BT BILL PAYMENT 2,4812,Telephones general-all costs,90.55,15.09,75.46
Neighbourhood Services,Direct Services,021324,Catering - Meadowfield,Supplies and Services,324117,Provisions,06-Jul-2016,5148607121,JR HOLLAND FOODSERVICE,5422,Catering costs - provisions,16.96,0.00,16.96
Neighbourhood Services,Direct Services,021324,Catering - Meadowfield,Supplies and Services,324117,Provisions,06-Jul-2016,5148607123,JR HOLLAND FOODSERVICE,5422,Catering costs - provisions,13.45,0.00,13.45
Neighbourhood Services,Direct Services,021324,Catering - Meadowfield,Supplies and Services,324117,Provisions,06-Jul-2016,5148607125,BRAKE BROS LTD,5811,Catering costs - provisions,64.86,10.81,54.05
Neighbourhood Services,Direct Services,021324,Catering - Meadowfield,Supplies and Services,324117,Provisions,06-Jul-2016,5148607125 - 1,BRAKE BROS LTD,5811,Catering costs - provisions,91.08,,91.08
Neighbourhood Services,Culture & Sport,011086,Positive Futures,Supplies and Services,324117,Provisions,06-Jul-2016,5148607143,ASDA STORES LTD,5411,Catering costs - provisions,7.30,0.00,7.30
Neighbourhood Services,Culture & Sport,011086,Positive Futures,Supplies and Services,324117,Provisions,06-Jul-2016,5148607145,CO-OP GROUP FOOD,5411,Catering costs - provisions,0.49,0.00,0.49
Children and Adult Services,Childrens Services,088083,Ferryhill 0 - 5,Supplies and Services,328041,Clothing Uniforms and Laundry,06-Jul-2016,5148607147,B & M RETAIL,5310,Clothing uniforms and laundry,8.94,0.00,8.94
Neighbourhood Services,Culture & Sport,010605,Woodhouse Close Leisure Complex,Supplies and Services,324117,Provisions,06-Jul-2016,5148607175,JR HOLLAND FOODSERVICE,5422,Catering costs - provisions,23.31,0.00,23.31
Neighbourhood Services,Culture & Sport,010605,Woodhouse Close Leisure Complex,Supplies and Services,324117,Provisions,06-Jul-2016,5148607177,BRAKE BROS LTD,5811,Catering costs - provisions,88.01,0.00,88.01
Neighbourhood Services,Culture & Sport,011225,Locality 2 Team Management,Supplies and Services,312011,Newspapers Books and Periodicals,06-Jul-2016,5148607185,CHARLES DICKENS (SPENN,5251,Books-school library,32.96,0.00,32.96
Neighbourhood Services,Direct Services,010367,C&G - South Grounds Maintenance,Supplies and Services,312011,Newspapers Books and Periodicals,07-Jul-2016,5057492995,GROUNDSMAN TOOLS AND S,5251,Books-school library,104.83,17.47,87.36
Children and Adult Services,Education,076001,Music Service,Supplies and Services,304245,Equipment and Materials,07-Jul-2016,5057493005,Amazon UK Marketplace,5942,Materials,35.24,0.00,35.24
Neighbourhood Services,Direct Services,021242,Catering - County Hall,Supplies and Services,324117,Provisions,07-Jul-2016,5057493007,JR HOLLAND FOODSERVICE,5422,Catering costs - provisions,90.16,0.00,90.16
Neighbourhood Services,Direct Services,021242,Catering - County Hall,Supplies and Services,324117,Provisions,07-Jul-2016,5057493011,JR HOLLAND FOODSERVICE,5422,Catering costs - provisions,78.17,0.00,78.17
Neighbourhood Services,Direct Services,021242,Catering - County Hall,Supplies and Services,324117,Provisions,07-Jul-2016,5057493013,JR HOLLAND FOODSERVICE,5422,Catering costs - provisions,13.16,0.00,13.16
Neighbourhood Services,Direct Services,021242,Catering - County Hall,Supplies and Services,324117,Provisions,07-Jul-2016,5057493015,BRAKE BROS LTD,5811,Catering costs - provisions,208.02,0.00,208.02
Neighbourhood Services,Direct Services,010367,C&G - South Grounds Maintenance,Supplies and Services,304259,Equipment and Materials,07-Jul-2016,5057493019,ARBOR TIMBER & BUILDER,5211,Equipment-purchase and rental,42.19,7.03,35.16
Neighbourhood Services,Culture & Sport,054812,Gala Theatre - Catering etc,Supplies and Services,324117,Provisions,07-Jul-2016,5057493027,JR HOLLAND FOODSERVICE,5422,Catering costs - provisions,36.85,0.00,36.85
Regeneration & Economic Development,Spatial Policy Planning Assets & Environment,031221,North Pennines - Bowlees,Supplies and Services,384999,Miscellaneous Expenses,07-Jul-2016,5057493035,Something Different,5999,Other expenses,12.60,0.00,12.60
Neighbourhood Services,Direct Services,010900,Fleet - Meadowfield Fleet,Transport,215013,Running Costs of Vehicles,07-Jul-2016,5057493045,DVLA VEHICLE TAX,9399,Vehicle Excise Duty (VED),167.50,0.00,167.50
Neighbourhood Services,Direct Services,010900,Fleet - Meadowfield Fleet,Transport,215013,Running Costs of Vehicles,07-Jul-2016,5057493047,DVLA VEHICLE TAX,9399,Vehicle Excise Duty (VED),167.50,0.00,167.50
Neighbourhood Services,Direct Services,010900,Fleet - Meadowfield Fleet,Transport,215013,Running Costs of Vehicles,07-Jul-2016,5057493049,DVLA VEHICLE TAX,9399,Vehicle Excise Duty (VED),167.50,0.00,167.50
Neighbourhood Services,Direct Services,010900,Fleet - Meadowfield Fleet,Transport,215013,Running Costs of Vehicles,07-Jul-2016,5057493051,DVLA VEHICLE TAX,9399,Vehicle Excise Duty (VED),232.50,0.00,232.50
Neighbourhood Services,Direct Services,010900,Fleet - Meadowfield Fleet,Transport,215013,Running Costs of Vehicles,07-Jul-2016,5057493053,DVLA VEHICLE TAX,9399,Vehicle Excise Duty (VED),167.50,0.00,167.50
Neighbourhood Services,Direct Services,010900,Fleet - Meadowfield Fleet,Transport,215013,Running Costs of Vehicles,07-Jul-2016,5057493055,DVLA VEHICLE TAX,9399,Vehicle Excise Duty (VED),167.50,0.00,167.50
Neighbourhood Services,Direct Services,010900,Fleet - Meadowfield Fleet,Transport,215013,Running Costs of Vehicles,07-Jul-2016,5057493057,DVLA VEHICLE TAX,9399,Vehicle Excise Duty (VED),232.50,0.00,232.50
Neighbourhood Services,Direct Services,010900,Fleet - Meadowfield Fleet,Transport,215013,Running Costs of Vehicles,07-Jul-2016,5057493059,DVLA VEHICLE TAX,9399,Vehicle Excise Duty (VED),232.50,0.00,232.50
Neighbourhood Services,Direct Services,010551,Fleet - Chilton Fleet,Transport,215013,Running Costs of Vehicles,07-Jul-2016,5057493061,DVLA VEHICLE TAX,9399,Vehicle Excise Duty (VED),232.50,0.00,232.50
Neighbourhood Services,Direct Services,010551,Fleet - Chilton Fleet,Transport,215013,Running Costs of Vehicles,07-Jul-2016,5057493063,DVLA VEHICLE TAX,9399,Vehicle Excise Duty (VED),232.50,0.00,232.50
Neighbourhood Services,Direct Services,010900,Fleet - Meadowfield Fleet,Transport,215013,Running Costs of Vehicles,07-Jul-2016,5057493065,DVLA VEHICLE TAX,9399,Vehicle Excise Duty (VED),232.50,0.00,232.50
Neighbourhood Services,Direct Services,010900,Fleet - Meadowfield Fleet,Transport,215013,Running Costs of Vehicles,07-Jul-2016,5057493067,DVLA VEHICLE TAX,9399,Vehicle Excise Duty (VED),232.50,0.00,232.50
Neighbourhood Services,Direct Services,010900,Fleet - Meadowfield Fleet,Transport,215013,Running Costs of Vehicles,07-Jul-2016,5057493069,DVLA VEHICLE TAX,9399,Vehicle Excise Duty (VED),232.50,0.00,232.50
Neighbourhood Services,Direct Services,010900,Fleet - Meadowfield Fleet,Transport,215013,Running Costs of Vehicles,07-Jul-2016,5057493071,DVLA VEHICLE TAX,9399,Vehicle Excise Duty (VED),232.50,0.00,232.50
Neighbourhood Services,Direct Services,010900,Fleet - Meadowfield Fleet,Transport,215013,Running Costs of Vehicles,07-Jul-2016,5057493073,DVLA VEHICLE TAX,9399,Vehicle Excise Duty (VED),167.50,0.00,167.50
Neighbourhood Services,Direct Services,010900,Fleet - Meadowfield Fleet,Transport,215013,Running Costs of Vehicles,07-Jul-2016,5057493075,DVLA VEHICLE TAX,9399,Vehicle Excise Duty (VED),232.50,0.00,232.50
Neighbourhood Services,Direct Services,010900,Fleet - Meadowfield Fleet,Transport,215013,Running Costs of Vehicles,07-Jul-2016,5057493077,DVLA VEHICLE TAX,9399,Vehicle Excise Duty (VED),232.50,0.00,232.50
Neighbourhood Services,Direct Services,010900,Fleet - Meadowfield Fleet,Transport,215013,Running Costs of Vehicles,07-Jul-2016,5057493079,DVLA VEHICLE TAX,9399,Vehicle Excise Duty (VED),232.50,0.00,232.50
Neighbourhood Services,Direct Services,010864,Fleet - Hackworth Road Fleet,Transport,215013,Running Costs of Vehicles,07-Jul-2016,5057493081,DVLA VEHICLE TAX,9399,Vehicle Excise Duty (VED),232.50,0.00,232.50
Neighbourhood Services,Direct Services,010900,Fleet - Meadowfield Fleet,Transport,215013,Running Costs of Vehicles,07-Jul-2016,5057493083,DVLA VEHICLE TAX,9399,Vehicle Excise Duty (VED),232.50,0.00,232.50
Neighbourhood Services,Direct Services,010900,Fleet - Meadowfield Fleet,Transport,215013,Running Costs of Vehicles,07-Jul-2016,5057493085,DVLA VEHICLE TAX,9399,Vehicle Excise Duty (VED),167.50,0.00,167.50
Neighbourhood Services,Direct Services,010900,Fleet - Meadowfield Fleet,Transport,215013,Running Costs of Vehicles,07-Jul-2016,5057493087,DVLA VEHICLE TAX,9399,Vehicle Excise Duty (VED),232.50,0.00,232.50
Neighbourhood Services,Direct Services,010561,Fleet - Morrison Busty Fleet,Transport,215013,Running Costs of Vehicles,07-Jul-2016,5057493089,DVLA VEHICLE TAX,9399,Vehicle Excise Duty (VED),232.50,0.00,232.50
Neighbourhood Services,Direct Services,010551,Fleet - Chilton Fleet,Transport,215013,Running Costs of Vehicles,07-Jul-2016,5057493091,DVLA VEHICLE TAX,9399,Vehicle Excise Duty (VED),232.50,0.00,232.50
Neighbourhood Services,Direct Services,010551,Fleet - Chilton Fleet,Transport,215013,Running Costs of Vehicles,07-Jul-2016,5057493093,DVLA VEHICLE TAX,9399,Vehicle Excise Duty (VED),232.50,0.00,232.50
Neighbourhood Services,Direct Services,010864,Fleet - Hackworth Road Fleet,Transport,215013,Running Costs of Vehicles,07-Jul-2016,5057493095,DVLA VEHICLE TAX,9399,Vehicle Excise Duty (VED),167.50,0.00,167.50
Neighbourhood Services,Direct Services,010561,Fleet - Morrison Busty Fleet,Transport,215013,Running Costs of Vehicles,07-Jul-2016,5057493097,DVLA VEHICLE TAX,9399,Vehicle Excise Duty (VED),202.50,0.00,202.50
Children and Adult Services,Childrens Services,088063,Bishop Auckland 0 - 5,Supplies and Services,324117,Provisions,07-Jul-2016,5057493101,SAINSBURYS SACAT 2199,5411,Catering costs - provisions,8.99,0.00,8.99
Children and Adult Services,Childrens Services,088063,Bishop Auckland 0 - 5,Supplies and Services,324117,Provisions,07-Jul-2016,5057493105,TESCO STORES 6329,5411,Catering costs - provisions,8.00,0.00,8.00
Children and Adult Services,Education,071732,Dean Bank Childcare,Supplies and Services,312011,Newspapers Books and Periodicals,07-Jul-2016,5057493121,Amazon UK Marketplace,5942,Books-school library,9.95,0.00,9.95
Children and Adult Services,Education,071732,Dean Bank Childcare,Supplies and Services,312011,Newspapers Books and Periodicals,07-Jul-2016,5057493123,Amazon UK Marketplace,5942,Books-school library,5.97,0.00,5.97
Children and Adult Services,Education,071732,Dean Bank Childcare,Supplies and Services,312011,Newspapers Books and Periodicals,07-Jul-2016,5057493127,Amazon EU,5969,Books-school library,12.99,0.00,12.99
Children and Adult Services,Childrens Services,085341,High Etherley Satelite Home,Supplies and Services,324117,Provisions,07-Jul-2016,5057493129,TESCO STORES 2371,5411,Catering costs - provisions,184.18,0.00,184.18
Children and Adult Services,Childrens Services,085332,Middlestone Moor CU,Supplies and Services,324117,Provisions,07-Jul-2016,5057493131,ASDA HOME SHOPPING,5411,Catering costs - provisions,98.95,0.00,98.95
Children and Adult Services,Head of Adults,056601,Substance Misuse,Supplies and Services,304403,Equipment and Materials,07-Jul-2016,5057493133,ARRIVA PASSENGER S,7538,Other consumables,92.00,0.00,92.00
Children and Adult Services,Childrens Services,085958,Support Services,Supplies and Services,312011,Newspapers Books and Periodicals,07-Jul-2016,5057493149,Amazon UK Marketplace,5942,Books-school library,13.42,0.00,13.42
Children and Adult Services,Childrens Services,085958,Support Services,Supplies and Services,312011,Newspapers Books and Periodicals,07-Jul-2016,5057493151,Amazon EU,5969,Books-school library,24.95,0.00,24.95
Children and Adult Services,Childrens Services,085958,Support Services,Supplies and Services,324117,Provisions,07-Jul-2016,5057493155,TESCO STORES 6329,5411,Catering costs - provisions,99.81,0.00,99.81
Children and Adult Services,Childrens Services,085958,Support Services,Supplies and Services,328041,Clothing Uniforms and Laundry,07-Jul-2016,5057493157,WWW.ASOS.COM,5651,Clothing uniforms and laundry,-31.50,0.00,-31.50
Neighbourhood Services,Direct Services,010301,C&G - North Grounds Maintenance,Supplies and Services,304259,Equipment and Materials,07-Jul-2016,5057493159,HARELAW SAWMILL,5211,Equipment-purchase and rental,141.85,23.64,118.21
Neighbourhood Services,Culture & Sport,011060,Hardwick Park Catering,Supplies and Services,324117,Provisions,07-Jul-2016,5057493161,JR HOLLAND FOODSERVICE,5422,Catering costs - provisions,29.47,0.00,29.47
Resources,I.C.T. Services,065335,Operations - System & Repairs Trading,Supplies and Services,342033,Computers and Communications,07-Jul-2016,5057493163,WWW.CABLESUK.CO.UK,5999,Computer hardware,97.08,0.00,97.08
Resources,I.C.T. Services,065461,Business Support,Supplies and Services,304259,Equipment and Materials,07-Jul-2016,5057493173,DVLA VEHICLE TAX,9399,Equipment-purchase and rental,232.50,0.00,232.50
Resources,I.C.T. Services,065461,Business Support,Supplies and Services,304259,Equipment and Materials,07-Jul-2016,5057493175,DVLA VEHICLE TAX,9399,Equipment-purchase and rental,232.50,0.00,232.50
Children and Adult Services,Childrens Services,071360,Consett and Stanley Locality,Supplies and Services,308011,Furniture,07-Jul-2016,5057493213,EDS BEDS LTD,5712,Furniture repair and replacement,150.00,0.00,150.00
Children and Adult Services,Childrens Services,071360,Consett and Stanley Locality,Supplies and Services,304259,Equipment and Materials,07-Jul-2016,5057493215,WILKO.COM,5722,Equipment-purchase and rental,146.00,0.00,146.00
Neighbourhood Services,Direct Services,010367,C&G - South Grounds Maintenance,Supplies and Services,328041,Clothing Uniforms and Laundry,07-Jul-2016,5057493231,ARGOS BISHOP AUCKL,5310,Clothing uniforms and laundry,24.99,0.00,24.99
Resources,I.C.T. Services,069010,Administration,Supplies and Services,312011,Newspapers Books and Periodicals,07-Jul-2016,5057493237,Amazon EU,5969,Books-school library,38.55,0.00,38.55
Resources,I.C.T. Services,069010,Administration,Supplies and Services,312011,Newspapers Books and Periodicals,07-Jul-2016,5057493239,Amazon UK Marketplace,5942,Books-school library,8.15,0.00,8.15
Resources,I.C.T. Services,069010,Administration,Supplies and Services,312011,Newspapers Books and Periodicals,07-Jul-2016,5057493241,Amazon UK Marketplace,5942,Books-school library,21.97,0.00,21.97
Neighbourhood Services,Culture & Sport,011204,Events,Supplies and Services,324117,Provisions,07-Jul-2016,5057493243,MARKS&SPENCER PLC,5411,Catering costs - provisions,204.00,0.00,204.00
Neighbourhood Services,Direct Services,010301,C&G - North Grounds Maintenance,Supplies and Services,304259,Equipment and Materials,07-Jul-2016,5057493251,HARELAW SAWMILL,5211,Equipment-purchase and rental,7.86,1.31,6.55
Neighbourhood Services,Culture & Sport,054235,Bp Auckland Town Hall Cafe,Supplies and Services,324117,Provisions,07-Jul-2016,5057493263,JR HOLLAND FOODSERVICE,5422,Catering costs - provisions,20.31,0.00,20.31
Neighbourhood Services,Culture & Sport,011086,Positive Futures,Supplies and Services,324117,Provisions,07-Jul-2016,5057493271,W M MORRISONS,5411,Catering costs - provisions,10.09,0.00,10.09
Children and Adult Services,Childrens Services,088083,Ferryhill 0 - 5,Supplies and Services,324117,Provisions,07-Jul-2016,5057493275,MARKS&SPENCER PLC SACA,5411,Catering costs - provisions,6.00,0.00,6.00
Neighbourhood Services,Direct Services,021235,Catering - Wharton Park,Supplies and Services,324117,Provisions,07-Jul-2016,5057493297,JR HOLLAND FOODSERVICE,5422,Catering costs - provisions,11.02,0.00,11.02
Neighbourhood Services,Direct Services,021235,Catering - Wharton Park,Supplies and Services,324117,Provisions,07-Jul-2016,5057493299,BRAKE BROS LTD,5811,Catering costs - provisions,-57.35,-9.56,-47.79
Children and Adult Services,Planning & Service Strategy,054630,Comm Marketing and Information,Supplies and Services,304403,Equipment and Materials,07-Jul-2016,5057493301,QUARK,5734,Other consumables,358.80,0.00,358.80
Neighbourhood Services,Culture & Sport,011060,Hardwick Park Catering,Supplies and Services,304245,Equipment and Materials,07-Jul-2016,5057493303,Amazon UK Marketplace,5942,Materials,15.48,0.00,15.48
Neighbourhood Services,Culture & Sport,010605,Woodhouse Close Leisure Complex,Supplies and Services,324117,Provisions,07-Jul-2016,5057493307,BRAKE BROS LTD,5811,Catering costs - provisions,37.86,6.31,31.55
Neighbourhood Services,Culture & Sport,010605,Woodhouse Close Leisure Complex,Supplies and Services,324117,Provisions,07-Jul-2016,5057493307 - 1,BRAKE BROS LTD,5811,Catering costs - provisions,80.60,,80.60
Children and Adult Services,Childrens Services,088037,One Point YEI,Supplies and Services,352001,Conference Expenses,07-Jul-2016,5057493331,BEAMISH HALL HOTEL,7011,Conferencesseminars fees etc,50.00,0.00,50.00
Children and Adult Services,Childrens Services,088011,Seaham Locality,Supplies and Services,384237,Miscellaneous Expenses,07-Jul-2016,5057493333,ESCAPE,7999,Recreational exps outings parties,132.00,0.00,132.00
Children and Adult Services,Childrens Services,085958,Support Services,Supplies and Services,328041,Clothing Uniforms and Laundry,07-Jul-2016,5061653783,NEW LOOK INTERNET,5621,Clothing uniforms and laundry,19.99,0.00,19.99
Resources,I.C.T. Services,065481,Technical Services,Supplies and Services,342051,Computers and Communications,07-Jul-2016,5061653899,DIGICERT INC,7399,Computer software-rentals and maint,551.21,0.00,551.21
Children and Adult Services,Education,070155,Inspection-HQ,Supplies and Services,352001,Conference Expenses,07-Jul-2016,5061653905,HUNLEY HALL LLP,7011,Conferencesseminars fees etc,116.25,19.38,96.87
Children and Adult Services,Childrens Services,085363,LAC and Permanence Team 3 Chester le Street,Supplies and Services,384999,Miscellaneous Expenses,07-Jul-2016,5061653907,WVR.UK (HOSEASONS GP),4722,Other expenses,670.07,0.00,670.07
Children and Adult Services,Head of Adults,055643,Hawthorn House LD Respite Unit,Supplies and Services,304259,Equipment and Materials,07-Jul-2016,5061654107,ARGOS DIRECT,5310,Equipment-purchase and rental,103.94,0.00,103.94
Children and Adult Services,Childrens Services,088094,Newton Aycliffe 5 - 19,Supplies and Services,304259,Equipment and Materials,08-Jul-2016,5057492959,Amazon UK Marketplace,5942,Equipment-purchase and rental,6.02,0.00,6.02
Children and Adult Services,Education,071732,Dean Bank Childcare,Supplies and Services,312011,Newspapers Books and Periodicals,08-Jul-2016,5057493125,Amazon UK Marketplace,5942,Books-school library,2.84,0.00,2.84
Children and Adult Services,Education,071801,Selby Cottage Childcare Centre,Supplies and Services,324117,Provisions,08-Jul-2016,5061653421,TESCO STORES 2278,5411,Catering costs - provisions,2.00,0.00,2.00
Children and Adult Services,Childrens Services,088094,Newton Aycliffe 5 - 19,Supplies and Services,304259,Equipment and Materials,08-Jul-2016,5061653439,Amazon UK Marketplace,5942,Equipment-purchase and rental,21.98,0.00,21.98
Children and Adult Services,Childrens Services,088094,Newton Aycliffe 5 - 19,Supplies and Services,304259,Equipment and Materials,08-Jul-2016,5061653441,Amazon UK Marketplace,5942,Equipment-purchase and rental,9.20,0.00,9.20
Children and Adult Services,Childrens Services,088094,Newton Aycliffe 5 - 19,Supplies and Services,304259,Equipment and Materials,08-Jul-2016,5061653443,Amazon UK Marketplace,5942,Equipment-purchase and rental,5.98,0.00,5.98
Children and Adult Services,Childrens Services,088094,Newton Aycliffe 5 - 19,Supplies and Services,304259,Equipment and Materials,08-Jul-2016,5061653445,Amazon UK Marketplace,5942,Equipment-purchase and rental,7.99,0.00,7.99
Children and Adult Services,Childrens Services,085333,Coxhoe Satelite Home,Supplies and Services,304403,Equipment and Materials,08-Jul-2016,5061653529,Amazon UK Marketplace,5999,Other consumables,-44.99,0.00,-44.99
Neighbourhood Services,Direct Services,021242,Catering - County Hall,Supplies and Services,324117,Provisions,08-Jul-2016,5061653535,JR HOLLAND FOODSERVICE,5422,Catering costs - provisions,163.06,0.00,163.06
Neighbourhood Services,Direct Services,021242,Catering - County Hall,Supplies and Services,324117,Provisions,08-Jul-2016,5061653537,JR HOLLAND FOODSERVICE,5422,Catering costs - provisions,13.16,0.00,13.16
Neighbourhood Services,Direct Services,021242,Catering - County Hall,Supplies and Services,324117,Provisions,08-Jul-2016,5061653541,JR HOLLAND FOODSERVICE,5422,Catering costs - provisions,9.52,0.00,9.52
Neighbourhood Services,Direct Services,021242,Catering - County Hall,Supplies and Services,324117,Provisions,08-Jul-2016,5061653543,BRAKE BROS LTD,5811,Catering costs - provisions,129.48,21.58,107.90
Neighbourhood Services,Direct Services,021242,Catering - County Hall,Supplies and Services,324117,Provisions,08-Jul-2016,5061653543 - 1,BRAKE BROS LTD,5811,Catering costs - provisions,318.37,,318.37
Neighbourhood Services,Direct Services,010900,Fleet - Meadowfield Fleet,Transport,215013,Running Costs of Vehicles,08-Jul-2016,5061653609,DVLA VEHICLE TAX,9399,Vehicle Excise Duty (VED),232.50,0.00,232.50
Neighbourhood Services,Direct Services,010561,Fleet - Morrison Busty Fleet,Transport,215013,Running Costs of Vehicles,08-Jul-2016,5061653613,DVLA VEHICLE TAX,9399,Vehicle Excise Duty (VED),232.50,0.00,232.50
Neighbourhood Services,Direct Services,010561,Fleet - Morrison Busty Fleet,Transport,215013,Running Costs of Vehicles,08-Jul-2016,5061653617,DVLA VEHICLE TAX,9399,Vehicle Excise Duty (VED),232.50,0.00,232.50
Neighbourhood Services,Direct Services,010900,Fleet - Meadowfield Fleet,Transport,215013,Running Costs of Vehicles,08-Jul-2016,5061653621,DVLA VEHICLE TAX,9399,Vehicle Excise Duty (VED),202.50,0.00,202.50
Neighbourhood Services,Direct Services,010900,Fleet - Meadowfield Fleet,Transport,215013,Running Costs of Vehicles,08-Jul-2016,5061653623,DVLA VEHICLE TAX,9399,Vehicle Excise Duty (VED),202.50,0.00,202.50
Neighbourhood Services,Direct Services,010864,Fleet - Hackworth Road Fleet,Transport,215013,Running Costs of Vehicles,08-Jul-2016,5061653625,DVLA VEHICLE TAX,9399,Vehicle Excise Duty (VED),652.50,0.00,652.50
Neighbourhood Services,Direct Services,010561,Fleet - Morrison Busty Fleet,Transport,215013,Running Costs of Vehicles,08-Jul-2016,5061653629,DVLA VEHICLE TAX,9399,Vehicle Excise Duty (VED),652.50,0.00,652.50
Neighbourhood Services,Direct Services,010900,Fleet - Meadowfield Fleet,Transport,215013,Running Costs of Vehicles,08-Jul-2016,5061653633,DVLA VEHICLE TAX,9399,Vehicle Excise Duty (VED),232.50,0.00,232.50
Neighbourhood Services,Direct Services,010551,Fleet - Chilton Fleet,Transport,215013,Running Costs of Vehicles,08-Jul-2016,5061653637,DVLA VEHICLE TAX,9399,Vehicle Excise Duty (VED),232.50,0.00,232.50
Neighbourhood Services,Direct Services,010900,Fleet - Meadowfield Fleet,Transport,215013,Running Costs of Vehicles,08-Jul-2016,5061653641,DVLA VEHICLE TAX,9399,Vehicle Excise Duty (VED),232.50,0.00,232.50
Neighbourhood Services,Direct Services,010551,Fleet - Chilton Fleet,Transport,215013,Running Costs of Vehicles,08-Jul-2016,5061653643,DVLA VEHICLE TAX,9399,Vehicle Excise Duty (VED),232.50,0.00,232.50
Neighbourhood Services,Direct Services,010900,Fleet - Meadowfield Fleet,Supplies and Services,304259,Equipment and Materials,08-Jul-2016,5061653645,DVLA VEHICLE TAX,9399,Equipment-purchase and rental,232.50,0.00,232.50
Neighbourhood Services,Direct Services,010551,Fleet - Chilton Fleet,Transport,215013,Running Costs of Vehicles,08-Jul-2016,5061653647,DVLA VEHICLE TAX,9399,Vehicle Excise Duty (VED),232.50,0.00,232.50
Neighbourhood Services,Direct Services,010561,Fleet - Morrison Busty Fleet,Transport,215013,Running Costs of Vehicles,08-Jul-2016,5061653649,DVLA VEHICLE TAX,9399,Vehicle Excise Duty (VED),352.50,0.00,352.50
Neighbourhood Services,Direct Services,010561,Fleet - Morrison Busty Fleet,Transport,215013,Running Costs of Vehicles,08-Jul-2016,5061653653,DVLA VEHICLE TAX,9399,Vehicle Excise Duty (VED),652.50,0.00,652.50
Neighbourhood Services,Direct Services,010561,Fleet - Morrison Busty Fleet,Transport,215013,Running Costs of Vehicles,08-Jul-2016,5061653655,DVLA VEHICLE TAX,9399,Vehicle Excise Duty (VED),352.50,0.00,352.50
Neighbourhood Services,Direct Services,010900,Fleet - Meadowfield Fleet,Transport,215013,Running Costs of Vehicles,08-Jul-2016,5061653657,DVLA VEHICLE TAX,9399,Vehicle Excise Duty (VED),237.50,0.00,237.50
Neighbourhood Services,Direct Services,010900,Fleet - Meadowfield Fleet,Transport,215013,Running Costs of Vehicles,08-Jul-2016,5061653659,DVLA VEHICLE TAX,9399,Vehicle Excise Duty (VED),232.50,0.00,232.50
Neighbourhood Services,Direct Services,010561,Fleet - Morrison Busty Fleet,Transport,215013,Running Costs of Vehicles,08-Jul-2016,5061653663,DVLA VEHICLE TAX,9399,Vehicle Excise Duty (VED),352.50,0.00,352.50
Neighbourhood Services,Direct Services,010561,Fleet - Morrison Busty Fleet,Transport,215013,Running Costs of Vehicles,08-Jul-2016,5061653665,DVLA VEHICLE TAX,9399,Vehicle Excise Duty (VED),232.50,0.00,232.50
Neighbourhood Services,Direct Services,010900,Fleet - Meadowfield Fleet,Transport,215013,Running Costs of Vehicles,08-Jul-2016,5061653667,DVLA VEHICLE TAX,9399,Vehicle Excise Duty (VED),232.50,0.00,232.50
Neighbourhood Services,Direct Services,010561,Fleet - Morrison Busty Fleet,Transport,215013,Running Costs of Vehicles,08-Jul-2016,5061653669,DVLA VEHICLE TAX,9399,Vehicle Excise Duty (VED),232.50,0.00,232.50
Neighbourhood Services,Direct Services,010900,Fleet - Meadowfield Fleet,Transport,215013,Running Costs of Vehicles,08-Jul-2016,5061653671,DVLA VEHICLE TAX,9399,Vehicle Excise Duty (VED),232.50,0.00,232.50
Neighbourhood Services,Direct Services,010561,Fleet - Morrison Busty Fleet,Transport,215013,Running Costs of Vehicles,08-Jul-2016,5061653673,DVLA VEHICLE TAX,9399,Vehicle Excise Duty (VED),232.50,0.00,232.50
Neighbourhood Services,Direct Services,010551,Fleet - Chilton Fleet,Transport,215013,Running Costs of Vehicles,08-Jul-2016,5061653677,DVLA VEHICLE TAX,9399,Vehicle Excise Duty (VED),232.50,0.00,232.50
Neighbourhood Services,Direct Services,010551,Fleet - Chilton Fleet,Transport,215013,Running Costs of Vehicles,08-Jul-2016,5061653679,DVLA VEHICLE TAX,9399,Vehicle Excise Duty (VED),232.50,0.00,232.50
Neighbourhood Services,Direct Services,010900,Fleet - Meadowfield Fleet,Transport,215013,Running Costs of Vehicles,08-Jul-2016,5061653683,DVLA VEHICLE TAX,9399,Vehicle Excise Duty (VED),232.50,0.00,232.50
Neighbourhood Services,Direct Services,010864,Fleet - Hackworth Road Fleet,Transport,215013,Running Costs of Vehicles,08-Jul-2016,5061653685,DVLA VEHICLE TAX,9399,Vehicle Excise Duty (VED),202.50,0.00,202.50
Neighbourhood Services,Direct Services,010900,Fleet - Meadowfield Fleet,Transport,215013,Running Costs of Vehicles,08-Jul-2016,5061653687,DVLA VEHICLE TAX,9399,Vehicle Excise Duty (VED),167.50,0.00,167.50
Neighbourhood Services,Direct Services,010551,Fleet - Chilton Fleet,Transport,215013,Running Costs of Vehicles,08-Jul-2016,5061653689,DVLA VEHICLE TAX,9399,Vehicle Excise Duty (VED),232.50,0.00,232.50
Neighbourhood Services,Direct Services,010900,Fleet - Meadowfield Fleet,Transport,215013,Running Costs of Vehicles,08-Jul-2016,5061653691,DVLA VEHICLE TAX,9399,Vehicle Excise Duty (VED),652.50,0.00,652.50
Neighbourhood Services,Direct Services,010900,Fleet - Meadowfield Fleet,Transport,215013,Running Costs of Vehicles,08-Jul-2016,5061653693,DVLA VEHICLE TAX,9399,Vehicle Excise Duty (VED),232.50,0.00,232.50
Neighbourhood Services,Direct Services,010900,Fleet - Meadowfield Fleet,Transport,215013,Running Costs of Vehicles,08-Jul-2016,5061653695,DVLA VEHICLE TAX,9399,Vehicle Excise Duty (VED),652.50,0.00,652.50
Neighbourhood Services,Direct Services,010900,Fleet - Meadowfield Fleet,Transport,215013,Running Costs of Vehicles,08-Jul-2016,5061653699,DVLA VEHICLE TAX,9399,Vehicle Excise Duty (VED),232.50,0.00,232.50
Neighbourhood Services,Direct Services,010900,Fleet - Meadowfield Fleet,Transport,215013,Running Costs of Vehicles,08-Jul-2016,5061653703,DVLA VEHICLE TAX,9399,Vehicle Excise Duty (VED),232.50,0.00,232.50
Neighbourhood Services,Direct Services,010551,Fleet - Chilton Fleet,Transport,215013,Running Costs of Vehicles,08-Jul-2016,5061653707,DVLA VEHICLE TAX,9399,Vehicle Excise Duty (VED),232.50,0.00,232.50
Neighbourhood Services,Direct Services,010900,Fleet - Meadowfield Fleet,Transport,215013,Running Costs of Vehicles,08-Jul-2016,5061653709,DVLA VEHICLE TAX,9399,Vehicle Excise Duty (VED),652.50,0.00,652.50
Neighbourhood Services,Direct Services,010864,Fleet - Hackworth Road Fleet,Transport,215013,Running Costs of Vehicles,08-Jul-2016,5061653711,DVLA VEHICLE TAX,9399,Vehicle Excise Duty (VED),652.50,0.00,652.50
Children and Adult Services,Education,071732,Dean Bank Childcare,Supplies and Services,312011,Newspapers Books and Periodicals,08-Jul-2016,5061653729,Amazon UK Marketplace,5942,Books-school library,1.79,0.00,1.79
Children and Adult Services,Education,071732,Dean Bank Childcare,Supplies and Services,312011,Newspapers Books and Periodicals,08-Jul-2016,5061653733,Amazon UK Marketplace,5942,Books-school library,2.11,0.00,2.11
Children and Adult Services,Education,071732,Dean Bank Childcare,Supplies and Services,312011,Newspapers Books and Periodicals,08-Jul-2016,5061653737,Amazon UK Marketplace,5942,Books-school library,17.98,0.00,17.98
Children and Adult Services,Education,071732,Dean Bank Childcare,Supplies and Services,312011,Newspapers Books and Periodicals,08-Jul-2016,5061653741,Amazon UK Marketplace,5942,Books-school library,4.90,0.00,4.90
Children and Adult Services,Education,071732,Dean Bank Childcare,Supplies and Services,312011,Newspapers Books and Periodicals,08-Jul-2016,5061653745,Amazon UK Marketplace,5942,Books-school library,5.95,0.00,5.95
Children and Adult Services,Education,071732,Dean Bank Childcare,Supplies and Services,312011,Newspapers Books and Periodicals,08-Jul-2016,5061653747,Amazon UK Marketplace,5942,Books-school library,2.57,0.00,2.57
Children and Adult Services,Childrens Services,085341,High Etherley Satelite Home,Supplies and Services,328041,Clothing Uniforms and Laundry,08-Jul-2016,5061653751,WWW.GOOUTDOORS.CO.UK,5655,Clothing uniforms and laundry,61.45,0.00,61.45
Children and Adult Services,Childrens Services,088033,Durham 0 - 5,Supplies and Services,304403,Equipment and Materials,08-Jul-2016,5061653761,Amazon UK Marketplace,5942,Other consumables,70.00,0.00,70.00
Children and Adult Services,Education,078412,Durham Education Business Partnership,Supplies and Services,304403,Equipment and Materials,08-Jul-2016,5061653767,"Amazon Svcs Europe,SAR",5942,Other consumables,19.97,0.00,19.97
Children and Adult Services,Childrens Services,085958,Support Services,Supplies and Services,312011,Newspapers Books and Periodicals,08-Jul-2016,5061653777,Amazon UK Marketplace,5942,Books-school library,31.80,0.00,31.80
Children and Adult Services,Childrens Services,085958,Support Services,Supplies and Services,312011,Newspapers Books and Periodicals,08-Jul-2016,5061653781,Amazon UK Marketplace,5942,Books-school library,99.99,0.00,99.99
Children and Adult Services,Childrens Services,085958,Support Services,Supplies and Services,304259,Equipment and Materials,08-Jul-2016,5061653787,SPORTSDIRECT.COM,5941,Equipment-purchase and rental,76.99,12.83,64.16
Neighbourhood Services,Culture & Sport,011060,Hardwick Park Catering,Supplies and Services,324117,Provisions,08-Jul-2016,5061653805,JR HOLLAND FOODSERVICE,5422,Catering costs - provisions,26.08,0.00,26.08
Neighbourhood Services,Culture & Sport,011060,Hardwick Park Catering,Supplies and Services,324117,Provisions,08-Jul-2016,5061653809,BRAKE BROS LTD,5811,Catering costs - provisions,340.38,56.73,283.65
Neighbourhood Services,Culture & Sport,011060,Hardwick Park Catering,Supplies and Services,324117,Provisions,08-Jul-2016,5061653809 - 1,BRAKE BROS LTD,5811,Catering costs - provisions,278.14,,278.14
Neighbourhood Services,Culture & Sport,011060,Hardwick Park Catering,Supplies and Services,324117,Provisions,08-Jul-2016,5061653817,BRAKE BROS LTD,5811,Catering costs - provisions,229.74,38.29,191.45
Neighbourhood Services,Culture & Sport,011060,Hardwick Park Catering,Supplies and Services,324117,Provisions,08-Jul-2016,5061653817 - 1,BRAKE BROS LTD,5811,Catering costs - provisions,157.63,,157.63
Resources,I.C.T. Services,065335,Operations - System & Repairs Trading,Supplies and Services,342033,Computers and Communications,08-Jul-2016,5061653821,Amazon UK Marketplace,5942,Computer hardware,20.99,0.00,20.99
Neighbourhood Services,Culture & Sport,054815,Gala Theatre Stage School,Supplies and Services,328041,Clothing Uniforms and Laundry,08-Jul-2016,5061653823,H&M 869 DURHAM,5691,Clothing uniforms and laundry,27.98,0.00,27.98
Neighbourhood Services,Culture & Sport,054815,Gala Theatre Stage School,Supplies and Services,328041,Clothing Uniforms and Laundry,08-Jul-2016,5061653825,CLAIRE`S ACCESSORIES,5699,Clothing uniforms and laundry,14.00,0.00,14.00
Neighbourhood Services,Culture & Sport,054815,Gala Theatre Stage School,Supplies and Services,328041,Clothing Uniforms and Laundry,08-Jul-2016,5061653827,CLAIRE`S ACCESSORIES,5699,Clothing uniforms and laundry,14.00,0.00,14.00
Regeneration & Economic Development,Economic Development and Housing,030762,Organisational Training & Development,Employees,040149,Recruitment Instruction and Training,08-Jul-2016,5061653851,CITB,8220,Training-all costs,30.00,5.00,25.00
Neighbourhood Services,Direct Services,021234,Catering - Locomotion,Supplies and Services,324117,Provisions,08-Jul-2016,5061653857,BRAKE BROS LTD,5811,Catering costs - provisions,21.18,3.53,17.65
Neighbourhood Services,Direct Services,021234,Catering - Locomotion,Supplies and Services,324117,Provisions,08-Jul-2016,5061653857 - 1,BRAKE BROS LTD,5811,Catering costs - provisions,182.82,,182.82
Neighbourhood Services,Direct Services,021234,Catering - Locomotion,Supplies and Services,324117,Provisions,08-Jul-2016,5061653859,BRAKE BROS LTD,5811,Catering costs - provisions,158.70,26.45,132.25
Neighbourhood Services,Direct Services,021234,Catering - Locomotion,Supplies and Services,324117,Provisions,08-Jul-2016,5061653859 - 1,BRAKE BROS LTD,5811,Catering costs - provisions,31.73,,31.73
Neighbourhood Services,Direct Services,010525,Catering - Green Lane,Supplies and Services,324117,Provisions,08-Jul-2016,5061653893,JR HOLLAND FOODSERVICE,5422,Catering costs - provisions,55.44,0.00,55.44
Regeneration & Economic Development,Spatial Policy Planning Assets & Environment,031202,North Pennines - Peatscapes,Supplies and Services,340001,Postages,08-Jul-2016,5061653951,THE POST OFFICE,9402,Postages,9.60,0.00,9.60
Neighbourhood Services,Direct Services,010367,C&G - South Grounds Maintenance,Supplies and Services,324117,Provisions,08-Jul-2016,5061653963,TESCO STORES 2916,5411,Catering costs - provisions,12.51,0.00,12.51
Resources,I.C.T. Services,069010,Administration,Supplies and Services,312011,Newspapers Books and Periodicals,08-Jul-2016,5061653971,Amazon UK Marketplace,5942,Books-school library,35.00,0.00,35.00
Neighbourhood Services,Direct Services,021324,Catering - Meadowfield,Supplies and Services,324117,Provisions,08-Jul-2016,5061654029,JR HOLLAND FOODSERVICE,5422,Catering costs - provisions,39.68,0.00,39.68
Neighbourhood Services,Direct Services,021324,Catering - Meadowfield,Supplies and Services,324117,Provisions,08-Jul-2016,5061654031,JR HOLLAND FOODSERVICE,5422,Catering costs - provisions,9.87,0.00,9.87
Neighbourhood Services,Culture & Sport,011086,Positive Futures,Supplies and Services,324117,Provisions,08-Jul-2016,5061654075,ASDA STORES LTD,5411,Catering costs - provisions,18.93,0.00,18.93
Children and Adult Services,Childrens Services,088073,Barnard Castle 0 - 5,Supplies and Services,384199,Miscellaneous Expenses,08-Jul-2016,5061654077,Amazon UK Marketplace,5942,Other hired and contracted services,20.45,0.00,20.45
Neighbourhood Services,Culture & Sport,011058,Wharton Park,Supplies and Services,304245,Equipment and Materials,08-Jul-2016,5061654123,AMAZON UK RETAIL AMAZO,5999,Materials,24.99,0.00,24.99
Children and Adult Services,Head of Adults,051613,OP/PD Easington,Supplies and Services,384956,Miscellaneous Expenses,08-Jul-2016,5061654125,WWW.GOV.UK,8999,Licences,20.00,0.00,20.00
Children and Adult Services,Childrens Services,085632,Families First Seaham,Supplies and Services,338064,Services,08-Jul-2016,5061654127,DISCLOSURE SCOT,9399,Disclosure & Barring (DBS) Fees,25.00,0.00,25.00
Neighbourhood Services,Culture & Sport,054815,Gala Theatre Stage School,Supplies and Services,312009,Newspapers Books and Periodicals,08-Jul-2016,5067485051,WH SMITH,5994,Newspapers books and periodicals,13.98,0.00,13.98
Children and Adult Services,Childrens Services,088094,Newton Aycliffe 5 - 19,Supplies and Services,304259,Equipment and Materials,09-Jul-2016,5061653449,Amazon UK Marketplace,5942,Equipment-purchase and rental,13.99,0.00,13.99
Children and Adult Services,Childrens Services,085958,Support Services,Supplies and Services,312011,Newspapers Books and Periodicals,09-Jul-2016,5061653785,Amazon UK Marketplace,5942,Books-school library,41.94,0.00,41.94
Children and Adult Services,Childrens Services,085958,Support Services,Supplies and Services,324117,Provisions,09-Jul-2016,5061653789,TESCO STORES 6329,5411,Catering costs - provisions,110.38,0.00,110.38
Neighbourhood Services,Culture & Sport,054815,Gala Theatre Stage School,Supplies and Services,384999,Miscellaneous Expenses,09-Jul-2016,5061653831,SALLY SALON SERVIC,7230,Other expenses,21.43,0.00,21.43
Neighbourhood Services,Culture & Sport,054815,Gala Theatre Stage School,Supplies and Services,384999,Miscellaneous Expenses,09-Jul-2016,5061653833,SALLY SALON SERVIC,7230,Other expenses,59.99,0.00,59.99
Neighbourhood Services,Culture & Sport,054815,Gala Theatre Stage School,Supplies and Services,304999,Equipment and Materials,09-Jul-2016,5061653835,SUPERDRUG STORES PLC,5912,Misc equipment tools and materials,51.75,0.00,51.75
Neighbourhood Services,Culture & Sport,054815,Gala Theatre Stage School,Supplies and Services,304999,Equipment and Materials,09-Jul-2016,5061653837,SUPERDRUG STORES PLC,5912,Misc equipment tools and materials,35.84,0.00,35.84
Neighbourhood Services,Culture & Sport,054815,Gala Theatre Stage School,Supplies and Services,332047,Printing Stationery and Gen Off Exps,09-Jul-2016,5061653839,RYMAN,5943,Stationery,4.99,0.00,4.99
Neighbourhood Services,Direct Services,021235,Catering - Wharton Park,Supplies and Services,324117,Provisions,09-Jul-2016,5061654099,BRAKE BROS LTD,5811,Catering costs - provisions,218.04,36.34,181.70
Neighbourhood Services,Direct Services,021235,Catering - Wharton Park,Supplies and Services,324117,Provisions,09-Jul-2016,5061654099 - 1,BRAKE BROS LTD,5811,Catering costs - provisions,80.04,,80.04
Neighbourhood Services,Direct Services,021235,Catering - Wharton Park,Supplies and Services,324117,Provisions,09-Jul-2016,5061654101,BRAKE BROS LTD,5811,Catering costs - provisions,208.32,34.72,173.60
Neighbourhood Services,Direct Services,021235,Catering - Wharton Park,Supplies and Services,324117,Provisions,09-Jul-2016,5061654101 - 1,BRAKE BROS LTD,5811,Catering costs - provisions,25.44,,25.44
Children and Adult Services,Childrens Services,088094,Newton Aycliffe 5 - 19,Supplies and Services,304259,Equipment and Materials,10-Jul-2016,5061653453,Amazon EU,5969,Equipment-purchase and rental,71.58,0.00,71.58
Children and Adult Services,Education,076001,Music Service,Supplies and Services,304245,Equipment and Materials,10-Jul-2016,5061653525,Amazon UK Marketplace,5942,Materials,22.86,0.00,22.86
Neighbourhood Services,Culture & Sport,054815,Gala Theatre Stage School,Supplies and Services,328041,Clothing Uniforms and Laundry,10-Jul-2016,5061653843,TOP SHOP,5691,Clothing uniforms and laundry,32.45,0.00,32.45
Neighbourhood Services,Culture & Sport,054815,Gala Theatre Stage School,Supplies and Services,304999,Equipment and Materials,10-Jul-2016,5061653845,SUPERDRUG STORES PLC,5912,Misc equipment tools and materials,14.90,0.00,14.90
Resources,I.C.T. Services,069010,Administration,Supplies and Services,304403,Equipment and Materials,10-Jul-2016,5061653973,ADOBE CAPTIVATE SUBS,5734,Other consumables,22.86,0.00,22.86
Children and Adult Services,Childrens Services,085341,High Etherley Satelite Home,Supplies and Services,384871,Miscellaneous Expenses,10-Jul-2016,5067484991,ODEON UPT,7832,Training-other activities,14.50,0.00,14.50
Resources,I.C.T. Services,065481,Technical Services,Supplies and Services,342051,Computers and Communications,11-Jul-2016,5061653901,DIGICERT INC,7399,Computer software-rentals and maint,15.16,0.00,15.16
Children and Adult Services,Education,071801,Selby Cottage Childcare Centre,Supplies and Services,324117,Provisions,11-Jul-2016,5067484821,ASDA 4387,5411,Catering costs - provisions,279.00,0.00,279.00
Children and Adult Services,Education,071801,Selby Cottage Childcare Centre,Supplies and Services,324117,Provisions,11-Jul-2016,5067484823,TESCO STORES 2278,5411,Catering costs - provisions,19.80,0.00,19.80
Children and Adult Services,Education,054640,Durham Learning Resources,Supplies and Services,312011,Newspapers Books and Periodicals,11-Jul-2016,5067484829,EDEN INTERACTIVE L,5942,Books-school library,243.20,40.53,202.67
Children and Adult Services,Education,071733,Shildon Childcare,Supplies and Services,324117,Provisions,11-Jul-2016,5067484833,ASDA HOME SHOPPING,5411,Catering costs - provisions,53.73,0.00,53.73
Children and Adult Services,Childrens Services,088094,Newton Aycliffe 5 - 19,Supplies and Services,304259,Equipment and Materials,11-Jul-2016,5067484837,Amazon UK Marketplace,5942,Equipment-purchase and rental,10.74,0.00,10.74
Neighbourhood Services,Direct Services,010383,C&G - South Street Cleansing,Supplies and Services,304403,Equipment and Materials,11-Jul-2016,5067484857,FRED WILLIAMSON LT,5231,Other consumables,410.83,68.47,342.36
Regeneration & Economic Development,Economic Development and Housing,030699,Business Growth and Innovation General,Supplies and Services,304999,Equipment and Materials,11-Jul-2016,5067484861,DAILY.CO.UK,5968,Misc equipment tools and materials,28.75,4.79,23.96
Neighbourhood Services,Direct Services,021242,Catering - County Hall,Supplies and Services,324117,Provisions,11-Jul-2016,5067484887,BRAMBLES FOODS LTD,5499,Catering costs - provisions,732.81,0.00,732.81
Neighbourhood Services,Direct Services,021242,Catering - County Hall,Supplies and Services,324117,Provisions,11-Jul-2016,5067484891,JR HOLLAND FOODSERVICE,5422,Catering costs - provisions,56.73,0.00,56.73
Neighbourhood Services,Direct Services,021242,Catering - County Hall,Supplies and Services,324117,Provisions,11-Jul-2016,5067484897,JR HOLLAND FOODSERVICE,5422,Catering costs - provisions,17.94,0.00,17.94
Neighbourhood Services,Direct Services,021242,Catering - County Hall,Supplies and Services,324117,Provisions,11-Jul-2016,5067484899,JR HOLLAND FOODSERVICE,5422,Catering costs - provisions,13.52,0.00,13.52
Neighbourhood Services,Direct Services,021242,Catering - County Hall,Supplies and Services,324117,Provisions,11-Jul-2016,5067484903,BRAKE BROS LTD,5811,Catering costs - provisions,179.55,0.00,179.55
Neighbourhood Services,Culture & Sport,054233,Bp Auckland Town Hall Library,Supplies and Services,312011,Newspapers Books and Periodicals,11-Jul-2016,5067484907,Amazon EU,5969,Books-school library,36.24,0.00,36.24
Neighbourhood Services,Direct Services,010900,Fleet - Meadowfield Fleet,Transport,215013,Running Costs of Vehicles,11-Jul-2016,5067484935,DVLA VEHICLE TAX,9399,Vehicle Excise Duty (VED),232.50,0.00,232.50
Neighbourhood Services,Direct Services,010551,Fleet - Chilton Fleet,Transport,215013,Running Costs of Vehicles,11-Jul-2016,5067484939,DVLA VEHICLE TAX,9399,Vehicle Excise Duty (VED),232.50,0.00,232.50
Children and Adult Services,Education,071732,Dean Bank Childcare,Supplies and Services,324117,Provisions,11-Jul-2016,5067484985,ASDA HOME SHOPPING,5411,Catering costs - provisions,69.96,0.00,69.96
Children and Adult Services,Education,071732,Dean Bank Childcare,Supplies and Services,312011,Newspapers Books and Periodicals,11-Jul-2016,5067484989,HOME BARGAINS SPENNYMO,5251,Books-school library,27.23,0.00,27.23
Neighbourhood Services,Direct Services,010301,C&G - North Grounds Maintenance,Supplies and Services,304403,Equipment and Materials,11-Jul-2016,5067485029,BESCOL,5231,Other consumables,93.42,15.57,77.85
Neighbourhood Services,Culture & Sport,011060,Hardwick Park Catering,Supplies and Services,324117,Provisions,11-Jul-2016,5067485031,JR HOLLAND FOODSERVICE,5422,Catering costs - provisions,31.17,0.00,31.17
Neighbourhood Services,Culture & Sport,011060,Hardwick Park Catering,Supplies and Services,324117,Provisions,11-Jul-2016,5067485037,BRAKE BROS LTD,5811,Catering costs - provisions,108.18,18.03,90.15
Neighbourhood Services,Culture & Sport,011060,Hardwick Park Catering,Supplies and Services,324117,Provisions,11-Jul-2016,5067485037 - 1,BRAKE BROS LTD,5811,Catering costs - provisions,169.00,,169.00
Neighbourhood Services,Culture & Sport,011060,Hardwick Park Catering,Supplies and Services,324117,Provisions,11-Jul-2016,5067485041,BRAKE BROS LTD,5811,Catering costs - provisions,194.34,32.39,161.95
Neighbourhood Services,Culture & Sport,011060,Hardwick Park Catering,Supplies and Services,324117,Provisions,11-Jul-2016,5067485041 - 1,BRAKE BROS LTD,5811,Catering costs - provisions,58.94,,58.94
Neighbourhood Services,Culture & Sport,054815,Gala Theatre Stage School,Supplies and Services,324117,Provisions,11-Jul-2016,5067485047,MARKS&SPENCER PLC,5411,Catering costs - provisions,19.50,0.00,19.50
Regeneration & Economic Development,Economic Development and Housing,030762,Organisational Training & Development,Employees,040149,Recruitment Instruction and Training,11-Jul-2016,5067485053,NCS VUE CITB HS&E REV,8299,Training-all costs,390.00,0.00,390.00
Neighbourhood Services,Direct Services,010525,Catering - Green Lane,Supplies and Services,324117,Provisions,11-Jul-2016,5067485091,BRAMBLES FOODS LTD,5499,Catering costs - provisions,87.50,0.00,87.50
Neighbourhood Services,Culture & Sport,010870,Chester-le-street Leisure Centre,Supplies and Services,308011,Furniture,11-Jul-2016,5067485095,MMAMATSLTD INTERNET GB,4816,Furniture repair and replacement,271.86,45.31,226.55
Children and Adult Services,Education,071903,EYDCP-Sustainability EDS,Employees,040149,Recruitment Instruction and Training,11-Jul-2016,5067485099,WWW.CAFOD.ORG.UK,8398,Training-all costs,16.00,0.00,16.00
Children and Adult Services,Childrens Services,085352,Tow Law CU,Supplies and Services,324117,Provisions,11-Jul-2016,5067485103,TESCO STORES 2371,5411,Catering costs - provisions,181.61,0.00,181.61
Children and Adult Services,Childrens Services,088063,Bishop Auckland 0 - 5,Supplies and Services,324117,Provisions,11-Jul-2016,5067485105,SAINSBURYS SACAT 2199,5411,Catering costs - provisions,7.00,0.00,7.00
Children and Adult Services,Childrens Services,088063,Bishop Auckland 0 - 5,Supplies and Services,324117,Provisions,11-Jul-2016,5067485107,ASDA STORES,5411,Catering costs - provisions,12.36,0.00,12.36
Neighbourhood Services,Direct Services,020041,Bldg Serv - Business Development - General,Supplies and Services,304221,Equipment and Materials,11-Jul-2016,5067485119,PAYPAL NILLKANTHUK,5331,Direct materials,2.80,0.00,2.80
Neighbourhood Services,Culture & Sport,011204,Events,Supplies and Services,324117,Provisions,11-Jul-2016,5067485135,G BOLAM FOODS,5499,Catering costs - provisions,33.95,0.00,33.95
Neighbourhood Services,Culture & Sport,011204,Events,Supplies and Services,324117,Provisions,11-Jul-2016,5067485137,CO-OP GROUP 310027,5411,Catering costs - provisions,14.59,0.00,14.59
Neighbourhood Services,Culture & Sport,054399,Local Delivery-Libraries,Supplies and Services,304403,Equipment and Materials,11-Jul-2016,5067485143,AMAZON UK RETAIL AMAZO,5999,Other consumables,11.99,0.00,11.99
Neighbourhood Services,Culture & Sport,054235,Bp Auckland Town Hall Cafe,Supplies and Services,324117,Provisions,11-Jul-2016,5067485195,BRAMBLES FOODS LTD,5499,Catering costs - provisions,76.43,0.00,76.43
Neighbourhood Services,Culture & Sport,054235,Bp Auckland Town Hall Cafe,Supplies and Services,324117,Provisions,11-Jul-2016,5067485201,JR HOLLAND FOODSERVICE,5422,Catering costs - provisions,32.47,0.00,32.47
Neighbourhood Services,Culture & Sport,054235,Bp Auckland Town Hall Cafe,Supplies and Services,324117,Provisions,11-Jul-2016,5067485203,BRAKE BROS LTD,5811,Catering costs - provisions,67.26,11.21,56.05
Neighbourhood Services,Culture & Sport,054235,Bp Auckland Town Hall Cafe,Supplies and Services,324117,Provisions,11-Jul-2016,5067485203 - 1,BRAKE BROS LTD,5811,Catering costs - provisions,129.25,,129.25
Neighbourhood Services,Culture & Sport,054235,Bp Auckland Town Hall Cafe,Supplies and Services,324117,Provisions,11-Jul-2016,5067485205,BRAKE BROS LTD,5811,Catering costs - provisions,2.64,0.44,2.20
Neighbourhood Services,Culture & Sport,054235,Bp Auckland Town Hall Cafe,Supplies and Services,324117,Provisions,11-Jul-2016,5067485205 - 1,BRAKE BROS LTD,5811,Catering costs - provisions,150.77,,150.77
Neighbourhood Services,Direct Services,021324,Catering - Meadowfield,Supplies and Services,324117,Provisions,11-Jul-2016,5067485209,BRAMBLES FOODS LTD,5499,Catering costs - provisions,77.10,0.00,77.10
Neighbourhood Services,Direct Services,021235,Catering - Wharton Park,Supplies and Services,324117,Provisions,11-Jul-2016,5067485297,BRAKE BROS LTD,5811,Catering costs - provisions,103.68,17.28,86.40
Neighbourhood Services,Direct Services,021235,Catering - Wharton Park,Supplies and Services,324117,Provisions,11-Jul-2016,5067485297 - 1,BRAKE BROS LTD,5811,Catering costs - provisions,39.91,,39.91
Children and Adult Services,Childrens Services,085380,Operations Manager Adoption & Fostering,Supplies and Services,312011,Newspapers Books and Periodicals,11-Jul-2016,5067485303,Amazon EU,5969,Books-school library,38.82,0.00,38.82
Neighbourhood Services,Culture & Sport,026591,Hardwick Hall Country Park,Supplies and Services,304245,Equipment and Materials,11-Jul-2016,5067485329,Amazon EU,5969,Materials,19.95,0.00,19.95
Neighbourhood Services,Culture & Sport,010605,Woodhouse Close Leisure Complex,Supplies and Services,324117,Provisions,11-Jul-2016,5067485335,JR HOLLAND FOODSERVICE,5422,Catering costs - provisions,11.30,0.00,11.30
Neighbourhood Services,Culture & Sport,010605,Woodhouse Close Leisure Complex,Supplies and Services,324117,Provisions,11-Jul-2016,5067485339,BRAKE BROS LTD,5811,Catering costs - provisions,82.00,0.00,82.00
Children and Adult Services,Education,071733,Shildon Childcare,Supplies and Services,324117,Provisions,11-Jul-2016,5070409941,ASDA HOME SHOPPING,5411,Catering costs - provisions,-1.34,0.00,-1.34
Children and Adult Services,Childrens Services,071380,Bishop Auckland and Barnard Castle Locality,Supplies and Services,304221,Equipment and Materials,11-Jul-2016,5070409999,R DEFTY,5200,Direct materials,13.80,0.00,13.80
Regeneration & Economic Development,Spatial Policy Planning Assets & Environment,031200,North Pennines Core,Transport,235057,Public Transport,11-Jul-2016,5070410279,ECML DURHAM PARKING,7523,Staff travelling,12.00,0.00,12.00
Children and Adult Services,Education,071801,Selby Cottage Childcare Centre,Supplies and Services,324117,Provisions,12-Jul-2016,5070409927,TESCO STORES 2278,5411,Catering costs - provisions,15.96,0.00,15.96
Children and Adult Services,Childrens Services,071380,Bishop Auckland and Barnard Castle Locality,Supplies and Services,324117,Provisions,12-Jul-2016,5070409929,TESCO STORES 6329,5411,Catering costs - provisions,35.13,0.00,35.13
Children and Adult Services,Childrens Services,071380,Bishop Auckland and Barnard Castle Locality,Supplies and Services,324117,Provisions,12-Jul-2016,5070409933,TESCO STORES 6329,5411,Catering costs - provisions,6.60,0.00,6.60
Regeneration & Economic Development,Economic Development and Housing,031500,Housing Solutions - Core Team,Supplies and Services,364320,Grants to Voluntary Organisations,12-Jul-2016,5070409949,ROADCHEF DURHAM,7011,Accommodation assistance,64.00,0.00,64.00
Neighbourhood Services,Direct Services,021242,Catering - County Hall,Supplies and Services,324117,Provisions,12-Jul-2016,5070410003,FREEMAN CATERING BUTCH,5422,Catering costs - provisions,92.91,0.00,92.91
Neighbourhood Services,Culture & Sport,054812,Gala Theatre - Catering etc,Supplies and Services,324117,Provisions,12-Jul-2016,5070410013,FREEMAN CATERING BUTCH,5422,Catering costs - provisions,43.06,0.00,43.06
Neighbourhood Services,Culture & Sport,054812,Gala Theatre - Catering etc,Supplies and Services,324117,Provisions,12-Jul-2016,5070410015,FREEMAN CATERING BUTCH,5422,Catering costs - provisions,22.94,0.00,22.94
Neighbourhood Services,Culture & Sport,054812,Gala Theatre - Catering etc,Supplies and Services,324117,Provisions,12-Jul-2016,5070410019,BRAKE BROS LTD,5811,Catering costs - provisions,156.30,26.05,130.25
Neighbourhood Services,Culture & Sport,054812,Gala Theatre - Catering etc,Supplies and Services,324117,Provisions,12-Jul-2016,5070410019 - 1,BRAKE BROS LTD,5811,Catering costs - provisions,148.73,,148.73
Neighbourhood Services,Culture & Sport,054812,Gala Theatre - Catering etc,Supplies and Services,324117,Provisions,12-Jul-2016,5070410023,BRAKE BROS LTD,5811,Catering costs - provisions,25.76,0.00,25.76
Children and Adult Services,Childrens Services,085351,Framwellgate Moor CU,Supplies and Services,324117,Provisions,12-Jul-2016,5070410039,ASDA HOME SHOPPING,5411,Catering costs - provisions,128.71,0.00,128.71
Children and Adult Services,Childrens Services,085351,Framwellgate Moor CU,Supplies and Services,324117,Provisions,12-Jul-2016,5070410041,ASDA HOME SHOPPING,5411,Catering costs - provisions,-0.50,0.00,-0.50
Children and Adult Services,Childrens Services,088063,Bishop Auckland 0 - 5,Supplies and Services,324117,Provisions,12-Jul-2016,5070410063,ASDA STORES,5411,Catering costs - provisions,5.00,0.00,5.00
Children and Adult Services,Childrens Services,085958,Support Services,Supplies and Services,312011,Newspapers Books and Periodicals,12-Jul-2016,5070410093,Amazon UK Marketplace,5942,Books-school library,32.98,0.00,32.98
Children and Adult Services,Childrens Services,085958,Support Services,Supplies and Services,312011,Newspapers Books and Periodicals,12-Jul-2016,5070410095,Amazon UK Marketplace,5942,Books-school library,28.90,0.00,28.90
Children and Adult Services,Childrens Services,085958,Support Services,Supplies and Services,312011,Newspapers Books and Periodicals,12-Jul-2016,5070410097,Amazon UK Marketplace,5942,Books-school library,34.98,0.00,34.98
Children and Adult Services,Childrens Services,085958,Support Services,Supplies and Services,328041,Clothing Uniforms and Laundry,12-Jul-2016,5070410101,ARGOS RETAIL GROUP,5310,Clothing uniforms and laundry,129.98,0.00,129.98
Children and Adult Services,Childrens Services,085958,Support Services,Supplies and Services,304259,Equipment and Materials,12-Jul-2016,5070410103,WWW.FOOTASYLUM.COM,5941,Equipment-purchase and rental,89.99,0.00,89.99
Children and Adult Services,Childrens Services,085958,Support Services,Supplies and Services,328041,Clothing Uniforms and Laundry,12-Jul-2016,5070410105,gethelabel.com,5651,Clothing uniforms and laundry,78.94,0.00,78.94
Children and Adult Services,Childrens Services,085958,Support Services,Supplies and Services,304403,Equipment and Materials,12-Jul-2016,5070410107,AMAZON UK RETAIL AMAZO,5999,Other consumables,73.86,0.00,73.86
Neighbourhood Services,Culture & Sport,011060,Hardwick Park Catering,Supplies and Services,324117,Provisions,12-Jul-2016,5070410115,FREEMAN CATERING BUTCH,5422,Catering costs - provisions,33.85,0.00,33.85
Neighbourhood Services,Culture & Sport,011060,Hardwick Park Catering,Supplies and Services,324117,Provisions,12-Jul-2016,5070410119,FREEMAN CATERING BUTCH,5422,Catering costs - provisions,25.95,0.00,25.95
Regeneration & Economic Development,Spatial Policy Planning Assets & Environment,031200,North Pennines Core,Transport,235057,Public Transport,12-Jul-2016,5070410131,VIRGINTRAINSEC DAR STN,4112,Staff travelling,14.00,0.00,14.00
Resources,I.C.T. Services,065335,Operations - System & Repairs Trading,Supplies and Services,342033,Computers and Communications,12-Jul-2016,5070410135,WWW.CABLESUK.CO.UK,5999,Computer hardware,161.90,0.00,161.90
Neighbourhood Services,Culture & Sport,054815,Gala Theatre Stage School,Supplies and Services,304999,Equipment and Materials,12-Jul-2016,5070410139,BOOTS/0561,5912,Misc equipment tools and materials,8.88,0.00,8.88
Neighbourhood Services,Culture & Sport,054815,Gala Theatre Stage School,Supplies and Services,304999,Equipment and Materials,12-Jul-2016,5070410141,SUPERDRUG STORES PLC,5912,Misc equipment tools and materials,8.38,0.00,8.38
Regeneration & Economic Development,Economic Development and Housing,030762,Organisational Training & Development,Employees,040149,Recruitment Instruction and Training,12-Jul-2016,5070410147,CITB,8220,Training-all costs,30.00,5.00,25.00
Regeneration & Economic Development,Economic Development and Housing,030762,Organisational Training & Development,Employees,040149,Recruitment Instruction and Training,12-Jul-2016,5070410149,CITB,8220,Training-all costs,30.00,5.00,25.00
Regeneration & Economic Development,Economic Development and Housing,030762,Organisational Training & Development,Employees,040149,Recruitment Instruction and Training,12-Jul-2016,5070410151,CITB,8220,Training-all costs,30.00,5.00,25.00
Regeneration & Economic Development,Economic Development and Housing,030762,Organisational Training & Development,Employees,040149,Recruitment Instruction and Training,12-Jul-2016,5070410155,CITB,8220,Training-all costs,30.00,5.00,25.00
Neighbourhood Services,Direct Services,021234,Catering - Locomotion,Supplies and Services,324117,Provisions,12-Jul-2016,5070410157,BRAKE BROS LTD,5811,Catering costs - provisions,211.50,35.25,176.25
Neighbourhood Services,Direct Services,021234,Catering - Locomotion,Supplies and Services,324117,Provisions,12-Jul-2016,5070410157 - 1,BRAKE BROS LTD,5811,Catering costs - provisions,54.30,,54.30
Neighbourhood Services,Direct Services,010525,Catering - Green Lane,Supplies and Services,324117,Provisions,12-Jul-2016,5070410179,FREEMAN CATERING BUTCH,5422,Catering costs - provisions,95.38,0.00,95.38
Neighbourhood Services,Direct Services,010525,Catering - Green Lane,Supplies and Services,324117,Provisions,12-Jul-2016,5070410181,FREEMAN CATERING BUTCH,5422,Catering costs - provisions,33.05,0.00,33.05
Neighbourhood Services,Direct Services,010525,Catering - Green Lane,Supplies and Services,324117,Provisions,12-Jul-2016,5070410185,BRAKE BROS LTD,5811,Catering costs - provisions,10.80,1.80,9.00
Neighbourhood Services,Direct Services,010525,Catering - Green Lane,Supplies and Services,324117,Provisions,12-Jul-2016,5070410185 - 1,BRAKE BROS LTD,5811,Catering costs - provisions,111.38,,111.38
Regeneration & Economic Development,Economic Development and Housing,030749,Employability - Youth Contract,Supplies and Services,304259,Equipment and Materials,12-Jul-2016,5070410231,DURHAM COUNTY COUNCIL,9399,Equipment-purchase and rental,12.00,0.00,12.00
Resources,I.C.T. Services,069010,Administration,Supplies and Services,312011,Newspapers Books and Periodicals,12-Jul-2016,5070410255,Amazon UK Marketplace,5942,Books-school library,12.97,0.00,12.97
Resources,I.C.T. Services,069010,Administration,Supplies and Services,304259,Equipment and Materials,12-Jul-2016,5070410259,DISCLOSURE SCOT,9399,Equipment-purchase and rental,25.00,0.00,25.00
Resources,I.C.T. Services,069010,Administration,Supplies and Services,312011,Newspapers Books and Periodicals,12-Jul-2016,5070410261,Amazon UK Marketplace,5942,Books-school library,12.74,0.00,12.74
Resources,I.C.T. Services,069010,Administration,Employees,040149,Recruitment Instruction and Training,12-Jul-2016,5070410265,WWW.DONTPANICPROJEC LT,8999,Training-all costs,480.00,0.00,480.00
Neighbourhood Services,Culture & Sport,011204,Events,Supplies and Services,348037,Subsistence,12-Jul-2016,5070410267,THE COD FRY,5812,Subsistence,15.50,0.00,15.50
Neighbourhood Services,Culture & Sport,011204,Events,Supplies and Services,324117,Provisions,12-Jul-2016,5070410269,CO-OP GROUP 310015,5411,Catering costs - provisions,12.82,0.00,12.82
Regeneration & Economic Development,Spatial Policy Planning Assets & Environment,031200,North Pennines Core,Transport,235057,Public Transport,12-Jul-2016,5070410281,EASYJET,3245,Staff travelling,77.74,0.00,77.74
Neighbourhood Services,Direct Services,010301,C&G - North Grounds Maintenance,Supplies and Services,304259,Equipment and Materials,12-Jul-2016,5070410301,HARELAW SAWMILL,5211,Equipment-purchase and rental,15.03,2.51,12.52
Children and Adult Services,Childrens Services,071370,Peterlee and Seaham Locality,Supplies and Services,324117,Provisions,12-Jul-2016,5070410337,ASDA 4387,5411,Catering costs - provisions,131.95,21.99,109.96
Neighbourhood Services,Direct Services,021324,Catering - Meadowfield,Supplies and Services,324117,Provisions,12-Jul-2016,5070410343,FREEMAN CATERING BUTCH,5422,Catering costs - provisions,65.64,0.00,65.64
Neighbourhood Services,Direct Services,021324,Catering - Meadowfield,Supplies and Services,324117,Provisions,12-Jul-2016,5070410347,FREEMAN CATERING BUTCH,5422,Catering costs - provisions,47.58,0.00,47.58
Neighbourhood Services,Direct Services,021324,Catering - Meadowfield,Supplies and Services,324117,Provisions,12-Jul-2016,5070410353,BRAKE BROS LTD,5811,Catering costs - provisions,56.01,0.00,56.01
Children and Adult Services,Childrens Services,088073,Barnard Castle 0 - 5,Supplies and Services,308011,Furniture,12-Jul-2016,5070410383,KIDDICARE,5719,Furniture repair and replacement,51.47,0.00,51.47
Neighbourhood Services,Culture & Sport,011191,Wellbeing4Life,Supplies and Services,324117,Provisions,12-Jul-2016,5070410417,ALDI,5411,Catering costs - provisions,9.52,0.00,9.52
Neighbourhood Services,Direct Services,021235,Catering - Wharton Park,Supplies and Services,324117,Provisions,12-Jul-2016,5070410447,BRAKE BROS LTD,5811,Catering costs - provisions,76.02,12.67,63.35
Neighbourhood Services,Direct Services,021235,Catering - Wharton Park,Supplies and Services,324117,Provisions,12-Jul-2016,5070410447 - 1,BRAKE BROS LTD,5811,Catering costs - provisions,5.42,,5.42
Resources,Financial Services,065176,Quality / Subsidy / Appeals / Training,Supplies and Services,338064,Services,12-Jul-2016,5070410473,DISCLOSURE SCOT,9399,Disclosure & Barring (DBS) Fees,25.00,0.00,25.00
Regeneration & Economic Development,Economic Development and Housing,030749,Employability - Youth Contract,Supplies and Services,324117,Provisions,12-Jul-2016,5070410501,ASDA SUPERSTORE 4987,5411,Catering costs - provisions,15.00,0.00,15.00
Neighbourhood Services,Direct Services,021242,Catering - County Hall,Supplies and Services,324117,Provisions,12-Jul-2016,5074563667,JR HOLLAND FOODSERVICE,5422,Catering costs - provisions,37.20,0.00,37.20
Neighbourhood Services,Culture & Sport,054812,Gala Theatre - Catering etc,Supplies and Services,324117,Provisions,12-Jul-2016,5074563679,JR HOLLAND FOODSERVICE,5422,Catering costs - provisions,58.86,0.00,58.86
Neighbourhood Services,Culture & Sport,011060,Hardwick Park Catering,Supplies and Services,324117,Provisions,12-Jul-2016,5074563751,JR HOLLAND FOODSERVICE,5422,Catering costs - provisions,18.93,0.00,18.93
Neighbourhood Services,Direct Services,021235,Catering - Wharton Park,Supplies and Services,324117,Provisions,12-Jul-2016,5074563909,JR HOLLAND FOODSERVICE,5422,Catering costs - provisions,43.05,0.00,43.05
Children and Adult Services,Childrens Services,085958,Support Services,Supplies and Services,312011,Newspapers Books and Periodicals,13-Jul-2016,5070410111,Amazon UK Marketplace,5942,Books-school library,45.00,0.00,45.00
Resources,I.C.T. Services,069010,Administration,Supplies and Services,312011,Newspapers Books and Periodicals,13-Jul-2016,5070410263,Amazon EU,5969,Books-school library,20.00,0.00,20.00
Regeneration & Economic Development,Economic Development and Housing,039679,Group Repair - Dawdon Ph 9,Income,720130,Fees and Charges,13-Jul-2016,5074563581,WWW.MONEYCLAIM.GOV,9399,Fees-legal,105.00,0.00,105.00
Children and Adult Services,Education,071733,Shildon Childcare,Supplies and Services,324117,Provisions,13-Jul-2016,5074563583,TESCO STORES 2916,5411,Catering costs - provisions,15.00,0.00,15.00
Dedicated Schools Grant,Dedicated Schools Grant,079052,Part Sighted-Belmont Comp,Supplies and Services,304259,Equipment and Materials,13-Jul-2016,5074563595,ITUNES.COM/BILL,5735,Equipment-purchase and rental,25.47,0.00,25.47
Neighbourhood Services,Direct Services,010383,C&G - South Street Cleansing,Transport,215995,Running Costs of Vehicles,13-Jul-2016,5074563621,SNOWBALLS (RAILWAY,5533,Vehicle running expenses,49.14,8.19,40.95
Children and Adult Services,Childrens Services,085342,9 Cedar Drive Aycliffe,Supplies and Services,324117,Provisions,13-Jul-2016,5074563627,TESCO STORES 2916,5411,Catering costs - provisions,177.29,0.00,177.29
Resources,Financial Services,052865,SF-Financial Services Team,Supplies and Services,308011,Furniture,13-Jul-2016,5074563629,FRANKS FACTORY FLOORIN,5713,Furniture repair and replacement,178.00,0.00,178.00
Neighbourhood Services,Direct Services,021242,Catering - County Hall,Supplies and Services,324117,Provisions,13-Jul-2016,5074563669,BRAKE BROS LTD,5811,Catering costs - provisions,66.72,11.12,55.60
Neighbourhood Services,Direct Services,021242,Catering - County Hall,Supplies and Services,324117,Provisions,13-Jul-2016,5074563669 - 1,BRAKE BROS LTD,5811,Catering costs - provisions,188.86,,188.86
Neighbourhood Services,Direct Services,021242,Catering - County Hall,Supplies and Services,324117,Provisions,13-Jul-2016,5074563671,BRAKE BROS LTD,5811,Catering costs - provisions,100.58,0.00,100.58
Children and Adult Services,Childrens Services,088084,Ferryhill 5 - 19,Supplies and Services,304403,Equipment and Materials,13-Jul-2016,5074563675,CMPCARESHOP,5331,Other consumables,40.02,6.67,33.35
Children and Adult Services,Childrens Services,088084,Ferryhill 5 - 19,Supplies and Services,340001,Postages,13-Jul-2016,5074563675 - 1,CMPCARESHOP,5331,Postages,3.95,,3.95
Children and Adult Services,Childrens Services,071390,Ferryhill and Newton Aycliffe Locality,Supplies and Services,324117,Provisions,13-Jul-2016,5074563709,ASDA SUPERSTORE 4987,5411,Catering costs - provisions,1.50,0.00,1.50
Children and Adult Services,Childrens Services,088063,Bishop Auckland 0 - 5,Supplies and Services,324117,Provisions,13-Jul-2016,5074563727,SAINSBURYS 2199,5411,Catering costs - provisions,19.90,0.00,19.90
Children and Adult Services,Childrens Services,085341,High Etherley Satelite Home,Supplies and Services,324117,Provisions,13-Jul-2016,5074563729,TESCO STORES 6329,5411,Catering costs - provisions,220.58,0.00,220.58
Children and Adult Services,Childrens Services,085958,Support Services,Supplies and Services,312011,Newspapers Books and Periodicals,13-Jul-2016,5074563737,Amazon UK Marketplace,5942,Books-school library,103.35,0.00,103.35
Children and Adult Services,Childrens Services,085958,Support Services,Supplies and Services,324117,Provisions,13-Jul-2016,5074563739,TESCO STORES 6329,5411,Catering costs - provisions,127.41,0.00,127.41
Children and Adult Services,Childrens Services,085958,Support Services,Supplies and Services,304403,Equipment and Materials,13-Jul-2016,5074563741,AMAZON UK RETAIL AMAZO,5999,Other consumables,106.57,0.00,106.57
Neighbourhood Services,Culture & Sport,011060,Hardwick Park Catering,Supplies and Services,324117,Provisions,13-Jul-2016,5074563753,BRAKE BROS LTD,5811,Catering costs - provisions,178.98,29.83,149.15
Neighbourhood Services,Culture & Sport,011060,Hardwick Park Catering,Supplies and Services,324117,Provisions,13-Jul-2016,5074563753 - 1,BRAKE BROS LTD,5811,Catering costs - provisions,55.93,,55.93
Neighbourhood Services,Direct Services,021234,Catering - Locomotion,Supplies and Services,324117,Provisions,13-Jul-2016,5074563761,BRAKE BROS LTD,5811,Catering costs - provisions,77.28,12.88,64.40
Neighbourhood Services,Direct Services,021234,Catering - Locomotion,Supplies and Services,324117,Provisions,13-Jul-2016,5074563761 - 1,BRAKE BROS LTD,5811,Catering costs - provisions,256.66,,256.66
Children and Adult Services,Education,078100,Curric and Professional Development,Supplies and Services,324117,Provisions,13-Jul-2016,5074563767,SAINSBURYS SACAT 0776,5411,Catering costs - provisions,2.55,0.43,2.12
Children and Adult Services,Childrens Services,088003,Peterlee 0 - 5,Supplies and Services,304259,Equipment and Materials,13-Jul-2016,5074563777,Amazon EU,5969,Equipment-purchase and rental,24.73,0.00,24.73
Regeneration & Economic Development,Economic Development and Housing,030703,Partnership Services,Employees,040149,Recruitment Instruction and Training,13-Jul-2016,5074563779,DONT PANIC PROJECT VT,8999,Training-all costs,96.00,16.00,80.00
Children and Adult Services,Childrens Services,085352,Tow Law CU,Supplies and Services,304403,Equipment and Materials,13-Jul-2016,5074563783,FIRECO LTD,5999,Other consumables,20.28,0.00,20.28
Children and Adult Services,Childrens Services,071360,Consett and Stanley Locality,Supplies and Services,308011,Furniture,13-Jul-2016,5074563795,MAGUIRES,5713,Furniture repair and replacement,142.00,0.00,142.00
Children and Adult Services,Education,070155,Inspection-HQ,Supplies and Services,352001,Conference Expenses,13-Jul-2016,5074563797,THE SPA HOTEL,7011,Conferencesseminars fees etc,89.20,14.87,74.33
Children and Adult Services,Childrens Services,085363,LAC and Permanence Team 3 Chester le Street,Supplies and Services,384999,Miscellaneous Expenses,13-Jul-2016,5074563799,WVR.UK (HOSEASONS GP),4722,Other expenses,836.32,0.00,836.32
Resources,I.C.T. Services,069010,Administration,Supplies and Services,304259,Equipment and Materials,13-Jul-2016,5074563811,SUNDERLAND CC,9399,Equipment-purchase and rental,10.00,0.00,10.00
Resources,I.C.T. Services,069010,Administration,Supplies and Services,312011,Newspapers Books and Periodicals,13-Jul-2016,5074563813,Amazon UK Marketplace,5942,Books-school library,9.97,0.00,9.97
Resources,I.C.T. Services,069010,Administration,Supplies and Services,312011,Newspapers Books and Periodicals,13-Jul-2016,5074563815,Amazon EU,5969,Books-school library,129.99,0.00,129.99
Resources,I.C.T. Services,069010,Administration,Employees,040149,Recruitment Instruction and Training,13-Jul-2016,5074563817,ARGYLE SQUARE PROPERTI,8999,Training-all costs,486.00,0.00,486.00
Resources,I.C.T. Services,069010,Administration,Supplies and Services,304259,Equipment and Materials,13-Jul-2016,5074563819,DURHAM COUNTY COUNCIL,9399,Equipment-purchase and rental,24.00,0.00,24.00
Neighbourhood Services,Culture & Sport,011204,Events,Supplies and Services,324117,Provisions,13-Jul-2016,5074563823,GREGGS - S0094,5462,Catering costs - provisions,9.35,0.00,9.35
Neighbourhood Services,Culture & Sport,011204,Events,Supplies and Services,324117,Provisions,13-Jul-2016,5074563825,GREGGS - S0094,5462,Catering costs - provisions,18.70,0.00,18.70
Neighbourhood Services,Culture & Sport,054399,Local Delivery-Libraries,Supplies and Services,312011,Newspapers Books and Periodicals,13-Jul-2016,5074563833,Amazon EU,5969,Books-school library,33.40,0.00,33.40
Children and Adult Services,Childrens Services,071370,Peterlee and Seaham Locality,Supplies and Services,304403,Equipment and Materials,13-Jul-2016,5074563851,TESCO DIRECT,5999,Other consumables,139.00,0.00,139.00
Neighbourhood Services,Direct Services,021324,Catering - Meadowfield,Supplies and Services,324117,Provisions,13-Jul-2016,5074563857,BRAKE BROS LTD,5811,Catering costs - provisions,37.08,6.18,30.90
Neighbourhood Services,Direct Services,021324,Catering - Meadowfield,Supplies and Services,324117,Provisions,13-Jul-2016,5074563857 - 1,BRAKE BROS LTD,5811,Catering costs - provisions,130.18,,130.18
Children and Adult Services,Childrens Services,071350,Durham and Chester Le Street Locality,Supplies and Services,324117,Provisions,13-Jul-2016,5074563863,TESCO STORES 2371,5411,Catering costs - provisions,14.07,0.00,14.07
Children and Adult Services,Childrens Services,071350,Durham and Chester Le Street Locality,Supplies and Services,328041,Clothing Uniforms and Laundry,13-Jul-2016,5074563865,B&M RETAIL LTD,5310,Clothing uniforms and laundry,6.99,0.00,6.99
Neighbourhood Services,Culture & Sport,011086,Positive Futures,Supplies and Services,324117,Provisions,13-Jul-2016,5074563877,ASDA STORES LTD,5411,Catering costs - provisions,16.91,0.00,16.91
Children and Adult Services,Childrens Services,088083,Ferryhill 0 - 5,Supplies and Services,324117,Provisions,13-Jul-2016,5074563879,ASDA SUPERSTORE 4987,5411,Catering costs - provisions,3.70,0.00,3.70
Children and Adult Services,Childrens Services,085331,New Lea Childrens Home,Supplies and Services,324117,Provisions,13-Jul-2016,5074563893,ASDA HOME SHOPPING,5411,Catering costs - provisions,136.64,0.00,136.64
Neighbourhood Services,Direct Services,021235,Catering - Wharton Park,Supplies and Services,324117,Provisions,13-Jul-2016,5074563911,BRAKE BROS LTD,5811,Catering costs - provisions,153.12,25.52,127.60
Neighbourhood Services,Direct Services,021235,Catering - Wharton Park,Supplies and Services,324117,Provisions,13-Jul-2016,5074563911 - 1,BRAKE BROS LTD,5811,Catering costs - provisions,32.00,,32.00
Children and Adult Services,Childrens Services,085380,Operations Manager Adoption & Fostering,Supplies and Services,312011,Newspapers Books and Periodicals,13-Jul-2016,5074563913,Amazon EU,5969,Books-school library,9.70,0.00,9.70
Neighbourhood Services,Culture & Sport,011060,Hardwick Park Catering,Supplies and Services,324117,Provisions,13-Jul-2016,5074563915,TESCO STORES 2916,5411,Catering costs - provisions,16.64,0.00,16.64
Neighbourhood Services,Culture & Sport,011225,Locality 2 Team Management,Supplies and Services,328041,Clothing Uniforms and Laundry,13-Jul-2016,5074563927,ARGOS LTD,5310,Clothing uniforms and laundry,27.86,0.00,27.86
Neighbourhood Services,Culture & Sport,011225,Locality 2 Team Management,Supplies and Services,328041,Clothing Uniforms and Laundry,13-Jul-2016,5074563929,ARGOS LTD,5310,Clothing uniforms and laundry,49.98,0.00,49.98
Neighbourhood Services,Culture & Sport,011225,Locality 2 Team Management,Supplies and Services,304259,Equipment and Materials,13-Jul-2016,5074563931,WILKO RETAIL LIMIT,5722,Equipment-purchase and rental,21.99,0.00,21.99
Neighbourhood Services,Culture & Sport,011058,Wharton Park,Supplies and Services,304403,Equipment and Materials,13-Jul-2016,5078747223,WWW.EVENGREENER - VT,5261,Other consumables,50.96,0.00,50.96
Resources,I.C.T. Services,069010,Administration,Supplies and Services,352001,Conference Expenses,13-Jul-2016,5078747279,WWW.MACDONALDHOTELS.CO,7011,Conferencesseminars fees etc,238.00,0.00,238.00
Resources,I.C.T. Services,069010,Administration,Third Party Payments,430100,Rendered by Private Contractors,13-Jul-2016,5078747287,CSS - COMODO GROUP IN,7399,Payments to sub-contractors,205.70,0.00,205.70
Neighbourhood Services,Culture & Sport,011210,Parks & Countryside,Supplies and Services,384999,Miscellaneous Expenses,14-Jul-2016,5074563661,"Amazon Svcs Europe,SAR",5942,Other expenses,10.50,0.00,10.50
Regeneration & Economic Development,Transport and Contracted Services,031701,Care Connect All Localities,Supplies and Services,384999,Miscellaneous Expenses,14-Jul-2016,5074563663,Amazon UK Marketplace,5942,Other expenses,87.45,0.00,87.45
Resources,I.C.T. Services,069010,Administration,Supplies and Services,312011,Newspapers Books and Periodicals,14-Jul-2016,5074563821,Amazon UK Marketplace,5942,Books-school library,25.20,0.00,25.20
Neighbourhood Services,Culture & Sport,054399,Local Delivery-Libraries,Supplies and Services,312011,Newspapers Books and Periodicals,14-Jul-2016,5074563835,Amazon UK Marketplace,5942,Books-school library,18.80,0.00,18.80
Children and Adult Services,Childrens Services,071380,Bishop Auckland and Barnard Castle Locality,Supplies and Services,384999,Miscellaneous Expenses,14-Jul-2016,5078746925,SCALLYWAGZ LTD,7997,Other expenses,76.45,0.00,76.45
Children and Adult Services,Education,071733,Shildon Childcare,Supplies and Services,304649,Equipment and Materials,14-Jul-2016,5078746927,B & M RETAIL,5310,Toys,11.98,0.00,11.98
Regeneration & Economic Development,Economic Development and Housing,031500,Housing Solutions - Core Team,Supplies and Services,364320,Grants to Voluntary Organisations,14-Jul-2016,5078746945,DAYS INN,7011,Accommodation assistance,59.00,0.00,59.00
Regeneration & Economic Development,Economic Development and Housing,031500,Housing Solutions - Core Team,Supplies and Services,364320,Grants to Voluntary Organisations,14-Jul-2016,5078746947,TRAVELODGE,3615,Accommodation assistance,47.00,7.83,39.17
Neighbourhood Services,Direct Services,021242,Catering - County Hall,Supplies and Services,324117,Provisions,14-Jul-2016,5078747067,JR HOLLAND FOODSERVICE,5422,Catering costs - provisions,181.67,0.00,181.67
Neighbourhood Services,Direct Services,021242,Catering - County Hall,Supplies and Services,324117,Provisions,14-Jul-2016,5078747073,JR HOLLAND FOODSERVICE,5422,Catering costs - provisions,62.32,0.00,62.32
Neighbourhood Services,Direct Services,021242,Catering - County Hall,Supplies and Services,324117,Provisions,14-Jul-2016,5078747075,JR HOLLAND FOODSERVICE,5422,Catering costs - provisions,31.35,0.00,31.35
Neighbourhood Services,Direct Services,021242,Catering - County Hall,Supplies and Services,324117,Provisions,14-Jul-2016,5078747079,JR HOLLAND FOODSERVICE,5422,Catering costs - provisions,21.29,0.00,21.29
Neighbourhood Services,Direct Services,021242,Catering - County Hall,Supplies and Services,324117,Provisions,14-Jul-2016,5078747081,JR HOLLAND FOODSERVICE,5422,Catering costs - provisions,13.16,0.00,13.16
Neighbourhood Services,Culture & Sport,054812,Gala Theatre - Catering etc,Supplies and Services,324117,Provisions,14-Jul-2016,5078747091,JR HOLLAND FOODSERVICE,5422,Catering costs - provisions,33.03,0.00,33.03
Children and Adult Services,Childrens Services,088063,Bishop Auckland 0 - 5,Supplies and Services,328041,Clothing Uniforms and Laundry,14-Jul-2016,5078747113,W BOYES & CO LTD BISHO,5310,Clothing uniforms and laundry,17.26,0.00,17.26
Children and Adult Services,Childrens Services,088063,Bishop Auckland 0 - 5,Supplies and Services,328041,Clothing Uniforms and Laundry,14-Jul-2016,5078747115,STORE TWENTY ONE 0058,5691,Clothing uniforms and laundry,14.00,0.00,14.00
Children and Adult Services,Childrens Services,088063,Bishop Auckland 0 - 5,Supplies and Services,308011,Furniture,14-Jul-2016,5078747119,POUNDSTRETCHER 692,5714,Furniture repair and replacement,67.92,0.00,67.92
Children and Adult Services,Childrens Services,088063,Bishop Auckland 0 - 5,Supplies and Services,304259,Equipment and Materials,14-Jul-2016,5078747121,WILKO RETAIL LIMIT,5722,Equipment-purchase and rental,29.50,0.00,29.50
Children and Adult Services,Childrens Services,088063,Bishop Auckland 0 - 5,Supplies and Services,324117,Provisions,14-Jul-2016,5078747123,WM MORRISON 040,5411,Catering costs - provisions,17.56,0.00,17.56
Regeneration & Economic Development,Economic Development and Housing,030749,Employability - Youth Contract,Transport,235057,Public Transport,14-Jul-2016,5078747127,WWW.SIMPLYGO.COM,4131,Staff travelling,3.75,0.00,3.75
Children and Adult Services,Childrens Services,085958,Support Services,Supplies and Services,324117,Provisions,14-Jul-2016,5078747159,TESCO STORES 6329,5411,Catering costs - provisions,90.39,0.00,90.39
Children and Adult Services,Childrens Services,085958,Support Services,Supplies and Services,342033,Computers and Communications,14-Jul-2016,5078747163,VERY.CO.UK,5964,Computer hardware,22.50,0.00,22.50
Children and Adult Services,Childrens Services,085958,Support Services,Supplies and Services,342033,Computers and Communications,14-Jul-2016,5078747165,VERY.CO.UK,5964,Computer hardware,9.00,0.00,9.00
Children and Adult Services,Childrens Services,085958,Support Services,Supplies and Services,342033,Computers and Communications,14-Jul-2016,5078747167,VERY.CO.UK,5964,Computer hardware,3.99,0.00,3.99
Neighbourhood Services,Culture & Sport,011060,Hardwick Park Catering,Supplies and Services,324117,Provisions,14-Jul-2016,5078747175,JR HOLLAND FOODSERVICE,5422,Catering costs - provisions,93.57,0.00,93.57
Neighbourhood Services,Culture & Sport,011060,Hardwick Park Catering,Supplies and Services,324117,Provisions,14-Jul-2016,5078747181,JR HOLLAND FOODSERVICE,5422,Catering costs - provisions,38.49,0.00,38.49
Regeneration & Economic Development,Spatial Policy Planning Assets & Environment,031200,North Pennines Core,Transport,235057,Public Transport,14-Jul-2016,5078747183,VIRGINTRAINSEC DAR STN,4112,Staff travelling,14.00,0.00,14.00
Regeneration & Economic Development,Strategy Programmes and Performance,030053,Building Capacity Exchange,Supplies and Services,384926,Miscellaneous Expenses,14-Jul-2016,5078747197,Svenska Turistf?ening,7011,International visits,598.13,0.00,598.13
Neighbourhood Services,Direct Services,010525,Catering - Green Lane,Supplies and Services,324117,Provisions,14-Jul-2016,5078747205,JR HOLLAND FOODSERVICE,5422,Catering costs - provisions,33.53,0.00,33.53
Children and Adult Services,Childrens Services,085556,Child Protection Team Stanley,Supplies and Services,384199,Miscellaneous Expenses,14-Jul-2016,5078747219,HM PASSPORT,9399,Other hired and contracted services,270.00,0.00,270.00
Children and Adult Services,Childrens Services,088063,Bishop Auckland 0 - 5,Supplies and Services,324117,Provisions,14-Jul-2016,5078747239,SAINSBURYS LOC4623,5411,Catering costs - provisions,5.35,0.00,5.35
Neighbourhood Services,Direct Services,010913,Bldg Serv - Construction General,Supplies and Services,304221,Equipment and Materials,14-Jul-2016,5078747269,HSE BOOKS (INTERNET),9399,Direct materials,900.00,150.00,750.00
Resources,I.C.T. Services,069010,Administration,Supplies and Services,312011,Newspapers Books and Periodicals,14-Jul-2016,5078747277,Amazon UK Marketplace,5942,Books-school library,46.95,0.00,46.95
Resources,I.C.T. Services,069010,Administration,Supplies and Services,304259,Equipment and Materials,14-Jul-2016,5078747283,DISCLOSURE SCOT,9399,Equipment-purchase and rental,25.00,0.00,25.00
Resources,I.C.T. Services,069010,Administration,Supplies and Services,352001,Conference Expenses,14-Jul-2016,5078747285,TRAVELODGE,3615,Conferencesseminars fees etc,67.40,0.00,67.40
Resources,I.C.T. Services,069010,Administration,Supplies and Services,304259,Equipment and Materials,14-Jul-2016,5078747291,DURHAM COUNTY COUNCIL,9399,Equipment-purchase and rental,-12.00,0.00,-12.00
Neighbourhood Services,Culture & Sport,011204,Events,Supplies and Services,348037,Subsistence,14-Jul-2016,5078747295,CIBO`S,5814,Subsistence,12.40,0.00,12.40
Neighbourhood Services,Culture & Sport,011204,Events,Supplies and Services,348037,Subsistence,14-Jul-2016,5078747299,CIBO`S,5814,Subsistence,6.40,0.00,6.40
Neighbourhood Services,Culture & Sport,011204,Events,Supplies and Services,324117,Provisions,14-Jul-2016,5078747301,GREGGS- S3495,5462,Catering costs - provisions,10.20,0.00,10.20
Neighbourhood Services,Culture & Sport,011204,Events,Supplies and Services,324117,Provisions,14-Jul-2016,5078747303,TESCO STORES 2916,5411,Catering costs - provisions,17.12,0.00,17.12
Neighbourhood Services,Culture & Sport,011206,Sports,Employees,040149,Recruitment Instruction and Training,14-Jul-2016,5078747337,TYNE AND WEAR SPORT,8299,Training-all costs,20.00,0.00,20.00
Neighbourhood Services,Culture & Sport,054235,Bp Auckland Town Hall Cafe,Supplies and Services,324117,Provisions,14-Jul-2016,5078747341,JR HOLLAND FOODSERVICE,5422,Catering costs - provisions,33.06,0.00,33.06
Neighbourhood Services,Direct Services,021324,Catering - Meadowfield,Supplies and Services,324117,Provisions,14-Jul-2016,5078747349,JR HOLLAND FOODSERVICE,5422,Catering costs - provisions,35.06,0.00,35.06
Neighbourhood Services,Direct Services,021324,Catering - Meadowfield,Supplies and Services,324117,Provisions,14-Jul-2016,5078747353,JR HOLLAND FOODSERVICE,5422,Catering costs - provisions,13.45,0.00,13.45
Children and Adult Services,Childrens Services,085333,Coxhoe Satelite Home,Supplies and Services,324117,Provisions,14-Jul-2016,5078747357,ALDI,5411,Catering costs - provisions,110.60,0.00,110.60
Children and Adult Services,Childrens Services,085333,Coxhoe Satelite Home,Supplies and Services,324117,Provisions,14-Jul-2016,5078747361,ALDI,5411,Catering costs - provisions,8.09,0.00,8.09
Neighbourhood Services,Direct Services,010301,C&G - North Grounds Maintenance,Supplies and Services,312011,Newspapers Books and Periodicals,14-Jul-2016,5078747365,TOOLSTATION LTD,5251,Books-school library,47.88,7.98,39.90
Neighbourhood Services,Direct Services,021235,Catering - Wharton Park,Supplies and Services,324117,Provisions,14-Jul-2016,5078747409,JR HOLLAND FOODSERVICE,5422,Catering costs - provisions,13.36,0.00,13.36
Children and Adult Services,Childrens Services,085380,Operations Manager Adoption & Fostering,Supplies and Services,312011,Newspapers Books and Periodicals,14-Jul-2016,5078747413,Amazon EU,5969,Books-school library,19.41,0.00,19.41
Neighbourhood Services,Culture & Sport,010605,Woodhouse Close Leisure Complex,Supplies and Services,324117,Provisions,14-Jul-2016,5078747429,JR HOLLAND FOODSERVICE,5422,Catering costs - provisions,47.28,0.00,47.28
Neighbourhood Services,Culture & Sport,010605,Woodhouse Close Leisure Complex,Supplies and Services,324117,Provisions,14-Jul-2016,5078747433,BRAKE BROS LTD,5811,Catering costs - provisions,98.04,16.34,81.70
Neighbourhood Services,Culture & Sport,010605,Woodhouse Close Leisure Complex,Supplies and Services,324117,Provisions,14-Jul-2016,5078747433 - 1,BRAKE BROS LTD,5811,Catering costs - provisions,146.79,,146.79
Children and Adult Services,Childrens Services,074000,TTF-Attachment and Results,Supplies and Services,304259,Equipment and Materials,14-Jul-2016,5078747473,WILKO.COM,5722,Equipment-purchase and rental,143.00,0.00,143.00
Regeneration & Economic Development,Economic Development and Housing,030699,Business Growth and Innovation General,Supplies and Services,342033,Computers and Communications,14-Jul-2016,5083800555,WATCHFULPAYPAL,7379,Computer hardware,14.84,0.00,14.84
Regeneration & Economic Development,Economic Development and Housing,030553,Europe Direct Scheme,Transport,235057,Public Transport,14-Jul-2016,5083800657,BRITISH A,3005,Staff travelling,216.45,0.00,216.45
Children and Adult Services,Childrens Services,085958,Support Services,Supplies and Services,328041,Clothing Uniforms and Laundry,14-Jul-2016,5083800679,NEW LOOK INTERNET,5621,Clothing uniforms and laundry,39.96,0.00,39.96
Children and Adult Services,Childrens Services,085958,Support Services,Supplies and Services,328041,Clothing Uniforms and Laundry,14-Jul-2016,5083800681,gethelabel.com,5651,Clothing uniforms and laundry,23.94,0.00,23.94
Children and Adult Services,Childrens Services,085958,Support Services,Supplies and Services,328041,Clothing Uniforms and Laundry,14-Jul-2016,5083800683,NEW LOOK INTERNET,5621,Clothing uniforms and laundry,-10.00,0.00,-10.00
Dedicated Schools Grant,Dedicated Schools Grant,079052,Part Sighted-Belmont Comp,Supplies and Services,312011,Newspapers Books and Periodicals,15-Jul-2016,5078746941,Amazon UK Marketplace,5942,Books-school library,20.48,0.00,20.48
Resources,I.C.T. Services,070205,ICT School Services - Health and Safety Services,Supplies and Services,312011,Newspapers Books and Periodicals,15-Jul-2016,5078747193,Amazon EU,5969,Books-school library,49.50,0.00,49.50
Regeneration & Economic Development,Strategy Programmes and Performance,030053,Building Capacity Exchange,Supplies and Services,384926,Miscellaneous Expenses,15-Jul-2016,5078747199a,Svenska Turistf?ening,7011,International visits,16.45,0.00,16.45
Resources,I.C.T. Services,069010,Administration,Third Party Payments,430100,Rendered by Private Contractors,15-Jul-2016,5078747293,CSS - COMODO GROUP IN,7399,Payments to sub-contractors,5.66,0.00,5.66
Children and Adult Services,Education,071801,Selby Cottage Childcare Centre,Supplies and Services,324117,Provisions,15-Jul-2016,5083800511,ASDA HOME SHOPPING,5411,Catering costs - provisions,151.73,0.00,151.73
Children and Adult Services,Education,071801,Selby Cottage Childcare Centre,Supplies and Services,324117,Provisions,15-Jul-2016,5083800513,TESCO STORES 2278,5411,Catering costs - provisions,6.60,0.00,6.60
Children and Adult Services,Education,071801,Selby Cottage Childcare Centre,Supplies and Services,324117,Provisions,15-Jul-2016,5083800515,ASDA HOME SHOPPING,5411,Catering costs - provisions,-1.74,0.00,-1.74
Neighbourhood Services,EnvironmentHealth & Consumer Protection,010934,Works in Default Holding Code,Income,720130,Fees and Charges,15-Jul-2016,5083800519,WWW.MONEYCLAIM.GOV,9399,Fees-legal,60.00,0.00,60.00
Children and Adult Services,Childrens Services,071380,Bishop Auckland and Barnard Castle Locality,Supplies and Services,332047,Printing Stationery and Gen Off Exps,15-Jul-2016,5083800521,DEMCO EUROPE LTD,5021,Stationery,13.80,0.00,13.80
Children and Adult Services,Education,071733,Shildon Childcare,Supplies and Services,304649,Equipment and Materials,15-Jul-2016,5083800523,POUNDWORLD,5310,Toys,20.00,3.33,16.67
Dedicated Schools Grant,Dedicated Schools Grant,079052,Part Sighted-Belmont Comp,Supplies and Services,304259,Equipment and Materials,15-Jul-2016,5083800529,Kindle Unlimited,5735,Equipment-purchase and rental,7.99,0.00,7.99
Dedicated Schools Grant,Dedicated Schools Grant,079052,Part Sighted-Belmont Comp,Supplies and Services,304999,Equipment and Materials,15-Jul-2016,5083800531,Audible Ltd,5968,Misc equipment tools and materials,7.99,0.00,7.99
Neighbourhood Services,Direct Services,021242,Catering - County Hall,Supplies and Services,324117,Provisions,15-Jul-2016,5083800613,JR HOLLAND FOODSERVICE,5422,Catering costs - provisions,88.45,0.00,88.45
Neighbourhood Services,Direct Services,021242,Catering - County Hall,Supplies and Services,324117,Provisions,15-Jul-2016,5083800615,JR HOLLAND FOODSERVICE,5422,Catering costs - provisions,13.16,0.00,13.16
Neighbourhood Services,Direct Services,021242,Catering - County Hall,Supplies and Services,324117,Provisions,15-Jul-2016,5083800617,JR HOLLAND FOODSERVICE,5422,Catering costs - provisions,5.51,0.00,5.51
Neighbourhood Services,Direct Services,021242,Catering - County Hall,Supplies and Services,324117,Provisions,15-Jul-2016,5083800619,BRAKE BROS LTD,5811,Catering costs - provisions,325.02,54.17,270.85
Neighbourhood Services,Direct Services,021242,Catering - County Hall,Supplies and Services,324117,Provisions,15-Jul-2016,5083800619 - 1,BRAKE BROS LTD,5811,Catering costs - provisions,127.02,,127.02
Neighbourhood Services,Direct Services,021242,Catering - County Hall,Supplies and Services,324117,Provisions,15-Jul-2016,5083800621,BRAKE BROS LTD,5811,Catering costs - provisions,273.86,0.00,273.86
Children and Adult Services,Childrens Services,085341,High Etherley Satelite Home,Supplies and Services,304403,Equipment and Materials,15-Jul-2016,5083800651,Amazon UK Marketplace,5942,Other consumables,5.10,0.00,5.10
Children and Adult Services,Childrens Services,085341,High Etherley Satelite Home,Supplies and Services,328041,Clothing Uniforms and Laundry,15-Jul-2016,5083800653,Amazon UK Marketplace,5942,Clothing uniforms and laundry,7.44,0.00,7.44
Children and Adult Services,Childrens Services,085341,High Etherley Satelite Home,Supplies and Services,312011,Newspapers Books and Periodicals,15-Jul-2016,5083800655,Amazon UK Marketplace,5942,Books-school library,23.94,0.00,23.94
Neighbourhood Services,Direct Services,010367,C&G - South Grounds Maintenance,Supplies and Services,324117,Provisions,15-Jul-2016,5083800687,J M RAINE,5399,Catering costs - provisions,61.20,10.20,51.00
Neighbourhood Services,Direct Services,010301,C&G - North Grounds Maintenance,Supplies and Services,304221,Equipment and Materials,15-Jul-2016,5083800689,SPALDINGS LIMITED,5085,Direct materials,135.00,0.00,135.00
Neighbourhood Services,Direct Services,010301,C&G - North Grounds Maintenance,Supplies and Services,328041,Clothing Uniforms and Laundry,15-Jul-2016,5083800691,THOMAS OWEN & SONS /N/,5611,Clothing uniforms and laundry,46.60,0.00,46.60
Neighbourhood Services,Culture & Sport,011060,Hardwick Park Catering,Supplies and Services,324117,Provisions,15-Jul-2016,5083800693,JR HOLLAND FOODSERVICE,5422,Catering costs - provisions,42.17,0.00,42.17
Neighbourhood Services,Culture & Sport,011060,Hardwick Park Catering,Supplies and Services,324117,Provisions,15-Jul-2016,5083800695,BRAKE BROS LTD,5811,Catering costs - provisions,393.54,65.59,327.95
Neighbourhood Services,Culture & Sport,011060,Hardwick Park Catering,Supplies and Services,324117,Provisions,15-Jul-2016,5083800695 - 1,BRAKE BROS LTD,5811,Catering costs - provisions,291.66,,291.66
Neighbourhood Services,Culture & Sport,011060,Hardwick Park Catering,Supplies and Services,324117,Provisions,15-Jul-2016,5083800697,BRAKE BROS LTD,5811,Catering costs - provisions,125.46,20.91,104.55
Neighbourhood Services,Culture & Sport,011060,Hardwick Park Catering,Supplies and Services,324117,Provisions,15-Jul-2016,5083800697 - 1,BRAKE BROS LTD,5811,Catering costs - provisions,56.68,,56.68
Neighbourhood Services,Culture & Sport,011060,Hardwick Park Catering,Supplies and Services,324117,Provisions,15-Jul-2016,5083800699,JR HOLLAND FOODSERVICE,5422,Catering costs - provisions,-0.74,0.00,-0.74
Regeneration & Economic Development,Economic Development and Housing,030762,Organisational Training & Development,Employees,040149,Recruitment Instruction and Training,15-Jul-2016,5083800705,CITB,8220,Training-all costs,30.00,5.00,25.00
Regeneration & Economic Development,Economic Development and Housing,030762,Organisational Training & Development,Employees,040149,Recruitment Instruction and Training,15-Jul-2016,5083800707,CITB,8220,Training-all costs,30.00,5.00,25.00
Regeneration & Economic Development,Economic Development and Housing,030762,Organisational Training & Development,Employees,040149,Recruitment Instruction and Training,15-Jul-2016,5083800709,CITB,8220,Training-all costs,30.00,5.00,25.00
Neighbourhood Services,Direct Services,021234,Catering - Locomotion,Supplies and Services,324117,Provisions,15-Jul-2016,5083800713,BRAKE BROS LTD,5811,Catering costs - provisions,54.90,9.15,45.75
Neighbourhood Services,Direct Services,010525,Catering - Green Lane,Supplies and Services,324117,Provisions,15-Jul-2016,5083800751,JR HOLLAND FOODSERVICE,5422,Catering costs - provisions,56.15,0.00,56.15
Neighbourhood Services,EnvironmentHealth & Consumer Protection,011035,Consumer Protection,Supplies and Services,384199,Miscellaneous Expenses,15-Jul-2016,5083800759,HPI LTD WEB AC,8220,Other hired and contracted services,19.99,0.00,19.99
Neighbourhood Services,EnvironmentHealth & Consumer Protection,011035,Consumer Protection,Supplies and Services,384199,Miscellaneous Expenses,15-Jul-2016,5083800761,HPI LTD WEB AC,8220,Other hired and contracted services,19.99,0.00,19.99
Children and Adult Services,Childrens Services,085352,Tow Law CU,Supplies and Services,328041,Clothing Uniforms and Laundry,15-Jul-2016,5083800763,B&M RETAIL LTD,5310,Clothing uniforms and laundry,16.95,0.00,16.95
Children and Adult Services,Childrens Services,088064,Bishop Auckland 5 - 19,Supplies and Services,384199,Miscellaneous Expenses,15-Jul-2016,5083800769,SCALLYWAGZ LTD,7997,Other hired and contracted services,100.00,0.00,100.00
Children and Adult Services,Childrens Services,074000,TTF-Attachment and Results,Supplies and Services,384700,Miscellaneous Expenses,15-Jul-2016,5083800771,FRANKS THE FLOORING ST,5713,Miscellaneous grants,150.00,0.00,150.00
Children and Adult Services,Childrens Services,088064,Bishop Auckland 5 - 19,Supplies and Services,304403,Equipment and Materials,15-Jul-2016,5083800773,HOME BARGAINS,5251,Other consumables,21.39,0.00,21.39
Children and Adult Services,Childrens Services,074000,TTF-Attachment and Results,Supplies and Services,384700,Miscellaneous Expenses,15-Jul-2016,5083800775,WILKO RETAIL LIMIT,5722,Miscellaneous grants,102.00,0.00,102.00
Regeneration & Economic Development,Economic Development and Housing,030749,Employability - Youth Contract,Transport,230031,Contract Hire,15-Jul-2016,5083800797,WWW.SIMPLYGO.COM,4131,Pupils-transport to play fields etc,15.40,0.00,15.40
Children and Adult Services,Childrens Services,071360,Consett and Stanley Locality,Supplies and Services,384199,Miscellaneous Expenses,15-Jul-2016,5083800803,WWW.GRAVITYFORCE.CO.UK,7911,Other hired and contracted services,144.00,0.00,144.00
Regeneration & Economic Development,Spatial Policy Planning Assets & Environment,031221,North Pennines - Bowlees,Supplies and Services,304259,Equipment and Materials,15-Jul-2016,5083800805,WWW.LAMPSHOPONLINE.CO.,5072,Equipment-purchase and rental,9.84,1.64,8.20
Neighbourhood Services,Direct Services,010367,C&G - South Grounds Maintenance,Supplies and Services,324117,Provisions,15-Jul-2016,5083800807,TESCO STORES 2916,5411,Catering costs - provisions,23.96,0.00,23.96
Resources,I.C.T. Services,069010,Administration,Supplies and Services,312011,Newspapers Books and Periodicals,15-Jul-2016,5083800809,Amazon UK Marketplace,5942,Books-school library,17.45,0.00,17.45
Resources,I.C.T. Services,069010,Administration,Third Party Payments,430100,Rendered by Private Contractors,15-Jul-2016,5083800811,WP-INSTANTSSL CERTIFIC,7399,Payments to sub-contractors,179.82,0.00,179.82
Resources,I.C.T. Services,069010,Administration,Supplies and Services,312011,Newspapers Books and Periodicals,15-Jul-2016,5083800813,Amazon EU,5969,Books-school library,28.12,0.00,28.12
Resources,I.C.T. Services,069010,Administration,Supplies and Services,304259,Equipment and Materials,15-Jul-2016,5083800815,WWW.ICO.GOV.UK,9399,Equipment-purchase and rental,35.00,0.00,35.00
Resources,I.C.T. Services,069010,Administration,Supplies and Services,304259,Equipment and Materials,15-Jul-2016,5083800817,WWW.ICO.GOV.UK,9399,Equipment-purchase and rental,35.00,0.00,35.00
Resources,I.C.T. Services,069010,Administration,Supplies and Services,304259,Equipment and Materials,15-Jul-2016,5083800819,WWW.ICO.GOV.UK,9399,Equipment-purchase and rental,35.00,0.00,35.00
Resources,I.C.T. Services,069010,Administration,Supplies and Services,304259,Equipment and Materials,15-Jul-2016,5083800821,DISCLOSURE SCOT,9399,Equipment-purchase and rental,25.00,0.00,25.00
Neighbourhood Services,Culture & Sport,011204,Events,Supplies and Services,324117,Provisions,15-Jul-2016,5083800825,SAINSBURYS TO YOU 0774,5411,Catering costs - provisions,222.30,0.00,222.30
Neighbourhood Services,Culture & Sport,011204,Events,Supplies and Services,348037,Subsistence,15-Jul-2016,5083800827,KFC DALTON PARK,5814,Subsistence,27.85,0.00,27.85
Neighbourhood Services,Culture & Sport,011204,Events,Supplies and Services,348037,Subsistence,15-Jul-2016,5083800829,KFC DALTON PARK,5814,Subsistence,5.69,0.00,5.69
Neighbourhood Services,Culture & Sport,011204,Events,Supplies and Services,324117,Provisions,15-Jul-2016,5083800831,VICTORIA STORES - 1430,5411,Catering costs - provisions,5.79,0.00,5.79
Neighbourhood Services,Culture & Sport,054235,Bp Auckland Town Hall Cafe,Supplies and Services,324117,Provisions,15-Jul-2016,5083800875,JR HOLLAND FOODSERVICE,5422,Catering costs - provisions,24.60,0.00,24.60
Regeneration & Economic Development,Transport and Contracted Services,031701,Care Connect All Localities,Supplies and Services,344033,Telephones,15-Jul-2016,5083800877,BT BILL PAYMENT 2,4812,Telephones general-all costs,21.39,3.57,17.82
Regeneration & Economic Development,Transport and Contracted Services,031701,Care Connect All Localities,Supplies and Services,344033,Telephones,15-Jul-2016,5083800879,BT BILL PAYMENT 2,4812,Telephones general-all costs,85.19,14.20,70.99
Regeneration & Economic Development,Transport and Contracted Services,031701,Care Connect All Localities,Supplies and Services,344033,Telephones,15-Jul-2016,5083800881,BT BILL PAYMENT 2,4812,Telephones general-all costs,88.83,14.81,74.02
Regeneration & Economic Development,Transport and Contracted Services,031701,Care Connect All Localities,Supplies and Services,344033,Telephones,15-Jul-2016,5083800883,BT BILL PAYMENT 2,4812,Telephones general-all costs,21.35,3.56,17.79
Regeneration & Economic Development,Transport and Contracted Services,031701,Care Connect All Localities,Supplies and Services,344033,Telephones,15-Jul-2016,5083800885,BT BILL PAYMENT 2,4812,Telephones general-all costs,88.83,14.81,74.02
Regeneration & Economic Development,Transport and Contracted Services,031701,Care Connect All Localities,Supplies and Services,344033,Telephones,15-Jul-2016,5083800887,BT BILL PAYMENT 2,4812,Telephones general-all costs,88.83,14.81,74.02
Regeneration & Economic Development,Transport and Contracted Services,031701,Care Connect All Localities,Supplies and Services,344033,Telephones,15-Jul-2016,5083800889,BT BILL PAYMENT 2,4812,Telephones general-all costs,85.19,14.20,70.99
Regeneration & Economic Development,Transport and Contracted Services,031701,Care Connect All Localities,Supplies and Services,344033,Telephones,15-Jul-2016,5083800891,BT BILL PAYMENT 2,4812,Telephones general-all costs,88.73,14.79,73.94
Regeneration & Economic Development,Transport and Contracted Services,031701,Care Connect All Localities,Supplies and Services,344033,Telephones,15-Jul-2016,5083800893,BT BILL PAYMENT 2,4812,Telephones general-all costs,15.30,2.55,12.75
Regeneration & Economic Development,Transport and Contracted Services,031701,Care Connect All Localities,Supplies and Services,344033,Telephones,15-Jul-2016,5083800895,BT BILL PAYMENT 2,4812,Telephones general-all costs,74.60,12.43,62.17
Regeneration & Economic Development,Transport and Contracted Services,031701,Care Connect All Localities,Supplies and Services,344033,Telephones,15-Jul-2016,5083800897,BT BILL PAYMENT 2,4812,Telephones general-all costs,23.32,3.89,19.43
Regeneration & Economic Development,Transport and Contracted Services,031701,Care Connect All Localities,Supplies and Services,344033,Telephones,15-Jul-2016,5083800899,BT BILL PAYMENT 2,4812,Telephones general-all costs,32.80,5.47,27.33
Neighbourhood Services,Direct Services,021324,Catering - Meadowfield,Supplies and Services,324117,Provisions,15-Jul-2016,5083800901,JR HOLLAND FOODSERVICE,5422,Catering costs - provisions,37.22,0.00,37.22
Neighbourhood Services,Direct Services,021324,Catering - Meadowfield,Supplies and Services,324117,Provisions,15-Jul-2016,5083800903,JR HOLLAND FOODSERVICE,5422,Catering costs - provisions,9.87,0.00,9.87
Neighbourhood Services,Culture & Sport,011086,Positive Futures,Supplies and Services,324117,Provisions,15-Jul-2016,5083800921,ASDA STORES,5411,Catering costs - provisions,9.87,0.00,9.87
Children and Adult Services,Childrens Services,088073,Barnard Castle 0 - 5,Supplies and Services,384700,Miscellaneous Expenses,15-Jul-2016,5083800923,WWW.DIGGERLAND.COM,7991,Miscellaneous grants,67.99,11.33,56.66
Children and Adult Services,Childrens Services,088073,Barnard Castle 0 - 5,Supplies and Services,384700,Miscellaneous Expenses,15-Jul-2016,5083800925,HALL HILL FARM,7299,Miscellaneous grants,26.95,4.49,22.46
Children and Adult Services,Childrens Services,088073,Barnard Castle 0 - 5,Supplies and Services,384700,Miscellaneous Expenses,15-Jul-2016,5083800927,LIGHTWATER VALLEY - RE,7996,Miscellaneous grants,101.00,0.00,101.00
Neighbourhood Services,Culture & Sport,011060,Hardwick Park Catering,Supplies and Services,324117,Provisions,15-Jul-2016,5083800963,SAINSBURYS SACAT (2303,5411,Catering costs - provisions,3.15,0.00,3.15
Neighbourhood Services,Culture & Sport,026591,Hardwick Hall Country Park,Supplies and Services,304403,Equipment and Materials,15-Jul-2016,5083800965,WWW.ANGELWHOLESALE.CO.,5641,Other consumables,57.08,9.51,47.57
Neighbourhood Services,Culture & Sport,026591,Hardwick Hall Country Park,Supplies and Services,304403,Equipment and Materials,15-Jul-2016,5083800967,WWW.BORNGIFTED.CO.UK,5719,Other consumables,32.90,0.00,32.90
Neighbourhood Services,Culture & Sport,010605,Woodhouse Close Leisure Complex,Supplies and Services,324117,Provisions,15-Jul-2016,5083800969,BRAKE BROS LTD,5811,Catering costs - provisions,88.43,0.00,88.43
Neighbourhood Services,Culture & Sport,011225,Locality 2 Team Management,Supplies and Services,324117,Provisions,15-Jul-2016,5083800983,ASDA SUPERSTORE 4987,5411,Catering costs - provisions,43.12,0.00,43.12
Dedicated Schools Grant,Dedicated Schools Grant,079052,Part Sighted-Belmont Comp,Supplies and Services,304403,Equipment and Materials,16-Jul-2016,5083800533,AMAZON UK RETAIL AMAZO,5999,Other consumables,73.88,0.00,73.88
Children and Adult Services,Childrens Services,085958,Support Services,Supplies and Services,324117,Provisions,16-Jul-2016,5083800685,TESCO STORES 6329,5411,Catering costs - provisions,105.83,0.00,105.83
Neighbourhood Services,Culture & Sport,011204,Events,Supplies and Services,348037,Subsistence,16-Jul-2016,5083800833,PRET A MANGER,5812,Subsistence,12.95,0.00,12.95
Neighbourhood Services,Culture & Sport,011204,Events,Supplies and Services,348037,Subsistence,16-Jul-2016,5083800835,DURHAM HOG ROAST,5814,Subsistence,12.00,0.00,12.00
Neighbourhood Services,Culture & Sport,011204,Events,Supplies and Services,324117,Provisions,16-Jul-2016,5083800837,TESCO STORES 6029,5411,Catering costs - provisions,3.05,0.00,3.05
Neighbourhood Services,Culture & Sport,011204,Events,Supplies and Services,304999,Equipment and Materials,16-Jul-2016,5083800839,BOOTS/0561,5912,Misc equipment tools and materials,7.50,0.00,7.50
Neighbourhood Services,Culture & Sport,054399,Local Delivery-Libraries,Supplies and Services,312011,Newspapers Books and Periodicals,16-Jul-2016,5083800847,Amazon EU,5969,Books-school library,15.98,0.00,15.98
Neighbourhood Services,Direct Services,021235,Catering - Wharton Park,Supplies and Services,324117,Provisions,16-Jul-2016,5083800955,BRAKE BROS LTD,5811,Catering costs - provisions,159.06,26.51,132.55
Neighbourhood Services,Direct Services,021235,Catering - Wharton Park,Supplies and Services,324117,Provisions,16-Jul-2016,5083800955 - 1,BRAKE BROS LTD,5811,Catering costs - provisions,87.52,,87.52
Neighbourhood Services,Direct Services,021235,Catering - Wharton Park,Supplies and Services,324117,Provisions,16-Jul-2016,5083800957,BRAKE BROS LTD,5811,Catering costs - provisions,116.10,19.35,96.75
Neighbourhood Services,Direct Services,021235,Catering - Wharton Park,Supplies and Services,324117,Provisions,16-Jul-2016,5083800957 - 1,BRAKE BROS LTD,5811,Catering costs - provisions,5.62,,5.62
Regeneration & Economic Development,Economic Development and Housing,030699,Business Growth and Innovation General,Supplies and Services,304999,Equipment and Materials,17-Jul-2016,5083800557,PatentInspirationEU,5817,Misc equipment tools and materials,82.08,0.00,82.08
Resources,Resources Management,069000,Resources Management,Supplies and Services,332047,Printing Stationery and Gen Off Exps,17-Jul-2016,5083800801,CO-OP GROUP 010830,5411,Stationery,9.05,0.00,9.05
Neighbourhood Services,Culture & Sport,011204,Events,Supplies and Services,348037,Subsistence,17-Jul-2016,5083800841,TANGO,5812,Subsistence,40.00,0.00,40.00
Neighbourhood Services,Culture & Sport,011204,Events,Supplies and Services,348037,Subsistence,17-Jul-2016,5083800843,PRET A MANGER,5812,Subsistence,10.95,0.00,10.95
Neighbourhood Services,Culture & Sport,011204,Events,Supplies and Services,324117,Provisions,17-Jul-2016,5083800845,TESCO STORES 6029,5411,Catering costs - provisions,14.94,0.00,14.94
Children and Adult Services,Childrens Services,088073,Barnard Castle 0 - 5,Supplies and Services,384700,Miscellaneous Expenses,17-Jul-2016,5083800929,PLAZA CUSTOMER SER,5812,Miscellaneous grants,225.00,0.00,225.00
Regeneration & Economic Development,Economic Development and Housing,030699,Business Growth and Innovation General,Supplies and Services,342033,Computers and Communications,18-Jul-2016,5083800559a,WATCHFULPAYPAL,7379,Computer hardware,0.41,0.00,0.41
Regeneration & Economic Development,Economic Development and Housing,030699,Business Growth and Innovation General,Supplies and Services,304999,Equipment and Materials,18-Jul-2016,5083800561a,PatentInspirationEU,5817,Misc equipment tools and materials,2.26,0.00,2.26
Children and Adult Services,Education,071801,Selby Cottage Childcare Centre,Supplies and Services,304259,Equipment and Materials,18-Jul-2016,5090012495,WILKO RETAIL LIMIT,5722,Equipment-purchase and rental,46.05,0.00,46.05
Children and Adult Services,Education,071733,Shildon Childcare,Supplies and Services,324117,Provisions,18-Jul-2016,5090012497,ASDA HOME SHOPPING,5411,Catering costs - provisions,30.28,0.00,30.28
Children and Adult Services,Head of Adults,052760,OP Management,Income,720130,Fees and Charges,18-Jul-2016,5090012529,COUNTY COURT,9222,Fees-legal,335.00,0.00,335.00
Neighbourhood Services,Direct Services,010367,C&G - South Grounds Maintenance,Supplies and Services,304259,Equipment and Materials,18-Jul-2016,5090012555,MKM PETERLEE,5211,Equipment-purchase and rental,5.99,0.00,5.99
Neighbourhood Services,Direct Services,021242,Catering - County Hall,Supplies and Services,324117,Provisions,18-Jul-2016,5090012561,FREEMAN CATERING BUTCH,5422,Catering costs - provisions,111.94,0.00,111.94
Neighbourhood Services,Direct Services,021242,Catering - County Hall,Supplies and Services,324117,Provisions,18-Jul-2016,5090012565,JR HOLLAND FOODSERVICE,5422,Catering costs - provisions,38.61,0.00,38.61
Neighbourhood Services,Direct Services,021242,Catering - County Hall,Supplies and Services,324117,Provisions,18-Jul-2016,5090012567,JR HOLLAND FOODSERVICE,5422,Catering costs - provisions,15.78,0.00,15.78
Neighbourhood Services,Direct Services,021242,Catering - County Hall,Supplies and Services,324117,Provisions,18-Jul-2016,5090012569,JR HOLLAND FOODSERVICE,5422,Catering costs - provisions,13.52,0.00,13.52
Neighbourhood Services,Culture & Sport,054812,Gala Theatre - Catering etc,Supplies and Services,324117,Provisions,18-Jul-2016,5090012577,FREEMAN CATERING BUTCH,5422,Catering costs - provisions,30.20,0.00,30.20
Children and Adult Services,Childrens Services,085351,Framwellgate Moor CU,Supplies and Services,312011,Newspapers Books and Periodicals,18-Jul-2016,5090012613,Amazon UK Marketplace,5942,Books-school library,29.99,0.00,29.99
Children and Adult Services,Childrens Services,071390,Ferryhill and Newton Aycliffe Locality,Supplies and Services,324117,Provisions,18-Jul-2016,5090012617,ASDA SUPERSTORE 4987,5411,Catering costs - provisions,26.40,0.00,26.40
Children and Adult Services,Childrens Services,071390,Ferryhill and Newton Aycliffe Locality,Supplies and Services,324117,Provisions,18-Jul-2016,5090012619,ASDA SUPERSTORE 4987,5411,Catering costs - provisions,18.52,0.00,18.52
Neighbourhood Services,Culture & Sport,011219,Office Services,Supplies and Services,344033,Telephones,18-Jul-2016,5090012629,TEXTANYWHERE LTD,4814,Telephones general-all costs,65.28,10.88,54.40
Neighbourhood Services,Direct Services,010561,Fleet - Morrison Busty Fleet,Transport,215013,Running Costs of Vehicles,18-Jul-2016,5090012645,DVLA VEHICLE TAX,9399,Vehicle Excise Duty (VED),232.50,0.00,232.50
Neighbourhood Services,Direct Services,010551,Fleet - Chilton Fleet,Transport,215013,Running Costs of Vehicles,18-Jul-2016,5090012647,DVLA VEHICLE TAX,9399,Vehicle Excise Duty (VED),232.50,0.00,232.50
Children and Adult Services,Education,071732,Dean Bank Childcare,Supplies and Services,312011,Newspapers Books and Periodicals,18-Jul-2016,5090012667,HOME BARGAINS SPENNYMO,5251,Books-school library,28.94,0.00,28.94
Children and Adult Services,Education,071732,Dean Bank Childcare,Supplies and Services,324117,Provisions,18-Jul-2016,5090012669,ASDA SUPERSTORE 4987,5411,Catering costs - provisions,80.24,0.00,80.24
Neighbourhood Services,Culture & Sport,011060,Hardwick Park Catering,Supplies and Services,324117,Provisions,18-Jul-2016,5090012699,FREEMAN CATERING BUTCH,5422,Catering costs - provisions,34.29,0.00,34.29
Neighbourhood Services,Culture & Sport,011060,Hardwick Park Catering,Supplies and Services,324117,Provisions,18-Jul-2016,5090012703,FREEMAN CATERING BUTCH,5422,Catering costs - provisions,26.28,0.00,26.28
Neighbourhood Services,Culture & Sport,011060,Hardwick Park Catering,Supplies and Services,324117,Provisions,18-Jul-2016,5090012707,JR HOLLAND FOODSERVICE,5422,Catering costs - provisions,78.49,0.00,78.49
Neighbourhood Services,Culture & Sport,011060,Hardwick Park Catering,Supplies and Services,324117,Provisions,18-Jul-2016,5090012711,BRAKE BROS LTD,5811,Catering costs - provisions,725.40,120.90,604.50
Neighbourhood Services,Culture & Sport,011060,Hardwick Park Catering,Supplies and Services,324117,Provisions,18-Jul-2016,5090012711 - 1,BRAKE BROS LTD,5811,Catering costs - provisions,160.23,,160.23
Neighbourhood Services,Culture & Sport,011060,Hardwick Park Catering,Supplies and Services,324117,Provisions,18-Jul-2016,5090012719,BRAKE BROS LTD,5811,Catering costs - provisions,129.00,21.50,107.50
Neighbourhood Services,Culture & Sport,011060,Hardwick Park Catering,Supplies and Services,324117,Provisions,18-Jul-2016,5090012719 - 1,BRAKE BROS LTD,5811,Catering costs - provisions,299.19,,299.19
Neighbourhood Services,Direct Services,010525,Catering - Green Lane,Supplies and Services,324117,Provisions,18-Jul-2016,5090012751,BRAKE BROS LTD,5811,Catering costs - provisions,42.59,0.00,42.59
Dedicated Schools Grant,Dedicated Schools Grant,079075,Learning Difficulties Team,Employees,040149,Recruitment Instruction and Training,18-Jul-2016,5090012767,WWW.ELKLAN.CO.UK,8299,Training-all costs,50.00,0.00,50.00
Children and Adult Services,Childrens Services,085352,Tow Law CU,Supplies and Services,324117,Provisions,18-Jul-2016,5090012781,TESCO STORES 2371,5411,Catering costs - provisions,203.88,0.00,203.88
Children and Adult Services,Childrens Services,088063,Bishop Auckland 0 - 5,Supplies and Services,324117,Provisions,18-Jul-2016,5090012803,ASDA STORES,5411,Catering costs - provisions,5.61,0.00,5.61
Neighbourhood Services,Direct Services,010367,C&G - South Grounds Maintenance,Supplies and Services,324117,Provisions,18-Jul-2016,5090012821,J M RAINE,5399,Catering costs - provisions,176.38,0.00,176.38
Children and Adult Services,Childrens Services,085332,Middlestone Moor CU,Employees,040149,Recruitment Instruction and Training,18-Jul-2016,5090012825,PAYPAL N R PICKEN,8931,Training-all costs,48.50,0.00,48.50
Children and Adult Services,Childrens Services,085332,Middlestone Moor CU,Supplies and Services,328041,Clothing Uniforms and Laundry,18-Jul-2016,5090012827,ARGOS RETAIL GROUP,5310,Clothing uniforms and laundry,59.98,0.00,59.98
Children and Adult Services,Childrens Services,085332,Middlestone Moor CU,Supplies and Services,324117,Provisions,18-Jul-2016,5090012829,TESCO STORES 6329,5411,Catering costs - provisions,165.37,0.00,165.37
Children and Adult Services,Childrens Services,085332,Middlestone Moor CU,Supplies and Services,304403,Equipment and Materials,18-Jul-2016,5090012833,TESCO DIRECT,5999,Other consumables,187.00,0.00,187.00
Children and Adult Services,Childrens Services,085334,West Rainton Satelite Home,Supplies and Services,312011,Newspapers Books and Periodicals,18-Jul-2016,5090012837,Amazon UK Marketplace,5942,Books-school library,6.99,0.00,6.99
Regeneration & Economic Development,Spatial Policy Planning Assets & Environment,031202,North Pennines - Peatscapes,Supplies and Services,340001,Postages,18-Jul-2016,5090012843,THE POST OFFICE,9402,Postages,21.78,0.00,21.78
Neighbourhood Services,Direct Services,021324,Catering - Meadowfield,Supplies and Services,324117,Provisions,18-Jul-2016,5090012895,FREEMAN CATERING BUTCH,5422,Catering costs - provisions,65.79,0.00,65.79
Neighbourhood Services,Direct Services,021324,Catering - Meadowfield,Supplies and Services,324117,Provisions,18-Jul-2016,5090012897,FREEMAN CATERING BUTCH,5422,Catering costs - provisions,46.86,0.00,46.86
Neighbourhood Services,Direct Services,010301,C&G - North Grounds Maintenance,Supplies and Services,304259,Equipment and Materials,18-Jul-2016,5090012901,MKM BUILDING SUPPLIES,5211,Equipment-purchase and rental,234.24,39.04,195.20
Neighbourhood Services,Direct Services,010301,C&G - North Grounds Maintenance,Supplies and Services,312011,Newspapers Books and Periodicals,18-Jul-2016,5090012903,TOOLSTATION LTD,5251,Books-school library,42.15,7.03,35.12
Neighbourhood Services,Culture & Sport,011086,Positive Futures,Supplies and Services,324117,Provisions,18-Jul-2016,5090012915,ASDA STORES LTD,5411,Catering costs - provisions,12.15,0.00,12.15
Children and Adult Services,Childrens Services,088083,Ferryhill 0 - 5,Supplies and Services,312011,Newspapers Books and Periodicals,18-Jul-2016,5090012919,HOME BARGAINS SPENNYMO,5251,Books-school library,6.14,0.00,6.14
Neighbourhood Services,Culture & Sport,011191,Wellbeing4Life,Supplies and Services,324117,Provisions,18-Jul-2016,5090012949,SAINSBURYS SACAT 0776,5411,Catering costs - provisions,6.60,0.00,6.60
Children and Adult Services,Childrens Services,088083,Ferryhill 0 - 5,Supplies and Services,324117,Provisions,18-Jul-2016,5090012951,ASDA HOME SHOPPING,5411,Catering costs - provisions,39.89,0.00,39.89
Neighbourhood Services,Direct Services,021235,Catering - Wharton Park,Supplies and Services,324117,Provisions,18-Jul-2016,5090012977,BRAKE BROS LTD,5811,Catering costs - provisions,160.50,26.75,133.75
Neighbourhood Services,Direct Services,021235,Catering - Wharton Park,Supplies and Services,324117,Provisions,18-Jul-2016,5090012977 - 1,BRAKE BROS LTD,5811,Catering costs - provisions,73.89,,73.89
Neighbourhood Services,Culture & Sport,010605,Woodhouse Close Leisure Complex,Supplies and Services,324117,Provisions,18-Jul-2016,5090012995,FREEMAN CATERING BUTCH,5422,Catering costs - provisions,43.80,0.00,43.80
Neighbourhood Services,Culture & Sport,010605,Woodhouse Close Leisure Complex,Supplies and Services,324117,Provisions,18-Jul-2016,5090012997,JR HOLLAND FOODSERVICE,5422,Catering costs - provisions,45.58,0.00,45.58
Children and Adult Services,Education,078411,16-19 Education & Training,Supplies and Services,340001,Postages,18-Jul-2016,5090013045,WWW.ROYALMAIL.COM,9402,Postages,315.00,0.00,315.00
Regeneration & Economic Development,Spatial Policy Planning Assets & Environment,031217,North Pennines - Cold Blooded & Spineless,Supplies and Services,304245,Equipment and Materials,19-Jul-2016,5090012847,Amazon UK Marketplace,5942,Materials,14.48,2.41,12.07
Neighbourhood Services,Direct Services,021100,Catering - General,Supplies and Services,304259,Equipment and Materials,19-Jul-2016,5092954501,WILKO RETAIL LIMIT,5722,Equipment-purchase and rental,9.99,0.00,9.99
Neighbourhood Services,Direct Services,021100,Catering - General,Supplies and Services,324117,Provisions,19-Jul-2016,5092954503,TESCO STORES 2916,5411,Catering costs - provisions,10.00,0.00,10.00
Children and Adult Services,Education,071801,Selby Cottage Childcare Centre,Supplies and Services,324117,Provisions,19-Jul-2016,5092954505,TESCO STORES 2278,5411,Catering costs - provisions,58.91,0.00,58.91
Children and Adult Services,Childrens Services,071380,Bishop Auckland and Barnard Castle Locality,Supplies and Services,324117,Provisions,19-Jul-2016,5092954507,MARKS&SPENCER PLC SF,5411,Catering costs - provisions,25.00,0.00,25.00
Children and Adult Services,Childrens Services,071380,Bishop Auckland and Barnard Castle Locality,Supplies and Services,324117,Provisions,19-Jul-2016,5092954509,TESCO STORES 6329,5411,Catering costs - provisions,40.91,0.00,40.91
Children and Adult Services,Childrens Services,085957,Secure Management,Supplies and Services,304245,Equipment and Materials,19-Jul-2016,5092954521,SCREWFIX DIRECT,5211,Materials,17.98,3.00,14.98
Neighbourhood Services,Direct Services,021242,Catering - County Hall,Supplies and Services,324117,Provisions,19-Jul-2016,5092954541,BRAMBLES FOODS LTD,5499,Catering costs - provisions,601.60,0.00,601.60
Neighbourhood Services,Direct Services,021242,Catering - County Hall,Supplies and Services,324117,Provisions,19-Jul-2016,5092954543,JR HOLLAND FOODSERVICE,5422,Catering costs - provisions,89.64,0.00,89.64
Neighbourhood Services,Direct Services,021242,Catering - County Hall,Supplies and Services,324117,Provisions,19-Jul-2016,5092954545,JR HOLLAND FOODSERVICE,5422,Catering costs - provisions,6.58,0.00,6.58
Neighbourhood Services,Direct Services,021242,Catering - County Hall,Supplies and Services,324117,Provisions,19-Jul-2016,5092954547,BRAKE BROS LTD,5811,Catering costs - provisions,198.92,0.00,198.92
Neighbourhood Services,Culture & Sport,054812,Gala Theatre - Catering etc,Supplies and Services,324117,Provisions,19-Jul-2016,5092954553,JR HOLLAND FOODSERVICE,5422,Catering costs - provisions,42.10,0.00,42.10
Neighbourhood Services,Culture & Sport,054812,Gala Theatre - Catering etc,Supplies and Services,324117,Provisions,19-Jul-2016,5092954555,BRAKE BROS LTD,5811,Catering costs - provisions,93.24,15.54,77.70
Neighbourhood Services,Culture & Sport,054812,Gala Theatre - Catering etc,Supplies and Services,324117,Provisions,19-Jul-2016,5092954555 - 1,BRAKE BROS LTD,5811,Catering costs - provisions,71.73,,71.73
Children and Adult Services,Childrens Services,085351,Framwellgate Moor CU,Supplies and Services,324117,Provisions,19-Jul-2016,5092954561,ASDA HOME SHOPPING,5411,Catering costs - provisions,142.04,0.00,142.04
Children and Adult Services,Childrens Services,085351,Framwellgate Moor CU,Supplies and Services,324117,Provisions,19-Jul-2016,5092954563,ASDA HOME SHOPPING,5411,Catering costs - provisions,-0.09,0.00,-0.09
Children and Adult Services,Childrens Services,071370,Peterlee and Seaham Locality,Supplies and Services,328041,Clothing Uniforms and Laundry,19-Jul-2016,5092954567,ARGOS LTD,5310,Clothing uniforms and laundry,54.96,0.00,54.96
Children and Adult Services,Childrens Services,071370,Peterlee and Seaham Locality,Supplies and Services,324117,Provisions,19-Jul-2016,5092954569,ASDA STORES LTD,5411,Catering costs - provisions,25.00,0.00,25.00
Children and Adult Services,Childrens Services,085958,Support Services,Supplies and Services,328041,Clothing Uniforms and Laundry,19-Jul-2016,5092954593,WWW.FOOTLOCKER.EU,5661,Clothing uniforms and laundry,124.99,0.00,124.99
Children and Adult Services,Childrens Services,085958,Support Services,Supplies and Services,328041,Clothing Uniforms and Laundry,19-Jul-2016,5092954595,WWW.VANMILDERT.COM,5691,Clothing uniforms and laundry,121.99,20.33,101.66
Children and Adult Services,Childrens Services,085958,Support Services,Supplies and Services,304259,Equipment and Materials,19-Jul-2016,5092954597,WWW.FOOTASYLUM.COM,5941,Equipment-purchase and rental,64.99,0.00,64.99
Children and Adult Services,Childrens Services,085958,Support Services,Supplies and Services,304259,Equipment and Materials,19-Jul-2016,5092954599,WWW.TESSUTI.CO.UK,5941,Equipment-purchase and rental,43.99,0.00,43.99
Children and Adult Services,Childrens Services,085958,Support Services,Supplies and Services,304259,Equipment and Materials,19-Jul-2016,5092954601,WWW.TESSUTI.CO.UK,5941,Equipment-purchase and rental,73.99,0.00,73.99
Neighbourhood Services,Culture & Sport,011060,Hardwick Park Catering,Supplies and Services,324117,Provisions,19-Jul-2016,5092954669,BRAMBLES FOODS LTD,5499,Catering costs - provisions,296.85,0.00,296.85
Neighbourhood Services,Culture & Sport,011060,Hardwick Park Catering,Supplies and Services,324117,Provisions,19-Jul-2016,5092954671,JR HOLLAND FOODSERVICE,5422,Catering costs - provisions,36.23,0.00,36.23
Neighbourhood Services,Culture & Sport,011060,Hardwick Park Catering,Supplies and Services,324117,Provisions,19-Jul-2016,5092954673,JR HOLLAND FOODSERVICE,5422,Catering costs - provisions,13.05,0.00,13.05
Resources,I.C.T. Services,065335,Operations - System & Repairs Trading,Supplies and Services,342033,Computers and Communications,19-Jul-2016,5092954677,THE REPLACE BASE LTD,5999,Computer hardware,82.70,0.00,82.70
Neighbourhood Services,Direct Services,010525,Catering - Green Lane,Supplies and Services,324117,Provisions,19-Jul-2016,5092954687,BRAMBLES FOODS LTD,5499,Catering costs - provisions,90.40,0.00,90.40
Neighbourhood Services,Direct Services,010525,Catering - Green Lane,Supplies and Services,324117,Provisions,19-Jul-2016,5092954689,BRAKE BROS LTD,5811,Catering costs - provisions,80.02,0.00,80.02
Children and Adult Services,Childrens Services,088063,Bishop Auckland 0 - 5,Supplies and Services,328041,Clothing Uniforms and Laundry,19-Jul-2016,5092954705,W BOYES & CO LTD BISHO,5310,Clothing uniforms and laundry,28.80,0.00,28.80
Children and Adult Services,Childrens Services,088064,Bishop Auckland 5 - 19,Supplies and Services,324117,Provisions,19-Jul-2016,5092954707,POUNDWORLD RETAIL,5310,Catering costs - provisions,35.10,0.00,35.10
Children and Adult Services,Childrens Services,088064,Bishop Auckland 5 - 19,Supplies and Services,304403,Equipment and Materials,19-Jul-2016,5092954709,WILKO RETAIL LIMIT,5722,Other consumables,6.00,0.00,6.00
Children and Adult Services,Childrens Services,085334,West Rainton Satelite Home,Supplies and Services,312011,Newspapers Books and Periodicals,19-Jul-2016,5092954719,Amazon UK Marketplace,5942,Books-school library,14.20,0.00,14.20
Neighbourhood Services,Direct Services,010367,C&G - South Grounds Maintenance,Supplies and Services,304259,Equipment and Materials,19-Jul-2016,5092954723,HALFORDS 0526,5940,Equipment-purchase and rental,15.48,0.00,15.48
Resources,I.C.T. Services,069010,Administration,Supplies and Services,304259,Equipment and Materials,19-Jul-2016,5092954725,SUNDERLAND CC,9399,Equipment-purchase and rental,10.00,0.00,10.00
Neighbourhood Services,Direct Services,010301,C&G - North Grounds Maintenance,Supplies and Services,304403,Equipment and Materials,19-Jul-2016,5092954739,BESCOL,5231,Other consumables,103.00,17.17,85.83
Neighbourhood Services,Direct Services,010301,C&G - North Grounds Maintenance,Supplies and Services,304403,Equipment and Materials,19-Jul-2016,5092954741,BESCOL,5231,Other consumables,29.21,4.87,24.34
Neighbourhood Services,Culture & Sport,054235,Bp Auckland Town Hall Cafe,Supplies and Services,324117,Provisions,19-Jul-2016,5092954749,BRAMBLES FOODS LTD,5499,Catering costs - provisions,236.29,0.00,236.29
Neighbourhood Services,Direct Services,021324,Catering - Meadowfield,Supplies and Services,324117,Provisions,19-Jul-2016,5092954751,BRAMBLES FOODS LTD,5499,Catering costs - provisions,77.10,0.00,77.10
Neighbourhood Services,Direct Services,021324,Catering - Meadowfield,Supplies and Services,324117,Provisions,19-Jul-2016,5092954753,BRAKE BROS LTD,5811,Catering costs - provisions,55.34,0.00,55.34
Children and Adult Services,Childrens Services,085333,Coxhoe Satelite Home,Supplies and Services,324117,Provisions,19-Jul-2016,5092954755,ALDI,5411,Catering costs - provisions,33.73,0.00,33.73
Children and Adult Services,Childrens Services,085333,Coxhoe Satelite Home,Supplies and Services,328041,Clothing Uniforms and Laundry,19-Jul-2016,5092954757,B&M RETAIL LTD,5310,Clothing uniforms and laundry,4.48,0.00,4.48
Neighbourhood Services,Direct Services,021235,Catering - Wharton Park,Supplies and Services,324117,Provisions,19-Jul-2016,5092954791,JR HOLLAND FOODSERVICE,5422,Catering costs - provisions,25.18,0.00,25.18
Neighbourhood Services,Direct Services,021235,Catering - Wharton Park,Supplies and Services,324117,Provisions,19-Jul-2016,5092954793,BRAKE BROS LTD,5811,Catering costs - provisions,249.66,41.61,208.05
Neighbourhood Services,Direct Services,021235,Catering - Wharton Park,Supplies and Services,324117,Provisions,19-Jul-2016,5092954793 - 1,BRAKE BROS LTD,5811,Catering costs - provisions,32.63,,32.63
Neighbourhood Services,Direct Services,021235,Catering - Wharton Park,Supplies and Services,324117,Provisions,19-Jul-2016,5092954795,BRAKE BROS LTD,5811,Catering costs - provisions,-7.69,0.00,-7.69
Neighbourhood Services,Culture & Sport,026591,Hardwick Hall Country Park,Supplies and Services,304403,Equipment and Materials,19-Jul-2016,5092954797,WWW.SPARKSGIFTWHOLESAL,5947,Other consumables,56.94,0.00,56.94
Children and Adult Services,Childrens Services,071370,Peterlee and Seaham Locality,Supplies and Services,308011,Furniture,19-Jul-2016,5092954817,RFC CARPETS,5713,Furniture repair and replacement,150.00,25.00,125.00
Children and Adult Services,Childrens Services,085958,Support Services,Supplies and Services,328041,Clothing Uniforms and Laundry,19-Jul-2016,5096671127,gethelabel.com,5651,Clothing uniforms and laundry,23.02,0.00,23.02
Children and Adult Services,Childrens Services,085958,Support Services,Supplies and Services,328041,Clothing Uniforms and Laundry,19-Jul-2016,5096671135,WWW.TOPSHOP.COM,5691,Clothing uniforms and laundry,90.00,0.00,90.00
Children and Adult Services,Childrens Services,085801,CDYOS - Support,Supplies and Services,324117,Provisions,19-Jul-2016,5096671375,ASDA HOME SHOPPING,5411,Catering costs - provisions,62.08,0.00,62.08
Neighbourhood Services,Direct Services,021234,Catering - Locomotion,Supplies and Services,324117,Provisions,19-Jul-2016,5100929643,BRAKE BROS LTD,5811,Catering costs - provisions,582.42,97.07,485.35
Neighbourhood Services,Direct Services,021234,Catering - Locomotion,Supplies and Services,324117,Provisions,19-Jul-2016,5100929643 - 1,BRAKE BROS LTD,5811,Catering costs - provisions,92.25,,92.25
Children and Adult Services,Education,071801,Selby Cottage Childcare Centre,Supplies and Services,328041,Clothing Uniforms and Laundry,20-Jul-2016,5096670961,POUNDLAND LTD 1330,5310,Clothing uniforms and laundry,3.00,0.50,2.50
Children and Adult Services,Education,071801,Selby Cottage Childcare Centre,Supplies and Services,328041,Clothing Uniforms and Laundry,20-Jul-2016,5096670961 - 1,POUNDLAND LTD 1330,5310,Clothing uniforms and laundry,2.05,,2.05
Children and Adult Services,Education,071801,Selby Cottage Childcare Centre,Supplies and Services,324117,Provisions,20-Jul-2016,5096670963,TESCO STORES 2278,5411,Catering costs - provisions,18.04,0.00,18.04
Children and Adult Services,Education,071733,Shildon Childcare,Supplies and Services,324117,Provisions,20-Jul-2016,5096670979,TESCO STORES 2916,5411,Catering costs - provisions,6.00,0.00,6.00
Children and Adult Services,Education,071733,Shildon Childcare,Supplies and Services,324117,Provisions,20-Jul-2016,5096670983,TESCO STORES 2916,5411,Catering costs - provisions,-2.50,0.00,-2.50
Children and Adult Services,Childrens Services,071380,Bishop Auckland and Barnard Castle Locality,Supplies and Services,304403,Equipment and Materials,20-Jul-2016,5096670989,TESCO DIRECT,5999,Other consumables,154.95,0.00,154.95
Children and Adult Services,Childrens Services,071449,Ferryhill One Point Hub,Supplies and Services,324117,Provisions,20-Jul-2016,5096670999,ASDA SUPERSTORE 4987,5411,Catering costs - provisions,10.05,0.00,10.05
Children and Adult Services,Childrens Services,085342,9 Cedar Drive Aycliffe,Supplies and Services,324117,Provisions,20-Jul-2016,5096671021,G BOLAM FOODS,5499,Catering costs - provisions,177.02,0.00,177.02
Children and Adult Services,Childrens Services,085342,9 Cedar Drive Aycliffe,Supplies and Services,324117,Provisions,20-Jul-2016,5096671027,TESCO STORES 2916,5411,Catering costs - provisions,129.51,0.00,129.51
Children and Adult Services,Childrens Services,085342,9 Cedar Drive Aycliffe,Supplies and Services,324117,Provisions,20-Jul-2016,5096671031,TESCO STORES 2916,5411,Catering costs - provisions,32.10,0.00,32.10
Regeneration & Economic Development,Economic Development and Housing,030699,Business Growth and Innovation General,Supplies and Services,342033,Computers and Communications,20-Jul-2016,5096671035,"FORMSTACK, LLC",7372,Computer hardware,263.76,0.00,263.76
Neighbourhood Services,Direct Services,021242,Catering - County Hall,Supplies and Services,324117,Provisions,20-Jul-2016,5096671071,JR HOLLAND FOODSERVICE,5422,Catering costs - provisions,109.46,0.00,109.46
Neighbourhood Services,Direct Services,021242,Catering - County Hall,Supplies and Services,324117,Provisions,20-Jul-2016,5096671079,JR HOLLAND FOODSERVICE,5422,Catering costs - provisions,31.35,0.00,31.35
Neighbourhood Services,Direct Services,021242,Catering - County Hall,Supplies and Services,324117,Provisions,20-Jul-2016,5096671083,JR HOLLAND FOODSERVICE,5422,Catering costs - provisions,5.60,0.00,5.60
Children and Adult Services,Childrens Services,071390,Ferryhill and Newton Aycliffe Locality,Supplies and Services,328041,Clothing Uniforms and Laundry,20-Jul-2016,5096671087,ARGOS RETAIL GROUP,5310,Clothing uniforms and laundry,69.92,0.00,69.92
Neighbourhood Services,Culture & Sport,011219,Office Services,Supplies and Services,342053,Computers and Communications,20-Jul-2016,5096671101,CREATESEND/COM,5045,Computer software,288.00,0.00,288.00
Children and Adult Services,Childrens Services,085958,Support Services,Supplies and Services,324117,Provisions,20-Jul-2016,5096671131,TESCO STORES 6329,5411,Catering costs - provisions,82.28,0.00,82.28
Neighbourhood Services,Direct Services,010367,C&G - South Grounds Maintenance,Supplies and Services,304259,Equipment and Materials,20-Jul-2016,5096671187,SCREWFIX,5211,Equipment-purchase and rental,39.52,6.59,32.93
Children and Adult Services,Childrens Services,071350,Durham and Chester Le Street Locality,Supplies and Services,328041,Clothing Uniforms and Laundry,20-Jul-2016,5096671191,MAMAS & PAPAS,5641,Clothing uniforms and laundry,397.95,0.00,397.95
Children and Adult Services,Childrens Services,071360,Consett and Stanley Locality,Employees,040149,Recruitment Instruction and Training,20-Jul-2016,5096671203,NATIONAL TRUST,8398,Training-all costs,42.00,0.00,42.00
Neighbourhood Services,Culture & Sport,011060,Hardwick Park Catering,Supplies and Services,324117,Provisions,20-Jul-2016,5096671211,JR HOLLAND FOODSERVICE,5422,Catering costs - provisions,61.13,0.00,61.13
Neighbourhood Services,Culture & Sport,011060,Hardwick Park Catering,Supplies and Services,324117,Provisions,20-Jul-2016,5096671219,BRAKE BROS LTD,5811,Catering costs - provisions,738.54,123.09,615.45
Neighbourhood Services,Culture & Sport,011060,Hardwick Park Catering,Supplies and Services,324117,Provisions,20-Jul-2016,5096671219 - 1,BRAKE BROS LTD,5811,Catering costs - provisions,35.71,,35.71
Neighbourhood Services,Culture & Sport,011060,Hardwick Park Catering,Supplies and Services,324117,Provisions,20-Jul-2016,5096671229,BRAKE BROS LTD,5811,Catering costs - provisions,166.02,27.67,138.35
Neighbourhood Services,Culture & Sport,011060,Hardwick Park Catering,Supplies and Services,324117,Provisions,20-Jul-2016,5096671229 - 1,BRAKE BROS LTD,5811,Catering costs - provisions,204.14,,204.14
Resources,I.C.T. Services,070205,ICT School Services - Health and Safety Services,Supplies and Services,304403,Equipment and Materials,20-Jul-2016,5096671245,WWW ESPARES CO UK,5065,Other consumables,195.24,0.00,195.24
Neighbourhood Services,Culture & Sport,011210,Parks & Countryside,Supplies and Services,336005,Advertising,20-Jul-2016,5096671249,FACEBK LB2W3A6KS2,7311,Advertising other than for staff,39.65,0.00,39.65
Neighbourhood Services,Direct Services,010525,Catering - Green Lane,Supplies and Services,324117,Provisions,20-Jul-2016,5096671261,JR HOLLAND FOODSERVICE,5422,Catering costs - provisions,23.47,0.00,23.47
Neighbourhood Services,EnvironmentHealth & Consumer Protection,011035,Consumer Protection,Supplies and Services,384199,Miscellaneous Expenses,20-Jul-2016,5096671265,HPI LTD WEB AC,8220,Other hired and contracted services,-19.99,0.00,-19.99
Children and Adult Services,Childrens Services,085332,Middlestone Moor CU,Supplies and Services,304403,Equipment and Materials,20-Jul-2016,5096671301,TESCO DIRECT,5999,Other consumables,-10.00,0.00,-10.00
Regeneration & Economic Development,Spatial Policy Planning Assets & Environment,031202,North Pennines - Peatscapes,Supplies and Services,340001,Postages,20-Jul-2016,5096671311,THE POST OFFICE,9402,Postages,15.36,0.00,15.36
Regeneration & Economic Development,Spatial Policy Planning Assets & Environment,031200,North Pennines Core,Supplies and Services,312009,Newspapers Books and Periodicals,20-Jul-2016,5096671315,STANHOPE PAPER SHOP,5399,Newspapers books and periodicals,9.45,0.00,9.45
Regeneration & Economic Development,Spatial Policy Planning Assets & Environment,031217,North Pennines - Cold Blooded & Spineless,Supplies and Services,304245,Equipment and Materials,20-Jul-2016,5096671317,ARGOS RETAIL GROUP,5310,Materials,11.97,0.00,11.97
Resources,I.C.T. Services,069010,Administration,Third Party Payments,430100,Rendered by Private Contractors,20-Jul-2016,5096671325,HOOTSUITE MEDIA INC.,7399,Payments to sub-contractors,5.45,0.00,5.45
Resources,I.C.T. Services,069010,Administration,Supplies and Services,304403,Equipment and Materials,20-Jul-2016,5096671327,MICROSOFT DEVELOPER,5734,Other consumables,78.00,0.00,78.00
Resources,I.C.T. Services,069010,Administration,Supplies and Services,304259,Equipment and Materials,20-Jul-2016,5096671329,DURHAM COUNTY COUNCIL,9399,Equipment-purchase and rental,12.00,0.00,12.00
Children and Adult Services,Childrens Services,085801,CDYOS - Support,Supplies and Services,328041,Clothing Uniforms and Laundry,20-Jul-2016,5096671371,WWW.BUNCHES.CO.UK,5992,Clothing uniforms and laundry,19.99,0.00,19.99
Neighbourhood Services,Culture & Sport,054235,Bp Auckland Town Hall Cafe,Supplies and Services,324117,Provisions,20-Jul-2016,5096671377,JR HOLLAND FOODSERVICE,5422,Catering costs - provisions,26.37,0.00,26.37
Neighbourhood Services,Direct Services,021324,Catering - Meadowfield,Supplies and Services,324117,Provisions,20-Jul-2016,5096671383,JR HOLLAND FOODSERVICE,5422,Catering costs - provisions,27.90,0.00,27.90
Neighbourhood Services,Direct Services,021324,Catering - Meadowfield,Supplies and Services,324117,Provisions,20-Jul-2016,5096671387,JR HOLLAND FOODSERVICE,5422,Catering costs - provisions,6.87,0.00,6.87
Neighbourhood Services,Direct Services,021324,Catering - Meadowfield,Supplies and Services,324117,Provisions,20-Jul-2016,5096671389,BRAKE BROS LTD,5811,Catering costs - provisions,50.64,8.44,42.20
Neighbourhood Services,Direct Services,021324,Catering - Meadowfield,Supplies and Services,324117,Provisions,20-Jul-2016,5096671389 - 1,BRAKE BROS LTD,5811,Catering costs - provisions,44.28,,44.28
Children and Adult Services,Childrens Services,071404,Laurel Avenue Childrens Centre,Supplies and Services,324117,Provisions,20-Jul-2016,5096671407,TESCO STORES 2371,5411,Catering costs - provisions,22.23,0.00,22.23
Neighbourhood Services,Direct Services,021235,Catering - Wharton Park,Supplies and Services,324117,Provisions,20-Jul-2016,5096671411,JR HOLLAND FOODSERVICE,5422,Catering costs - provisions,10.89,0.00,10.89
Neighbourhood Services,Direct Services,021235,Catering - Wharton Park,Supplies and Services,324117,Provisions,20-Jul-2016,5096671413,BRAKE BROS LTD,5811,Catering costs - provisions,423.06,70.51,352.55
Neighbourhood Services,Direct Services,021235,Catering - Wharton Park,Supplies and Services,324117,Provisions,20-Jul-2016,5096671413 - 1,BRAKE BROS LTD,5811,Catering costs - provisions,0.08,,0.08
Neighbourhood Services,Culture & Sport,010605,Woodhouse Close Leisure Complex,Supplies and Services,324117,Provisions,20-Jul-2016,5096671425,JR HOLLAND FOODSERVICE,5422,Catering costs - provisions,33.50,0.00,33.50
Children and Adult Services,Childrens Services,074000,TTF-Attachment and Results,Supplies and Services,304403,Equipment and Materials,20-Jul-2016,5096671447,TESCO - Seller_IST_1_2,5999,Other consumables,109.99,0.00,109.99
Children and Adult Services,Childrens Services,085958,Support Services,Supplies and Services,304259,Equipment and Materials,20-Jul-2016,5100929611,SPORTSDIRECT.COM,5941,Equipment-purchase and rental,26.99,0.00,26.99
Children and Adult Services,Childrens Services,085958,Support Services,Supplies and Services,328041,Clothing Uniforms and Laundry,20-Jul-2016,5100929615,NEW LOOK INTERNET,5621,Clothing uniforms and laundry,28.98,0.00,28.98
Children and Adult Services,Childrens Services,085958,Support Services,Supplies and Services,304999,Equipment and Materials,20-Jul-2016,5100929621,BOOTS.COM,5912,Misc equipment tools and materials,17.94,0.00,17.94
Neighbourhood Services,Direct Services,021234,Catering - Locomotion,Supplies and Services,324117,Provisions,20-Jul-2016,5100929645,BRAKE BROS LTD,5811,Catering costs - provisions,267.66,44.61,223.05
Neighbourhood Services,Direct Services,021234,Catering - Locomotion,Supplies and Services,324117,Provisions,20-Jul-2016,5100929645 - 1,BRAKE BROS LTD,5811,Catering costs - provisions,339.76,,339.76
Regeneration & Economic Development,Economic Development and Housing,030699,Business Growth and Innovation General,Supplies and Services,342033,Computers and Communications,21-Jul-2016,5096671037a,"FORMSTACK, LLC",7372,Computer hardware,7.25,0.00,7.25
Resources,I.C.T. Services,069010,Administration,Third Party Payments,430100,Rendered by Private Contractors,21-Jul-2016,5096671331,HOOTSUITE MEDIA INC.,7399,Payments to sub-contractors,0.15,0.00,0.15
Neighbourhood Services,Direct Services,021100,Catering - General,Supplies and Services,304259,Equipment and Materials,21-Jul-2016,5100929541,WILKO RETAIL LIMIT,5722,Equipment-purchase and rental,5.45,0.00,5.45
Children and Adult Services,Education,071801,Selby Cottage Childcare Centre,Supplies and Services,324117,Provisions,21-Jul-2016,5100929543,TESCO STORES 2278,5411,Catering costs - provisions,18.40,0.00,18.40
Children and Adult Services,Childrens Services,085957,Secure Management,Supplies and Services,328041,Clothing Uniforms and Laundry,21-Jul-2016,5100929567,thomaskneale.co.uk,5714,Clothing uniforms and laundry,477.00,79.50,397.50
Neighbourhood Services,Direct Services,021242,Catering - County Hall,Supplies and Services,324117,Provisions,21-Jul-2016,5100929581,JR HOLLAND FOODSERVICE,5422,Catering costs - provisions,94.58,0.00,94.58
Neighbourhood Services,Direct Services,021242,Catering - County Hall,Supplies and Services,324117,Provisions,21-Jul-2016,5100929583,JR HOLLAND FOODSERVICE,5422,Catering costs - provisions,27.46,0.00,27.46
Neighbourhood Services,Direct Services,021242,Catering - County Hall,Supplies and Services,324117,Provisions,21-Jul-2016,5100929585,JR HOLLAND FOODSERVICE,5422,Catering costs - provisions,13.16,0.00,13.16
Neighbourhood Services,Direct Services,010367,C&G - South Grounds Maintenance,Transport,215995,Running Costs of Vehicles,21-Jul-2016,5100929587,SNOWBALLS (RAILWAY,5533,Vehicle running expenses,17.38,2.90,14.48
Neighbourhood Services,Culture & Sport,054812,Gala Theatre - Catering etc,Supplies and Services,324117,Provisions,21-Jul-2016,5100929591,JR HOLLAND FOODSERVICE,5422,Catering costs - provisions,54.48,0.00,54.48
Children and Adult Services,Childrens Services,088093,Newton Aycliffe 0 - 5,Supplies and Services,304259,Equipment and Materials,21-Jul-2016,5100929595,WILKO.COM,5722,Equipment-purchase and rental,194.00,32.33,161.67
Children and Adult Services,Childrens Services,088093,Newton Aycliffe 0 - 5,Supplies and Services,304259,Equipment and Materials,21-Jul-2016,5100929597,ARGOS RETAIL GROUP,5310,Equipment-purchase and rental,153.85,0.00,153.85
Neighbourhood Services,Culture & Sport,011232,Locality 3 Team Management,Supplies and Services,328041,Clothing Uniforms and Laundry,21-Jul-2016,5100929601,ARGOS RETAIL GROUP,5310,Clothing uniforms and laundry,111.97,18.66,93.31
Neighbourhood Services,Direct Services,010301,C&G - North Grounds Maintenance,Third Party Payments,430100,Rendered by Private Contractors,21-Jul-2016,5100929609,WILLOWCRETE MAN,5039,Payments to sub-contractors,57.00,9.50,47.50
Children and Adult Services,Childrens Services,085958,Support Services,Supplies and Services,384999,Miscellaneous Expenses,21-Jul-2016,5100929613,WWW.MFC.CO.UK,7997,Other expenses,54.00,0.00,54.00
Children and Adult Services,Childrens Services,085958,Support Services,Supplies and Services,328041,Clothing Uniforms and Laundry,21-Jul-2016,5100929617,gethelabel.com,5651,Clothing uniforms and laundry,33.94,0.00,33.94
Children and Adult Services,Childrens Services,085958,Support Services,Supplies and Services,324117,Provisions,21-Jul-2016,5100929619,TESCO STORES 6329,5411,Catering costs - provisions,102.91,0.00,102.91
Children and Adult Services,Childrens Services,071350,Durham and Chester Le Street Locality,Supplies and Services,324117,Provisions,21-Jul-2016,5100929637,ASDA 4387,5411,Catering costs - provisions,151.50,0.00,151.50
Neighbourhood Services,Culture & Sport,011060,Hardwick Park Catering,Supplies and Services,324117,Provisions,21-Jul-2016,5100929641,JR HOLLAND FOODSERVICE,5422,Catering costs - provisions,57.56,0.00,57.56
Children and Adult Services,Head of Adults,056601,Substance Misuse,Transport,235073,Public Transport,21-Jul-2016,5100929651,GO NORTH EAST - V/T,4131,Travel-clients/students/children,105.84,0.00,105.84
Children and Adult Services,Childrens Services,071360,Consett and Stanley Locality,Employees,040149,Recruitment Instruction and Training,21-Jul-2016,5100929657,WWW.GRASSROOTSSPORTS.C,8299,Training-all costs,60.00,0.00,60.00
Children and Adult Services,Commissioning inc Supporting People,052103,Strat.Comm. Manager OP / PDSI,Supplies and Services,352001,Conference Expenses,21-Jul-2016,5100929659,WWW.PMGLTD.CO.UK,7399,Conferencesseminars fees etc,948.00,0.00,948.00
Children and Adult Services,Childrens Services,085334,West Rainton Satelite Home,Supplies and Services,304221,Equipment and Materials,21-Jul-2016,5100929677,WWW.TIGERBOX.CO.UK,5200,Direct materials,427.99,0.00,427.99
Resources,I.C.T. Services,069010,Administration,Supplies and Services,312011,Newspapers Books and Periodicals,21-Jul-2016,5100929681,Amazon UK Marketplace,5942,Books-school library,13.88,0.00,13.88
Resources,I.C.T. Services,069010,Administration,Supplies and Services,312011,Newspapers Books and Periodicals,21-Jul-2016,5100929683,Amazon UK Marketplace,5942,Books-school library,47.94,0.00,47.94
Resources,I.C.T. Services,069010,Administration,Supplies and Services,340001,Postages,21-Jul-2016,5100929685,WWW.ROYALMAIL.COM,9402,Postages,270.25,0.00,270.25
Resources,I.C.T. Services,069010,Administration,Supplies and Services,340001,Postages,21-Jul-2016,5100929687,WWW.ROYALMAIL.COM,9402,Postages,16.81,0.00,16.81
Children and Adult Services,Childrens Services,085801,CDYOS - Support,Supplies and Services,348037,Subsistence,21-Jul-2016,5100929709,FLAMINGO LAND RESO,5812,Subsistence,495.00,82.50,412.50
Neighbourhood Services,Culture & Sport,011206,Sports,Employees,040149,Recruitment Instruction and Training,21-Jul-2016,5100929711,TYNE AND WEAR SPORT,8299,Training-all costs,-20.00,0.00,-20.00
Regeneration & Economic Development,Transport and Contracted Services,031701,Care Connect All Localities,Supplies and Services,344033,Telephones,21-Jul-2016,5100929713,BT BILL PAYMENT 2,4812,Telephones general-all costs,97.37,16.23,81.14
Regeneration & Economic Development,Transport and Contracted Services,031701,Care Connect All Localities,Supplies and Services,344033,Telephones,21-Jul-2016,5100929715,BT BILL PAYMENT 2,4812,Telephones general-all costs,85.32,14.22,71.10
Regeneration & Economic Development,Transport and Contracted Services,031701,Care Connect All Localities,Supplies and Services,344033,Telephones,21-Jul-2016,5100929717,BT BILL PAYMENT 2,4812,Telephones general-all costs,88.94,14.82,74.12
Children and Adult Services,Childrens Services,085333,Coxhoe Satelite Home,Supplies and Services,328041,Clothing Uniforms and Laundry,21-Jul-2016,5100929719,ARGOS LTD,5310,Clothing uniforms and laundry,79.96,0.00,79.96
Children and Adult Services,Childrens Services,085333,Coxhoe Satelite Home,Supplies and Services,304259,Equipment and Materials,21-Jul-2016,5100929721,CURRYS,5732,Equipment-purchase and rental,11.99,2.00,9.99
Children and Adult Services,Childrens Services,085333,Coxhoe Satelite Home,Supplies and Services,328041,Clothing Uniforms and Laundry,21-Jul-2016,5100929723,B & M RETAIL,5310,Clothing uniforms and laundry,10.16,0.00,10.16
Neighbourhood Services,Culture & Sport,011086,Positive Futures,Supplies and Services,324117,Provisions,21-Jul-2016,5100929735,W M MORRISONS,5411,Catering costs - provisions,6.90,0.00,6.90
Children and Adult Services,Childrens Services,088073,Barnard Castle 0 - 5,Supplies and Services,324117,Provisions,21-Jul-2016,5100929737,BOOTS 6023,5912,Catering costs - provisions,16.00,0.00,16.00
Children and Adult Services,Childrens Services,088083,Ferryhill 0 - 5,Supplies and Services,312011,Newspapers Books and Periodicals,21-Jul-2016,5100929743,Amazon EU,5969,Books-school library,35.60,0.00,35.60
Neighbourhood Services,Direct Services,021235,Catering - Wharton Park,Supplies and Services,324117,Provisions,21-Jul-2016,5100929751,JR HOLLAND FOODSERVICE,5422,Catering costs - provisions,31.72,0.00,31.72
Neighbourhood Services,Culture & Sport,026591,Hardwick Hall Country Park,Supplies and Services,304245,Equipment and Materials,21-Jul-2016,5100929753,INTERNATIONAL LAMPS LI,5251,Materials,36.56,0.00,36.56
Neighbourhood Services,Culture & Sport,010605,Woodhouse Close Leisure Complex,Supplies and Services,324117,Provisions,21-Jul-2016,5100929761,BRAKE BROS LTD,5811,Catering costs - provisions,63.96,10.66,53.30
Neighbourhood Services,Culture & Sport,010605,Woodhouse Close Leisure Complex,Supplies and Services,324117,Provisions,21-Jul-2016,5100929761 - 1,BRAKE BROS LTD,5811,Catering costs - provisions,86.76,,86.76
Neighbourhood Services,Direct Services,010383,C&G - South Street Cleansing,Supplies and Services,304221,Equipment and Materials,21-Jul-2016,5105821395,WWW.ARCO.CO.UK,5085,Direct materials,91.39,15.23,76.16
Children and Adult Services,Childrens Services,071390,Ferryhill and Newton Aycliffe Locality,Supplies and Services,328041,Clothing Uniforms and Laundry,21-Jul-2016,5105821565,ARGOS DIRECT,5310,Clothing uniforms and laundry,-69.92,0.00,-69.92
Children and Adult Services,Childrens Services,085958,Support Services,Supplies and Services,304259,Equipment and Materials,21-Jul-2016,5105821687,REPUBLIC.COM RETAI,5941,Equipment-purchase and rental,34.99,0.00,34.99
Children and Adult Services,Planning & Service Strategy,085001,Local Safeguarding Childrens Board,Supplies and Services,304403,Equipment and Materials,21-Jul-2016,5112013713,SURVEYMONKEY.COM,4816,Other consumables,250.00,0.00,250.00
Neighbourhood Services,Direct Services,021100,Catering - General,Supplies and Services,324117,Provisions,22-Jul-2016,5105821285,SAINSBURYS LOC (4320),5411,Catering costs - provisions,7.50,0.00,7.50
Neighbourhood Services,Direct Services,021100,Catering - General,Supplies and Services,324117,Provisions,22-Jul-2016,5105821291,TESCO STORES 6329,5411,Catering costs - provisions,11.88,0.00,11.88
Neighbourhood Services,Direct Services,021242,Catering - County Hall,Supplies and Services,324117,Provisions,22-Jul-2016,5105821475,JR HOLLAND FOODSERVICE,5422,Catering costs - provisions,93.17,0.00,93.17
Neighbourhood Services,Direct Services,021242,Catering - County Hall,Supplies and Services,324117,Provisions,22-Jul-2016,5105821491,JR HOLLAND FOODSERVICE,5422,Catering costs - provisions,13.16,0.00,13.16
Neighbourhood Services,Direct Services,021242,Catering - County Hall,Supplies and Services,324117,Provisions,22-Jul-2016,5105821505,BRAKE BROS LTD,5811,Catering costs - provisions,257.94,42.99,214.95
Neighbourhood Services,Direct Services,021242,Catering - County Hall,Supplies and Services,324117,Provisions,22-Jul-2016,5105821505 - 1,BRAKE BROS LTD,5811,Catering costs - provisions,272.71,,272.71
Neighbourhood Services,Direct Services,021242,Catering - County Hall,Supplies and Services,324117,Provisions,22-Jul-2016,5105821531,BRAKE BROS LTD,5811,Catering costs - provisions,330.97,0.00,330.97
Children and Adult Services,Childrens Services,071449,Ferryhill One Point Hub,Supplies and Services,304259,Equipment and Materials,22-Jul-2016,5105821559,ARGOS RETAIL GROUP,5310,Equipment-purchase and rental,69.92,0.00,69.92
